Departmental Family,Entity,Date,Expense Type,Expense Area,Supplier,Transaction Number,Amount
Department for Work and Pensions,Corporate,28-Mar-13,REMPLOY RESOURCE GRANT,CHG SPECIAL DISABILITY EMPLOYMENT PROGS,REMPLOY LTD,1005725,"42,497,675"
Department for Work and Pensions,Corporate,27-Mar-13,PRIME FACILITY PRICE,OPS OPE ESTATES BASELINE,TELEREAL TRILLIUM,2028981834,"31,716,165"
Department for Work and Pensions,Corporate,27-Mar-13,NEST Loan - in year additions,CHG ERSP DEL A,NEST CORPORATION,2003766,"19,800,000"
Department for Work and Pensions,Corporate,12-Mar-13,HOSTING SERVICES,CIO CSD ITLR HOSTING,HP ENTERPRISE SERVICES UK LTD,2028760623,"14,549,477"
Department for Work and Pensions,Corporate,27-Mar-13,NETWORK SERVICES,CIO CSD ITLR NETWORK,BT GLOBAL SERVICES,2028995671,"14,140,891"
Department for Work and Pensions,Corporate,20-Mar-13,PUBLIC SECTOR PENSIONS LEVY,STR PSP LEVY,THE PENSIONS REGULATOR,1005696,"11,186,163"
Department for Work and Pensions,Corporate,13-Mar-13,NETWORK SERVICES,CIO CSD ITLR NETWORK,BT GLOBAL SERVICES,2028794765,"9,518,277"
Department for Work and Pensions,Corporate,12-Mar-13,NON-TREDDS IS IT APPS DEV MANDAY,CHG UC PROJECT LEDGER CC,IBM UNITED KINGDOM LTD,2028761502,"5,912,527"
Department for Work and Pensions,Corporate,14-Mar-13,FAS - NON ASSET BACKED ASSISTANCE PAYMENTS,STR FAS ASSISTANCE PAYMENTS,PENSION PROTECTION FUND,1005688,"5,753,000"
Department for Work and Pensions,Corporate,27-Mar-13,POST OFFICE CARD ACCOUNT,F&C FIN CONT COBAP POCA,POST OFFICE LTD,1005713,"5,156,594"
Department for Work and Pensions,Corporate,27-Mar-13,PRIME BUSINESS RATES,OPS OPE ESTATES BASELINE,TELEREAL TRILLIUM,2028981832,"5,076,040"
Department for Work and Pensions,Corporate,12-Mar-13,MEDICAL SERVICES FIXED COSTS,OPS CCS MEDICAL SERVICES,ATOS HEALTHCARE,2028761774,"4,503,916"
Department for Work and Pensions,Corporate,27-Mar-13,AR PRIME RECOVERIES,BALANCE SHEET,TELEREAL TRILLIUM,2028981834,"4,297,231"
Department for Work and Pensions,Corporate,18-Mar-13,SOFTWARE LICENCES,CHG SCANNING & DIGITAL STORAGE - AGILITY,SPECIALIST COMPUTER CENTRES PLC,2028841213,"4,140,000"
Department for Work and Pensions,Corporate,12-Mar-13,DESKTOP SERVICES,CIO CSD ITLR DESKTOP,HP ENTERPRISE SERVICES UK LTD,2028760623,"3,767,578"
Department for Work and Pensions,Corporate,12-Mar-13,AMS FIXED PRICE CONTRACTS,CIO CSD ITLR AMS,HP ENTERPRISE SERVICES UK LTD,2028760623,"3,606,398"
Department for Work and Pensions,Corporate,13-Mar-13,CONTRACTED OUT OFFICE SERVICES,OPS OPE CENTRAL CONTACTS,BALFOUR BEATTY WORKPLACE LTD,2028791465,"3,566,515"
Department for Work and Pensions,Corporate,12-Mar-13,TREDDS IS IT CONSULTANCY NON ADVICE,CHG UC PROJECT LEDGER CC,HP ENTERPRISE SERVICES UK LTD,2028760623,"3,537,764"
Department for Work and Pensions,Corporate,25-Mar-13,POSTAGE,F&C CD ACC POSTAGE,UK MAIL,2028928312,"3,521,922"
Department for Work and Pensions,Corporate,13-Mar-13,NETWORK CONTACT CENTRE SERVICES,CIO CSD ITLR NETWORK,BT GLOBAL SERVICES,2028794765,"3,458,293"
Department for Work and Pensions,Corporate,22-Mar-13,NON-TREDDS IS IT APPS DEV MANDAY,CHG UC PROJECT LEDGER CC,ACCENTURE UK LTD,2028919452,"3,400,006"
Department for Work and Pensions,European Social Fund,14-Mar-13,MA ESF(D) PROGRAMME EXPENDITURE EC PREFUNDED OGDS,WWEG EUROPEAN SOCIAL FUND PROGRAMME 2007-2013,LONDON SKILLS FUNDING AGENCY,5000001305,"3,249,572"
Department for Work and Pensions,Child Maintenance and Enforcement Commission,21-Mar-13,HOSTING SERVICES,LEGACY SYSTEMS IT RUNNING COSTS - IOL,DWP,2000880,"3,226,315"
Department for Work and Pensions,Corporate,11-Mar-13,TREDDS APPS DEV MANDAYS,CHG PIP DELIVERY,HP ENTERPRISE SERVICES UK LTD,2028755530,"2,983,528"
Department for Work and Pensions,Corporate,15-Mar-13,MEDICAL OPINIONS INCAPACITY BENEFIT,OPS CCS MEDICAL SERVICES,ATOS HEALTHCARE,2028840001,"2,626,643"
Department for Work and Pensions,European Social Fund,28-Mar-13,MA ESF(D) PROGRAMME EXPENDITURE EC PREFUNDED OGDS,WWEG EUROPEAN SOCIAL FUND PROGRAMME 2007-2013,WEST MIDLANDS LEARNING & SKILLS COUNCIL,5000001311,"2,488,404"
Department for Work and Pensions,European Social Fund,01-Mar-13,MA ESF(D) PROGRAMME EXPENDITURE EC PREFUNDED OGDS,WWEG EUROPEAN SOCIAL FUND PROGRAMME 2007-2013,SOUTH EAST SKILLS FUNDING AGENCY,5000001293,"2,434,206"
Department for Work and Pensions,European Social Fund,07-Mar-13,MA ESF(D) PROGRAMME EXPENDITURE EC PREFUNDED OGDS,WWEG EUROPEAN SOCIAL FUND PROGRAMME 2007-2013,NORTH EAST LEARNING & SKILLS COUNCIL,5000001294,"2,415,886"
Department for Work and Pensions,Employment Programmes,01-Mar-13,REMPLOY RESOURCE GRANT,WWEG EP REMPLOY,REMPLOY LTD,2028668333,"2,350,000"
Department for Work and Pensions,Employment Programmes,28-Mar-13,REMPLOY RESOURCE GRANT,WWEG EP REMPLOY,REMPLOY LTD,1005725,"2,300,000"
Department for Work and Pensions,Corporate,21-Mar-13,CONTRACTED OUT OFFICE SERVICES,HR CSL,CABINET OFFICE,2003755,"2,118,366"
Department for Work and Pensions,Corporate,21-Mar-13,CONTRACTED OUT OFFICE SERVICES,HR CSP,CABINET OFFICE,2003755,"2,045,470"
Department for Work and Pensions,Child Maintenance and Enforcement Commission,27-Mar-13,BELFAST BENEFIT CENTRE (RUN COSTS),CSA CD CENT HELD NORTHERN IRELAND PAYMENTS,DSD GROUP ACCOUNT,1001271,"2,010,945"
Department for Work and Pensions,European Social Fund,13-Mar-13,MA ESF(D) PROGRAMME EXPENDITURE EC PREFUNDED OGDS,WWEG EUROPEAN SOCIAL FUND PROGRAMME 2007-2013,GREATER LONDON AUTHORITY,5000001301,"1,986,495"
Department for Work and Pensions,Employment Programmes,28-Mar-13,TA LPS BACS Payments,BALANCE SHEET,DWP MANUAL PAYMENTS,2003786,"1,948,514"
Department for Work and Pensions,Corporate,19-Mar-13,NON PRIME PROPERTY COSTS VAT RECOVERABLE,F&C CD BENTON PARK VIEW,HM REVENUE & CUSTOMS,2003750,"1,892,059"
Department for Work and Pensions,Corporate,28-Mar-13,MEDICAL OPINIONS INCAPACITY BENEFIT,OPS CCS MEDICAL SERVICES,ATOS HEALTHCARE,2028998857,"1,887,801"
Department for Work and Pensions,Corporate,26-Mar-13,NON PRIME PROPERTY COSTS,OPS OPE ESTATES BASELINE,HMRC,2028931439,"1,886,128"
Department for Work and Pensions,Corporate,19-Mar-13,NON PRIME PROPERTY COSTS VAT RECOVERABLE,F&C CD BENTON PARK VIEW,HM REVENUE & CUSTOMS,2003748,"1,853,555"
Department for Work and Pensions,Child Maintenance and Enforcement Commission,08-Mar-13,PRIME FACILITY PRICE,PRIME,DEPARTMENT FOR WORK & PENSIONS,2000843,"1,803,485"
Department for Work and Pensions,Corporate,08-Mar-13,SIAM FIXED PRICE CONTRACTS,CIO CSD ITLR SIAM,HP ENTERPRISE SERVICES UK LTD,2028753399,"1,788,927"
Department for Work and Pensions,Corporate,13-Mar-13,TELEPHONY CALL CHARGES,CIO CSD ITLR NETWORK,BT GLOBAL SERVICES,2028794765,"1,681,001"
Department for Work and Pensions,Corporate,20-Mar-13,NON PRIME UTILITIES,F&C CD DWP GAS & ELECTRICITY PAYMENTS / RECHARGES,EDF ENERGY 1 LTD SCC UTILITIES ONLY,2028889252,"1,658,841"
Department for Work and Pensions,European Social Fund,13-Mar-13,MA ESF(D) PROGRAMME EXPENDITURE EC PREFUNDED OGDS,WWEG EUROPEAN SOCIAL FUND PROGRAMME 2007-2013,EAST MIDLANDS SKILLS FUNDING AGENCY,5000001300,"1,639,389"
Department for Work and Pensions,Corporate,27-Mar-13,PRIME FACILITY PRICE,OPS OPE ESTATES RECESSION,TELEREAL TRILLIUM,2028981834,"1,604,247"
Department for Work and Pensions,Corporate,14-Mar-13,BELFAST BENEFIT CENTRE (RUN COSTS),OPS BEN BD LN BELFAST,DEPARTMENT OF SOCIAL DEVELOPMENT,1005682,"1,596,196"
Department for Work and Pensions,Corporate,13-Mar-13,HOSTING PRINT SERVICES,CIO CSD ITLR HOSTING,HP ENTERPRISE SERVICES UK LTD,2028791719,"1,553,319"
Department for Work and Pensions,Corporate,14-Mar-13,DESKTOP SERVICES,CIO CSD ITLR DESKTOP,HP ENTERPRISE SERVICES UK LTD,2028833560,"1,542,591"
Department for Work and Pensions,Corporate,22-Mar-13,NON-TREDDS IS IT SERVICES (HOSTING),CIO CSD ITLR HOSTING,HMRC,2028920211,"1,501,360"
Department for Work and Pensions,Corporate,27-Mar-13,CURRENT GRANTS TO PRIVATE SECTOR PERSONS AND NON PROFIT INSTITUTIONS SERVING HOUSEHOLDS,STR BUS STRATEGY DIRECTOR AND SUPPORT,ONLINE CENTRES FOUNDATION LTD,1005706,"1,500,000"
Department for Work and Pensions,Corporate,12-Mar-13,HOSTING PRINT SERVICES,CIO CSD ITLR HOSTING,HP ENTERPRISE SERVICES UK LTD,2028760623,"1,494,710"
Department for Work and Pensions,Corporate,13-Mar-13,SOFTWARE LICENCES,CIO CSD ITLR HOSTING,HP ENTERPRISE SERVICES UK LTD,2028791719,"1,490,092"
Department for Work and Pensions,Corporate,15-Mar-13,CONSULTANTS VAT RECOVERABLE,CHG FUTURE CONTRACTING DELIVERY,KPMG CIO ADVISORY LTD,2028838126,"1,406,007"
Department for Work and Pensions,Corporate,13-Mar-13,SOC SEC RESEARCH BUDGET,PSG IGS STAT SERVICES,OFFICE FOR NATIONAL STATISTICS,2028800928,"1,400,000"
Department for Work and Pensions,Child Maintenance and Enforcement Commission,21-Mar-13,NETWORK SERVICES,LEGACY SYSTEMS IT RUNNING COSTS - IOL,DWP,2000880,"1,388,395"
Department for Work and Pensions,Corporate,21-Mar-13,CONTRACTED OUT OFFICE SERVICES,HR CSR,CABINET OFFICE,2003755,"1,320,920"
Department for Work and Pensions,Corporate,20-Mar-13,NON PRIME PROPERTY COSTS VAT RECOVERABLE,F&C CD DURHAM HOUSE,HM REVENUE & CUSTOMS,2003752,"1,320,866"
Department for Work and Pensions,Corporate,18-Mar-13,NON PRIME PROPERTY COSTS VAT RECOVERABLE,F&C CD DURHAM HOUSE,HM REVENUE & CUSTOMS,2003738,"1,307,269"
Department for Work and Pensions,Corporate,27-Mar-13,VAT CLEARING,BALANCE SHEET,CMG,2003778,"1,303,936"
Department for Work and Pensions,Child Maintenance and Enforcement Commission,07-Mar-13,NON-TREDDS IS IT SERVICES (AMS),FUTURE SYSTEM IT RUNNING COSTS - IOL,TATA CONSULTANCY SERVICES LTD,1000170828,"1,250,000"
Department for Work and Pensions,Corporate,27-Mar-13,PRIME FACILITY PRICE,F&C CD CAXTON,TELEREAL TRILLIUM,2028981834,"1,247,117"
Department for Work and Pensions,Corporate,05-Mar-13,NON-TREDDS IS IT SERVICES (DESKTOP),CIO CSD ITLR SUSTAINABLE PRINT SERVICE,XEROX UK LTD 3W,2028682194,"1,219,116"
Department for Work and Pensions,Corporate,15-Mar-13,NON PRIME UTILITIES,F&C CD DWP GAS & ELECTRICITY PAYMENTS / RECHARGES,CORONA ENERGY RETAIL 4 LTD SCC UTILITIES ONLY,2028840044,"1,142,592"
Department for Work and Pensions,Corporate,22-Mar-13,NON-TREDDS IS IT APPS DEV MANDAY,CHG PIP DELIVERY,ACCENTURE UK LTD,2028919452,"1,110,011"
Department for Work and Pensions,European Social Fund,11-Mar-13,MA ESF(D) PROGRAMME EXPENDITURE EC PREFUNDED OGDS,WWEG EUROPEAN SOCIAL FUND PROGRAMME 2007-2013,NORTH WEST SKILLS FUNDING AGENCY,5000001298,"1,099,382"
Department for Work and Pensions,Child Maintenance and Enforcement Commission,07-Mar-13,NON-TREDDS IS IT APPS DEV MANDAY,FS PHASE 2 - TCS COSTS,TATA CONSULTANCY SERVICES LTD,1000170828,"1,000,000"
Department for Work and Pensions,Housing Benefits,14-Mar-13,HOUSING BENEFIT ADMINISTRATION,HB ENGLAND,BIRMINGHAM CITY COUNCIL,2028834617,"998,072"
Department for Work and Pensions,Corporate,26-Mar-13,DEPARTMENTAL SUBSCRIPTIONS,OPS WDC WSD LN GROUP DIRECTORS OFFICE,ICS,2028931791,"950,616"
Department for Work and Pensions,Corporate,27-Mar-13,AR PRIME RECOVERIES,BALANCE SHEET,TELEREAL TRILLIUM,2028981832,"938,253"
Department for Work and Pensions,Corporate,13-Mar-13,CONTRACTED OUT PRINTING & STATIONERY SOLUTIONS,F&C CD MANAGEMENT FEE,XEROX UK LTD 3W,2028767425,"923,400"
Department for Work and Pensions,Corporate,12-Mar-13,TREDDS IS IT CONSULTANCY (HOSTING) NON ADVICE,CHG UC PROJECT LEDGER CC,HP ENTERPRISE SERVICES UK LTD,2028760623,"900,289"
Department for Work and Pensions,Corporate,27-Mar-13,HOSTING SERVICES,CIO CSD ITLR HOSTING,HP ENTERPRISE SERVICES UK LTD,2028995672,"885,493"
Department for Work and Pensions,Corporate,07-Mar-13,MANAGED SERVICE UNIVERSAL JOBMATCH,OPS NET DIG UNIVERSAL JOBMATCH CONTRACT,MONSTER GOVERNMENT SOLUTIONS,2028747104,"830,034"
Department for Work and Pensions,Corporate,22-Mar-13,NON-TREDDS IS IT SERVICES (AMS),CIO C SS S & E IT DIRECTOR GATEWAY SERVICE DELIVER,ATOS ORIGIN IT SERVICES UK LTD,2028920501,"811,624"
Department for Work and Pensions,European Social Fund,07-Mar-13,MA ESF(D) PROGRAMME EXPENDITURE EC PREFUNDED OGDS,WWEG EUROPEAN SOCIAL FUND PROGRAMME 2007-2013,NORTH WEST SKILLS FUNDING AGENCY,5000001295,"805,607"
Department for Work and Pensions,Child Maintenance and Enforcement Commission,27-Mar-13,CONTRACTED OUT OFFICE SERVICES,EXTERNAL CONTRACTS VERTEX,SERCO PUBLIC SERVICES LTD,1000173041,"792,015"
Department for Work and Pensions,Corporate,12-Mar-13,ICONS IS IT CONSULTANCY NON ADVICE,CHG UC PROJECT LEDGER CC,BT GLOBAL SERVICES,2028762392,"786,016"
Department for Work and Pensions,Corporate,12-Mar-13,SIAM STAT MANDAYS,CIO CSD ITLR SIAM,HP ENTERPRISE SERVICES UK LTD,2028760623,"781,528"
Department for Work and Pensions,Corporate,04-Mar-13,NON-TREDDS IS IT SERVICES (AMS),CIO CSD ITLR AMS,ACCENTURE UK LTD,2028675307,"774,799"
Department for Work and Pensions,Corporate,15-Mar-13,PRIME VARIABLE CHARGE,OPS OPE ESTATES BASELINE,TELEREAL TRILLIUM,2028835146,"755,798"
Department for Work and Pensions,Housing Benefits,14-Mar-13,HOUSING BENEFIT ADMINISTRATION,HB SCOTLAND,CITY OF GLASGOW,2028834604,"713,064"
Department for Work and Pensions,Corporate,15-Mar-13,NETWORK SERVICES,CHG UC PROJECT LEDGER CC,BT GLOBAL SERVICES,2028837120,"712,042"
Department for Work and Pensions,Child Maintenance and Enforcement Commission,27-Mar-13,NON-TREDDS IS IT SERVICES (AMS),FUTURE SYSTEM IT RUNNING COSTS - IOL,TATA CONSULTANCY SERVICES LTD,1000173020,"700,000"
Department for Work and Pensions,Corporate,20-Mar-13,NON-TREDDS IS IT SERVICES (AMS),CIO CSD ITLR AMS,IBM UNITED KINGDOM LTD,2028865712,"696,136"
Department for Work and Pensions,Corporate,20-Mar-13,ENCASHMENT OF CHEQUES,F&C FIN CONT COBAP CHEQUES,SANTANDER,1005697,"687,347"
Department for Work and Pensions,Child Maintenance and Enforcement Commission,19-Mar-13,CORPORATE COSTS,DWP RECHARGE - CIT OVERHEADS,DWP,2000868,"666,118"
Department for Work and Pensions,Corporate,28-Mar-13,NON-TREDDS IS IT APPS DEV MANDAY,CHG DELIVERING THE IRIS ORGANISATION,IBM UNITED KINGDOM LTD,2028999586,"654,090"
Department for Work and Pensions,Corporate,28-Mar-13,PENSION PROTECTION FUND RESOURCE GRANT,STR FAS ADMINISTRATION DEL P,PENSION PROTECTION FUND,1005724,"638,000"
Department for Work and Pensions,Corporate,22-Mar-13,NON-TREDDS APPS DEV FIXED PRICE CONTRACTS,CIO C SS S & E IT DIRECTOR GATEWAY DEVELOPMENT,ATOS ORIGIN IT SERVICES UK LTD,2028920501,"625,830"
Department for Work and Pensions,Child Maintenance and Enforcement Commission,21-Mar-13,IS/IT RECHARGE - CIT ALLOCATIONS,LEGACY SYSTEMS IT RUNNING COSTS - IOL,DWP,2000880,"584,510"
Department for Work and Pensions,Housing Benefits,14-Mar-13,HOUSING BENEFIT ADMINISTRATION,HB ENGLAND,LIVERPOOL CITY COUNCIL,2028834510,"564,550"
Department for Work and Pensions,Child Maintenance and Enforcement Commission,21-Mar-13,AMS FIXED PRICE CONTRACTS,LEGACY SYSTEMS IT RUNNING COSTS - IOL,DWP,2000880,"559,259"
Department for Work and Pensions,Corporate,27-Mar-13,PRIME FACILITY PRICE,F&C CD NORCROSS,TELEREAL TRILLIUM,2028981834,"556,342"
Department for Work and Pensions,Corporate,14-Mar-13,DESKTOP FIXED PRICE CONTRACTS,CIO CSD ITLR DESKTOP,HP ENTERPRISE SERVICES UK LTD,2028833560,"542,601"
Department for Work and Pensions,SHARED SERVICES,06-Mar-13,NON-TREDDS IS IT SERVICES (HOSTING),IT COSTS,FUJITSU SERVICES LTD,2028687122,"536,000"
Department for Work and Pensions,Housing Benefits,14-Mar-13,HOUSING BENEFIT ADMINISTRATION,HB ENGLAND,LEEDS CITY COUNCIL,2028834812,"535,800"
Department for Work and Pensions,Corporate,27-Mar-13,PRIME FACILITY PRICE,F&C CD LEEDS QUARRY HOUSE,TELEREAL TRILLIUM,2028981834,"534,134"
Department for Work and Pensions,Corporate,22-Mar-13,NON-TREDDS IS IT APPS DEV MANDAY,CHG SCANNING & DIGITAL STORAGE,ACCENTURE UK LTD,2028919452,"528,043"
Department for Work and Pensions,Child Maintenance and Enforcement Commission,21-Mar-13,DESKTOP SERVICES,LEGACY SYSTEMS IT RUNNING COSTS - IOL,DWP,2000880,"510,879"
Department for Work and Pensions,Housing Benefits,14-Mar-13,HOUSING BENEFIT ADMINISTRATION,HB ENGLAND,MANCHESTER CITY COUNCIL,2028834559,"507,922"
Department for Work and Pensions,Corporate,21-Mar-13,SOC SEC RESEARCH BUDGET,PSG IGS STAT SERVICES,OFFICE FOR NATIONAL STATISTICS,2028917425,"498,204"
Department for Work and Pensions,Corporate,07-Mar-13,POSTAGE,F&C CD ACC POSTAGE,ROYAL MAIL GROUP PLC,2028744935,"482,167"
Department for Work and Pensions,Corporate,28-Mar-13,CONTRACTED OUT OFFICE SERVICES,OPS NET CC VENTURA,CAPITA CUSTOMER MANAGEMENT LTD,2028996674,"477,988"
Department for Work and Pensions,Child Maintenance and Enforcement Commission,13-Mar-13,CORPORATE COSTS,HUMAN RESOURCES,CABINET OFFICE,2000855,"474,571"
Department for Work and Pensions,Child Maintenance and Enforcement Commission,08-Mar-13,TREDDS APPS DEV MANDAYS,NEW SCHEME SOFTWARE,HP ENTERPRISE SERVICES UK LTD,1000171139,"472,406"
Department for Work and Pensions,Corporate,04-Mar-13,NON-TREDDS IS IT APPS DEV MANDAY,CHG PIP DELIVERY,IBM UNITED KINGDOM LTD,2028673224,"465,793"
Department for Work and Pensions,Corporate,20-Mar-13,NON PRIME PROPERTY COSTS,OPS OPE ESTATES BASELINE,CROWN OFFICE & PROCURATOR FISCAL SERVICE,2028884392,"451,667"
Department for Work and Pensions,Child Maintenance and Enforcement Commission,21-Mar-13,CORPORATE COSTS,DWP RECHARGE - SHARED SERVICES,DWP,2000879,"440,250"
Department for Work and Pensions,Corporate,22-Mar-13,ADEP AM SERVICES - VAT NON-RECOVERABLE,CHG UC PROJECT LEDGER CC,ACCENTURE UK LTD,2028919452,"438,976"
Department for Work and Pensions,Corporate,28-Mar-13,SIMPLE PAYMENT SERVICE,F&C FIN CONT COBAP CHEQUES,CITIBANK GLOBAL CORPORATE BANKING,2029001558,"434,266"
Department for Work and Pensions,Housing Benefits,14-Mar-13,HOUSING BENEFIT ADMINISTRATION,HB ENGLAND,BRADFORD METROPOLITAN BOROUGH COUNCIL,2028834805,"417,428"
Department for Work and Pensions,Corporate,28-Mar-13,PENS ADVISORY SERVICE GIA,STR THE PENSION ADVISORY SERVICE DEL P,THE PENSIONS ADVISORY SERVICES,1005717,"411,000"
Department for Work and Pensions,Corporate,27-Mar-13,PRIME BUSINESS RATES,F&C CD CAXTON,TELEREAL TRILLIUM,2028981832,"404,645"
Department for Work and Pensions,Housing Benefits,14-Mar-13,HOUSING BENEFIT ADMINISTRATION,HB ENGLAND,DURHAM COUNCIL,2028834595,"403,465"
Department for Work and Pensions,Corporate,01-Mar-13,NON-TREDDS IS IT APPS DEV MANDAY,CHG CP SERVICE ORIENTATED ARCHITECTURE,ACCENTURE UK LTD,2028669169,"398,603"
Department for Work and Pensions,Child Maintenance and Enforcement Commission,13-Mar-13,CONTRACTED OUT OFFICE SERVICES,CS CENTRALLY HELD BUDGETS FACILITIES CONTRACTS,BALFOUR BEATTY WORKPLACE LTD,1000171431,"398,322"
Department for Work and Pensions,Corporate,26-Mar-13,NON-TREDDS IS IT APPS DEV MANDAY,CHG IT FIXES EASD,ACCENTURE UK LTD,2028935363,"397,506"
Department for Work and Pensions,Corporate,20-Mar-13,NETWORK SERVICES,CIO CSD ITLR NETWORK,BT GLOBAL SERVICES,2028880763,"391,126"
Department for Work and Pensions,Employment Programmes,07-Mar-13,SERVICE FEE,"WWEG EP SUPPORT LONDON CENTRL, LAMBETH, SOUTHWRK AND WANDSWRTH",A4E LTD,2028743313,"388,862"
Department for Work and Pensions,Housing Benefits,14-Mar-13,HOUSING BENEFIT ADMINISTRATION,HB ENGLAND,LONDON BOROUGH OF TOWER HAMLETS,2028834722,"387,975"
Department for Work and Pensions,Corporate,19-Mar-13,REMOTE STORAGE COSTS VAT RECOV,OPS BEN BD DIRECTORS RESIDUAL,CAPITA BUSINESS SERVICES LTD,2028848647,"383,134"
Department for Work and Pensions,Corporate,21-Mar-13,FSF - SUPPORT CONTRACT MODULES FOR JSA JOBSEEKERS,CHG BENEFIT CAP,A4E LTD,2028915242,"382,543"
Department for Work and Pensions,Corporate,15-Mar-13,AR PRIME RECOVERIES,BALANCE SHEET,TELEREAL TRILLIUM,2028835146,"378,629"
Department for Work and Pensions,Housing Benefits,14-Mar-13,HOUSING BENEFIT ADMINISTRATION,HB ENGLAND,SHEFFIELD CITY COUNCIL,2028834706,"372,958"
Department for Work and Pensions,Housing Benefits,14-Mar-13,HOUSING BENEFIT ADMINISTRATION,HB ENGLAND,LONDON BOROUGH OF LAMBETH,2028834782,"369,811"
Department for Work and Pensions,Corporate,18-Mar-13,FSF - SUPPORT CONTRACT MODULES FOR JSA JOBSEEKERS,OPS WDC WSD CE BLACK COUNTRY DISTRICT OFFICE,A4E LTD,2028844244,"369,390"
Department for Work and Pensions,Corporate,14-Mar-13,PRIME BILLABLE EXTRAS PRIME CONTRACT MANAGEMENT (PCM),CHG ESTATES RATIONALISATION SHEFFIELD,TELEREAL TRILLIUM,2028830331,"369,138"
Department for Work and Pensions,Corporate,22-Mar-13,NON-TREDDS IS IT APPS DEV MANDAY,CIO C SS S & E IT DIRECTOR GATEWAY DEVELOPMENT,ATOS ORIGIN IT SERVICES UK LTD,2028920501,"367,500"
Department for Work and Pensions,Corporate,12-Mar-13,NETWORK SERVICES,CIO CSD AD HOC ITLR PROJECTS,BT GLOBAL SERVICES,2028762392,"366,047"
Department for Work and Pensions,Housing Benefits,14-Mar-13,HOUSING BENEFIT ADMINISTRATION,HB ENGLAND,LONDON BOROUGH OF LEWISHAM,2028834796,"365,852"
Department for Work and Pensions,Housing Benefits,14-Mar-13,HOUSING BENEFIT ADMINISTRATION,HB ENGLAND,HACKNEY LBC,2028834635,"364,258"
Department for Work and Pensions,Corporate,13-Mar-13,SOC SEC RESEARCH BUDGET,STR LM AND COND DIRECTOR AND SUPPORT,OFFICE FOR NATIONAL STATISTIC,2028790685,"358,143"
Department for Work and Pensions,Corporate,08-Mar-13,HOSTING FIXED PRICE CONTRACTS,CIO CSD ITLR HOSTING,HP ENTERPRISE SERVICES UK LTD,2028753399,"356,067"
Department for Work and Pensions,Housing Benefits,14-Mar-13,HOUSING BENEFIT ADMINISTRATION,HB ENGLAND,CORNWALL COUNCIL,2028834596,"354,243"
Department for Work and Pensions,Housing Benefits,14-Mar-13,HOUSING BENEFIT ADMINISTRATION,HB ENGLAND,BRISTOL CITY COUNCIL,2028834684,"353,497"
Department for Work and Pensions,Housing Benefits,14-Mar-13,HOUSING BENEFIT ADMINISTRATION,HB ENGLAND,LONDON BOROUGH OF SOUTHWARK,2028834675,"352,872"
Department for Work and Pensions,Employment Programmes,01-Mar-13,SERVICE FEE,WWEG EP WORK CHOICE S WEST WALES S WALES VALLEYS,SHAW TRUST,2028667690,"348,336"
Department for Work and Pensions,Corporate,11-Mar-13,SOFTWARE LICENCES,CHG PIP DELIVERY,SPECIALIST COMPUTER CENTRES PLC,2028757564,"343,919"
Department for Work and Pensions,Corporate,14-Mar-13,PENSIONS OMBUDSMAN GIA,STR PENSIONS OMBUDSMAN,THE PENSIONS OMBUDSMAN,1005686,"333,000"
Department for Work and Pensions,Housing Benefits,14-Mar-13,HOUSING BENEFIT ADMINISTRATION,HB SCOTLAND,EDINBURGH DISTRICT COUNCIL,2028834605,"326,875"
Department for Work and Pensions,Child Maintenance and Enforcement Commission,27-Mar-13,NON-TREDDS IS IT SERVICES (AMS),FUTURE SYSTEM IT RUNNING COSTS - DIRECT,TATA CONSULTANCY SERVICES LTD,1000173020,"325,000"
Department for Work and Pensions,Corporate,27-Mar-13,PRIME FACILITY PRICE,F&C CD PEEL PARK,TELEREAL TRILLIUM,2028981834,"323,250"
Department for Work and Pensions,Corporate,19-Mar-13,OUTPUT VAT,BALANCE SHEET,DEPARTMENT OF HEALTH,2003746,"322,482"
Department for Work and Pensions,Corporate,04-Mar-13,NON ICONS NETWORK SERVICES,CIO CSD ITLR NETWORK,ORANGE PCS LTD,2028673887,"319,788"
Department for Work and Pensions,Corporate,05-Mar-13,TREDDS APPS DEV MANDAYS,CIO CSD SECURITY IMPROVEMENT PROGRAMME,HP ENTERPRISE SERVICES UK LTD,2028679565,"317,722"
Department for Work and Pensions,Corporate,19-Mar-13,REMOTE STORAGE COSTS VAT RECOV,OPS OPE CENTRAL CONTACTS,CAPITA BUSINESS SERVICES LTD,2028848647,"317,474"
Department for Work and Pensions,Corporate,22-Mar-13,NON-TREDDS IS IT SERVICES (HOSTING),CIO C SS S & E IT DIRECTOR GATEWAY SERVICE DELIVER,ATOS ORIGIN IT SERVICES UK LTD,2028920501,"312,850"
Department for Work and Pensions,Corporate,27-Mar-13,PRIME FACILITY PRICE,F&C CD MANCHESTER HEYWOOD STORES,TELEREAL TRILLIUM,2028981834,"311,536"
Department for Work and Pensions,Corporate,12-Mar-13,TREDDS APPS DEV MANDAYS,CHG UC PROJECT LEDGER CC,HP ENTERPRISE SERVICES UK LTD,2028760623,"307,791"
Department for Work and Pensions,Housing Benefits,14-Mar-13,HOUSING BENEFIT ADMINISTRATION,HB ENGLAND,LONDON BOROUGH OF NEWHAM,2028834564,"307,501"
Department for Work and Pensions,Corporate,11-Mar-13,SIAM MANAGEMENT SERVICES,CIO CSD ITLR SIAM,HP ENTERPRISE SERVICES UK LTD,2028755530,"304,717"
Department for Work and Pensions,Housing Benefits,14-Mar-13,HOUSING BENEFIT ADMINISTRATION,HB ENGLAND,LONDON BOROUGH OF BRENT,2028834590,"304,133"
Department for Work and Pensions,Corporate,20-Mar-13,NON ICONS NETWORK SERVICES,CIO CSD ITLR NETWORK,VODAFONE LTD,2028859549,"301,374"
Department for Work and Pensions,Corporate,12-Mar-13,NEW ENTERPRISE ALLOWANCE LOAN PAYMENT (DEL CAPITAL),OPS WDC WSD DEL PROG REPORTING,GREATER LONDON ENTERPRISE,2028762485,"300,000"
Department for Work and Pensions,Housing Benefits,14-Mar-13,HOUSING BENEFIT ADMINISTRATION,HB ENGLAND,CROYDON PEO%,2028834662,"294,984"
Department for Work and Pensions,Corporate,12-Mar-13,NON ICONS NETWORK SERVICES,CIO CSD ITLR NETWORK,VODAFONE LTD,2028762795,"292,469"
Department for Work and Pensions,Housing Benefits,14-Mar-13,HOUSING BENEFIT ADMINISTRATION,HB ENGLAND,SANDWELL BOROUGH COUNCIL,2028834556,"289,861"
Department for Work and Pensions,Housing Benefits,14-Mar-13,HOUSING BENEFIT ADMINISTRATION,HB ENGLAND,LONDON BOROUGH OF ENFIELD,2028834654,"287,279"
Department for Work and Pensions,Corporate,14-Mar-13,Specific DEA expenditure,CHG SPECIAL DISABILITY EMPLOYMENT PROGS DELP,REMPLOY LTD,1005689,"281,642"
Department for Work and Pensions,Employment Programmes,01-Mar-13,SERVICE FEE,WWEG EP WORK CHOICE SURREY AND SUSSEX KENT,WORKING LINKS,2028668674,"280,194"
Department for Work and Pensions,Housing Benefits,14-Mar-13,HOUSING BENEFIT ADMINISTRATION,HB ENGLAND,KIRKLEES METROPOLITAN BOROUGH COUNCIL,2028834785,"280,070"
Department for Work and Pensions,Housing Benefits,14-Mar-13,HOUSING BENEFIT ADMINISTRATION,HB ENGLAND,LONDON BOROUGH OF HARINGEY,2028834589,"278,898"
Department for Work and Pensions,Housing Benefits,14-Mar-13,HOUSING BENEFIT ADMINISTRATION,HB ENGLAND,LONDON BOROUGH OF ISLINGTON,2028834515,"276,633"
Department for Work and Pensions,Housing Benefits,14-Mar-13,HOUSING BENEFIT ADMINISTRATION,HB ENGLAND,LONDON BOROUGH OF EALING,2028834592,"274,161"
Department for Work and Pensions,Housing Benefits,14-Mar-13,HOUSING BENEFIT ADMINISTRATION,HB ENGLAND,NOTTINGHAM CITY COUNCIL,2028834538,"272,390"
Department for Work and Pensions,Corporate,12-Mar-13,HOSTING FIXED PRICE CONTRACTS,CIO CSD ITLR HOSTING,HP ENTERPRISE SERVICES UK LTD,2028760623,"271,731"
Department for Work and Pensions,Corporate,26-Mar-13,CONTRACTED OUT OFFICE SERVICES,OPS NET CC VERTEX JSD NINO,SERCO PUBLIC SERVICES LTD,2028934344,"269,042"
Department for Work and Pensions,Corporate,13-Mar-13,CONTRACTED OUT OFFICE SERVICES,F&C CD OFFICE SERVICES,BALFOUR BEATTY WORKPLACE LTD,2028791465,"267,734"
Department for Work and Pensions,Employment Programmes,01-Mar-13,SERVICE FEE,WWEG EP WORK CHOICE W LON C LON BARNET ENFIELD HARINGEY,SEETEC BUSINESS TECHNOLOGY CENTRE LTD,2028668561,"267,493"
Department for Work and Pensions,Housing Benefits,14-Mar-13,HOUSING BENEFIT ADMINISTRATION,HB ENGLAND,LEICESTER CITY COUNCIL,2028834750,"267,297"
Department for Work and Pensions,Corporate,25-Mar-13,BANK COMMISSION & CHARGES,F&C FIN CONT COBAP BANKING,HSBC BANK PLC,2028925255,"265,477"
Department for Work and Pensions,Housing Benefits,14-Mar-13,HOUSING BENEFIT ADMINISTRATION,HB ENGLAND,SUNDERLAND CITY COUNCIL,2028834557,"263,530"
Department for Work and Pensions,Housing Benefits,14-Mar-13,HOUSING BENEFIT ADMINISTRATION,HB ENGLAND,COVENTRY CITY COUNCIL,2028834640,"262,566"
Department for Work and Pensions,Housing Benefits,14-Mar-13,HOUSING BENEFIT ADMINISTRATION,HB ENGLAND,WALSALL BOROUGH COUNCIL,2028834555,"260,892"
Department for Work and Pensions,Housing Benefits,14-Mar-13,HOUSING BENEFIT ADMINISTRATION,HB SCOTLAND,NORTH LANARKSHIRE COUNCIL,2028834791,"260,522"
Department for Work and Pensions,Housing Benefits,14-Mar-13,HOUSING BENEFIT ADMINISTRATION,HB ENGLAND,LONDON BOROUGH OF GREENWICH,2028834593,"260,393"
Department for Work and Pensions,Corporate,11-Mar-13,TREDDS APPS DEV MANDAYS,CHG UC PROJECT LEDGER CC,HP ENTERPRISE SERVICES UK LTD,2028755530,"259,824"
Department for Work and Pensions,Corporate,26-Mar-13,"FURNITURE, FIXTURES & FITTINGS (PRIME)",OPS OPE ID DEEPENING NCS CO-LOCATION (ENGLAND ROLL-OUT),TELEREAL TRILLIUM,2028935180,"259,208"
Department for Work and Pensions,Housing Benefits,14-Mar-13,HOUSING BENEFIT ADMINISTRATION,HB ENGLAND,WAKEFIELD  DISTRICT COUNCIL,2028834766,"256,589"
Department for Work and Pensions,Corporate,27-Mar-13,PRIME BUSINESS RATES,OPS OPE ESTATES RECESSION,TELEREAL TRILLIUM,2028981832,"256,393"
Department for Work and Pensions,Housing Benefits,14-Mar-13,HOUSING BENEFIT ADMINISTRATION,HB ENGLAND,WIRRAL BOROUGH COUNCIL,2028834508,"255,114"
Department for Work and Pensions,Child Maintenance and Enforcement Commission,05-Mar-13,CONSULTANTS VAT RECOVERABLE,NEW SCHEME DEVELOPMENT AND CLIENT SIDE SUPPORT,ATKINS LTD,1000170551,"254,670"
Department for Work and Pensions,Housing Benefits,14-Mar-13,HOUSING BENEFIT ADMINISTRATION,HB ENGLAND,LONDON BOROUGH OF WANDSWORTH,2028834855,"254,127"
Department for Work and Pensions,Employment Programmes,01-Mar-13,SERVICE FEE,WWEG EP WORK CHOICE DEVON AND CORNWALL,THE PLUSS ORGANISATION,2028668555,"250,536"
Department for Work and Pensions,Housing Benefits,14-Mar-13,HOUSING BENEFIT ADMINISTRATION,HB ENGLAND,BRIGHTON & HOVE COUNCIL,2028834704,"249,878"
Department for Work and Pensions,Housing Benefits,14-Mar-13,HOUSING BENEFIT ADMINISTRATION,HB WALES,CARDIFF CITY COUNCIL,2028834838,"249,188"
Department for Work and Pensions,Housing Benefits,14-Mar-13,HOUSING BENEFIT ADMINISTRATION,HB ENGLAND,KINGSTON UPON HULL CITY COUNCIL,2028834758,"249,072"
Department for Work and Pensions,Corporate,13-Mar-13,PRINTING/BINDING,F&C CD CORPORATE CHARGES,XEROX UK LTD 3W,2028767425,"246,799"
Department for Work and Pensions,Corporate,14-Mar-13,BANK COMMISSION & CHARGES,F&C FIN CONT COBAP BANKING,HSBC BANK PLC,2028830965,"244,945"
Department for Work and Pensions,Corporate,15-Mar-13,NETWORK SERVICES,CIO CSD ITLR NETWORK,BT GLOBAL SERVICES,2028838462,"244,360"
Department for Work and Pensions,Employment Programmes,13-Mar-13,RESIDENTIAL TRAINING COSTS,WWEG EP DELIVERY WELFARE TO WORK PRODUCT SUPPORT,ST LOYES COLLEGE FOUNDATION,2028794126,"244,178"
Department for Work and Pensions,Corporate,07-Mar-13,COST VARIANCE ACCOUNT,CHG ERSP COMMS,M4C,2028744634,"244,006"
Department for Work and Pensions,Employment Programmes,01-Mar-13,SERVICE FEE,WWEG EP WORK CHOICE DERBYSHIRE SOUTH YORKSHIRE,SHAW TRUST,2028667690,"243,452"
Department for Work and Pensions,Housing Benefits,14-Mar-13,HOUSING BENEFIT ADMINISTRATION,HB SCOTLAND,FIFE COUNCIL,2028834679,"242,246"
Department for Work and Pensions,Corporate,12-Mar-13,NON-TREDDS IS IT APPS DEV MANDAY,CHG PIP DELIVERY,IBM UNITED KINGDOM LTD,2028761502,"242,000"
Department for Work and Pensions,Housing Benefits,14-Mar-13,HOUSING BENEFIT ADMINISTRATION,HB ENGLAND,LONDON BOROUGH OF CAMDEN,2028834725,"241,615"
Department for Work and Pensions,Corporate,20-Mar-13,PUBLICITY ADVERTISING MEDIA,CHG ERSP COMMS,M4C,2028857241,"241,234"
Department for Work and Pensions,Employment Programmes,01-Mar-13,SERVICE FEE,WWEG EP WORK CHOICE THE MARCHES COVENTRY AND WARKS,SHAW TRUST,2028667690,"241,044"
Department for Work and Pensions,Corporate,05-Mar-13,TREDDS APPS DEV MANDAYS,CHG UC PROJECT LEDGER CC,HP ENTERPRISE SERVICES UK LTD,2028679565,"239,400"
Department for Work and Pensions,Housing Benefits,14-Mar-13,HOUSING BENEFIT ADMINISTRATION,HB ENGLAND,SALFORD CITY COUNCIL,2028834574,"239,016"
Department for Work and Pensions,Housing Benefits,14-Mar-13,HOUSING BENEFIT ADMINISTRATION,HB ENGLAND,WOLVERHAMPTON CITY COUNCIL,2028834661,"237,952"
Department for Work and Pensions,Housing Benefits,14-Mar-13,HOUSING BENEFIT ADMINISTRATION,HB ENGLAND,DONCASTER METROPOLITAN BOROUGH COUNCIL,2028834745,"236,670"
Department for Work and Pensions,Corporate,12-Mar-13,AMS SERVICES,CIO CSD ITLR AMS,HP ENTERPRISE SERVICES UK LTD,2028760623,"235,605"
Department for Work and Pensions,Housing Benefits,14-Mar-13,HOUSING BENEFIT ADMINISTRATION,HB ENGLAND,CITY OF WESTMINSTER,2028834840,"235,198"
Department for Work and Pensions,Housing Benefits,14-Mar-13,HOUSING BENEFIT ADMINISTRATION,HB ENGLAND,LONDON BOROUGH OF BARNET,2028834655,"234,397"
Department for Work and Pensions,Corporate,22-Mar-13,NON-TREDDS IS IT SERVICES (HOSTING),OPS CCS TUO,ATOS ORIGIN IT SERVICES UK LTD,2028920501,"234,031"
Department for Work and Pensions,Housing Benefits,14-Mar-13,HOUSING BENEFIT ADMINISTRATION,HB ENGLAND,NEWCASTLE CITY COUNCIL,2028834856,"233,582"
Department for Work and Pensions,Employment Programmes,01-Mar-13,SERVICE FEE,WWEG EP WORK CHOICE BEDFORDSHIRE AND HERTFORDSHIRE ESSEX,SHAW TRUST,2028667690,"231,883"
Department for Work and Pensions,Employment Programmes,12-Mar-13,RESIDENTIAL TRAINING COSTS,WWEG EP DELIVERY WELFARE TO WORK PRODUCT SUPPORT,QUEEN ELIZABETHS FOUNDATION TRAINING COLLEGE,2028759967,"224,835"
Department for Work and Pensions,Corporate,13-Mar-13,CONTRACTED OUT DOCUMENT SCANNING,OPS OPE CENTRAL CONTACTS,BALFOUR BEATTY WORKPLACE LTD,2028791465,"224,483"
Department for Work and Pensions,Housing Benefits,14-Mar-13,HOUSING BENEFIT ADMINISTRATION,HB ENGLAND,WIGAN BOROUGH COUNCIL,2028834629,"223,617"
Department for Work and Pensions,Housing Benefits,14-Mar-13,HOUSING BENEFIT ADMINISTRATION,HB ENGLAND,LONDON BOROUGH OF WALTHAM FOREST,2028834792,"222,536"
Department for Work and Pensions,Employment Programmes,01-Mar-13,SERVICE FEE,WWEG EP WORK CHOICE WEST YORKSHIRE,THE PLUSS ORGANISATION,2028668555,"221,985"
Department for Work and Pensions,Corporate,06-Mar-13,FSF - PARTNERSHIP GRANTS - TO HELP JSA CLIENTS INTO WORK,OPS WDC WSD LN EAST LONDON DISTRICT OFFICE,A4E LTD,2028703599,"219,517"
Department for Work and Pensions,European Social Fund,28-Mar-13,MA ESF(D) PROGRAMME EXPENDITURE EC PREFUNDED L A's,WWEG EUROPEAN SOCIAL FUND PROGRAMME 2007-2013,CENTRAL BEDFORDSHIRE COUNCIL,5000001312,"219,056"
Department for Work and Pensions,Housing Benefits,14-Mar-13,HOUSING BENEFIT ADMINISTRATION,HB ENGLAND,BOLTON METROPOLITAN BOROUGH COUNCIL,2028834610,"217,866"
Department for Work and Pensions,Housing Benefits,14-Mar-13,HOUSING BENEFIT ADMINISTRATION,HB SCOTLAND,SOUTH LANARKSHIRE COUNCIL,2028834698,"215,286"
Department for Work and Pensions,Corporate,12-Mar-13,NON-TREDDS APPS DEV FIXED PRICE CONTRACTS,CHG UC PROJECT LEDGER CC,IBM UNITED KINGDOM LTD,2028761502,"214,616"
Department for Work and Pensions,Corporate,12-Mar-13,TREDDS APPS DEV FIXED PRICE CONTRACTS,CHG ELECTRONIC SIGNING,HP ENTERPRISE SERVICES UK LTD,2028760623,"214,560"
Department for Work and Pensions,Housing Benefits,14-Mar-13,HOUSING BENEFIT ADMINISTRATION,HB ENGLAND,WILTSHIRE COUNCIL,2028834575,"214,367"
Department for Work and Pensions,Corporate,15-Mar-13,MEDICAL OPINIONS (EMP) DISABILITY LIVING ALLOWANCE (DLA),OPS BEN DD DISABILITY CSD OVERLAY,ATOS HEALTHCARE,2028840001,"213,238"
Department for Work and Pensions,Housing Benefits,14-Mar-13,HOUSING BENEFIT ADMINISTRATION,HB ENGLAND,DUDLEY METROPOLITAN BOROUGH COUNCIL,2028834539,"210,562"
Department for Work and Pensions,Employment Programmes,01-Mar-13,SERVICE FEE,WWEG EP WORK CHOICE G MANCHESTER CENTRAL; G MANCHESTER E & W,SHAW TRUST,2028667690,"210,465"
Department for Work and Pensions,Housing Benefits,14-Mar-13,HOUSING BENEFIT ADMINISTRATION,HB ENGLAND,STOKE ON TRENT CITY COUNCIL,2028834639,"209,943"
Department for Work and Pensions,Employment Programmes,13-Mar-13,RESIDENTIAL TRAINING COSTS,WWEG EP DELIVERY WELFARE TO WORK PRODUCT SUPPORT,FINCHALE TRAINING COLLEGE,2028801679,"209,645"
Department for Work and Pensions,Corporate,21-Mar-13,VALUATION OFFICE,OPS CCS HDD VOA,VALUATION OFFICE AGENCY,2003757,"208,333"
Department for Work and Pensions,Corporate,01-Mar-13,NON-TREDDS IS IT APPS DEV MANDAY,CHG BENEFIT CAP,CAPGEMINI UK PLC,2028667036,"206,957"
Department for Work and Pensions,Employment Programmes,01-Mar-13,SERVICE FEE,WWEG EP WORK CHOICE NORTH AND MID WALES SOUTH EAST WALES,WORKING LINKS,2028668674,"205,293"
Department for Work and Pensions,Housing Benefits,14-Mar-13,HOUSING BENEFIT ADMINISTRATION,HB ENGLAND,NORTHUMBERLAND COUNCIL,2028834594,"204,171"
Department for Work and Pensions,Corporate,05-Mar-13,TREDDS APPS DEV MANDAYS,CHG WORK PROGRAMME,HP ENTERPRISE SERVICES UK LTD,2028679565,"203,486"
Department for Work and Pensions,Employment Programmes,01-Mar-13,SERVICE FEE,WWEG EP WORK CHOICE CAMBRIDGESHIRE AND SUFFOLK NORFOLK,SHAW TRUST,2028667690,"203,440"
Department for Work and Pensions,Employment Programmes,01-Mar-13,SERVICE FEE,WWEG EP WORK CHOICE BIRMINGHAM SOLIHULL BLACK COUNTRY,ADVANCE HOUSING & SUPPORT LTD,2028668673,"200,956"
Department for Work and Pensions,Corporate,18-Mar-13,PROFESSIONAL ADVICE & OPINION VAT RECOVERABLE,PSG LEGAL SERVICES LITIGATION & EMPLOYMENT,FIELD FISHER WATERHOUSE LLP,2028844498,"199,341"
Department for Work and Pensions,Corporate,07-Mar-13,POSTAGE,OPS OPE CENTRAL CONTACTS,ROYAL MAIL GROUP PLC,2028744935,"198,296"
Department for Work and Pensions,Housing Benefits,14-Mar-13,HOUSING BENEFIT ADMINISTRATION,HB ENGLAND,PLYMOUTH CITY COUNCIL,2028834513,"198,082"
Department for Work and Pensions,Corporate,01-Mar-13,NON PRIME PROPERTY COSTS,OPS OPE ESTATES BASELINE,DTZ MANAGEMENT SERVICES LTD,2028669718,"197,224"
Department for Work and Pensions,Housing Benefits,14-Mar-13,HOUSING BENEFIT ADMINISTRATION,HB ENGLAND,SEFTON METROPOLITAN BOROUGH COUNCIL,2028834656,"195,941"
Department for Work and Pensions,Corporate,28-Mar-13,NON-TREDDS IS IT SERVICES (AMS),CIO C SS S & E IT DIRECTOR GATEWAY SERVICE DELIVER,ATOS ORIGIN IT SERVICES UK LTD,2029000647,"194,426"
Department for Work and Pensions,Corporate,11-Mar-13,CONSULTANTS VAT RECOVERABLE,CHG DELIVERING THE IRIS ORGANISATION,CAPGEMINI UK PLC,2028756129,"193,659"
Department for Work and Pensions,Corporate,21-Mar-13,NEW ENTERPRISE ALLOWANCE MENTOR MATCHING,OPS WDC WSD NE SOUTH YORKSHIRE DISTRICT OFFICE,DONCASTER CHAMBER,2028915580,"191,409"
Department for Work and Pensions,Corporate,28-Mar-13,NON-TREDDS APPS DEV FIXED PRICE CONTRACTS,CHG PIP DELIVERY,CAPGEMINI UK PLC,2028999799,"191,314"
Department for Work and Pensions,Corporate,14-Mar-13,FSF - PARTNERSHIP GRANTS - TO HELP JSA CLIENTS INTO WORK,OPS WDC WSD SC GLASGOW LANARKSHIRE E DUMBARTONSHIRE DO,SOUTH LANARKSHIRE COUNCIL,2028829129,"191,111"
Department for Work and Pensions,Corporate,27-Mar-13,PACS INTER-VOTE CREDITOR,BALANCE SHEET,DWP MANUAL PAYMENTS,2003764,"190,368"
Department for Work and Pensions,Employment Programmes,01-Mar-13,SERVICE FEE,WWEG EP WORK CHOICE GLASGOW LANARKS AND E DUNBART,SHAW TRUST,2028667690,"189,582"
Department for Work and Pensions,Corporate,21-Mar-13,FSF - SUPPORT CONTRACT MODULES FOR JSA JOBSEEKERS,OPS WDC WSD LN SOUTH LONDON DISTRICT OFFICE,A4E LTD,2028915242,"189,157"
Department for Work and Pensions,Corporate,28-Mar-13,FSF - SUPPORT CONTRACT MODULES FOR JSA JOBSEEKERS,OPS WDC WSD NW GTR MANCHESTER CENTRAL AND CHESHIRE DO,STANDGUIDE LTD,2029002395,"189,012"
Department for Work and Pensions,Housing Benefits,14-Mar-13,HOUSING BENEFIT ADMINISTRATION,HB ENGLAND,LONDON BOROUGH OF HOUNSLOW,2028834633,"188,858"
Department for Work and Pensions,Housing Benefits,14-Mar-13,HOUSING BENEFIT ADMINISTRATION,HB ENGLAND,LONDON BOROUGH OF HILLINGDON,2028834502,"188,787"
Department for Work and Pensions,Employment Programmes,01-Mar-13,SERVICE FEE,WWEG EP WORK CHOICE NOTTINGHAMSHIRE LINCOLNSHIRE AND RUTLAND,SHAW TRUST,2028667690,"188,051"
Department for Work and Pensions,Corporate,28-Mar-13,NON-TREDDS IS IT APPS DEV MANDAY,CHG CP SERVICE ORIENTATED ARCHITECTURE,ACCENTURE UK LTD,2028999420,"187,393"
Department for Work and Pensions,Corporate,20-Mar-13,INNOVATION FUND,CHG INNOVATION FUND SOCIAL INV BONDS,THINK FORWARD SOCIAL IMPACT 1 LTD,2028861828,"186,432"
Department for Work and Pensions,Housing Benefits,14-Mar-13,HOUSING BENEFIT ADMINISTRATION,HB ENGLAND,CHESHIRE WEST & CHESTER COUNCIL,2028834597,"185,300"
Department for Work and Pensions,Employment Programmes,01-Mar-13,SERVICE FEE,WWEG EP WORK CHOICE N E YORKS AND THE HUMBER TEES VALLEY,SHAW TRUST,2028667690,"185,021"
Department for Work and Pensions,Housing Benefits,14-Mar-13,HOUSING BENEFIT ADMINISTRATION,HB ENGLAND,LONDON BOROUGH OF HAMMERSMITH & FULHAM,2028834748,"184,562"
Department for Work and Pensions,Housing Benefits,14-Mar-13,HOUSING BENEFIT ADMINISTRATION,HB ENGLAND,TAMESIDE BOROUGH COUNCIL,2028834588,"183,277"
Department for Work and Pensions,Child Maintenance and Enforcement Commission,21-Mar-13,HOSTING FIXED PRICE CONTRACTS,LEGACY SYSTEMS IT RUNNING COSTS - IOL,DWP,2000880,"183,096"
Department for Work and Pensions,Child Maintenance and Enforcement Commission,14-Mar-13,Client Fund Write-Offs,CSA MISCELLANEOUS 5,CSA CLIENT FUNDS,2000866,"182,917"
Department for Work and Pensions,Housing Benefits,14-Mar-13,HOUSING BENEFIT ADMINISTRATION,HB ENGLAND,EAST RIDING OF YORKSHIRE BOROUGH COUNCIL,2028834757,"181,743"
Department for Work and Pensions,Housing Benefits,14-Mar-13,HOUSING BENEFIT ADMINISTRATION,HB WALES,RHONDDA CYNON TAFF COUNTY BOROUGH COUNCIL,2028834628,"180,950"
Department for Work and Pensions,Employment Programmes,01-Mar-13,SERVICE FEE,WWEG EP WORK CHOICE HAMPSHIRE AND ISLE OF WIGHT,CDG WISE ABILITY LTD,2028669450,"180,688"
Department for Work and Pensions,Housing Benefits,14-Mar-13,HOUSING BENEFIT ADMINISTRATION,HB ENGLAND,SOUTHAMPTON CITY COUNCIL,2028834506,"179,654"
Department for Work and Pensions,Housing Benefits,14-Mar-13,HOUSING BENEFIT ADMINISTRATION,HB ENGLAND,ROTHERHAM BOROUGH COUNCIL,2028834585,"179,167"
Department for Work and Pensions,Corporate,21-Mar-13,FSF - SUPPORT CONTRACT MODULES FOR JSA JOBSEEKERS,OPS WDC WSD LN EAST LONDON DISTRICT OFFICE,A4E LTD,2028915242,"178,992"
Department for Work and Pensions,Housing Benefits,14-Mar-13,HOUSING BENEFIT ADMINISTRATION,HB ENGLAND,MEDWAY TOWNS COUNCIL,2028834733,"178,213"
Department for Work and Pensions,Corporate,08-Mar-13,NON ICONS NETWORK SERVICES,CIO CSD ITLR NETWORK,TMOBILE LTD,2028753126,"176,719"
Department for Work and Pensions,Employment Programmes,01-Mar-13,SERVICE FEE,WWEG EP WORK CHOICE S TYNE AND WEAR VALLEY NORTHUMBRIA,SHAW TRUST,2028667690,"176,695"
Department for Work and Pensions,Corporate,14-Mar-13,Specific DEA expenditure,CHG SPECIAL DISABILITY EMPLOYMENT PROGS DELP,REMPLOY LTD,1005683,"176,347"
Department for Work and Pensions,Employment Programmes,01-Mar-13,SERVICE FEE,WWEG EP WORK CHOICE MERSEYSIDE CHESH HALTON & WARRINGTON,SHAW TRUST,2028667690,"175,595"
Department for Work and Pensions,Housing Benefits,14-Mar-13,HOUSING BENEFIT ADMINISTRATION,HB ENGLAND,PORTSMOUTH CITY COUNCIL,2028834700,"175,476"
Department for Work and Pensions,Corporate,21-Mar-13,CONSULTANTS VAT RECOVERABLE,F&C CD ESTATES PROFESSIONAL FEES,DRIVERS JONAS LLP,2028915480,"175,052"
Department for Work and Pensions,Housing Benefits,14-Mar-13,HOUSING BENEFIT ADMINISTRATION,HB ENGLAND,OLDHAM BOROUGH COUNCIL,2028834608,"175,032"
Department for Work and Pensions,Housing Benefits,14-Mar-13,HOUSING BENEFIT ADMINISTRATION,HB ENGLAND,CHESHIRE EAST BOROUGH COUNCIL,2028834598,"174,469"
Department for Work and Pensions,Housing Benefits,14-Mar-13,HOUSING BENEFIT ADMINISTRATION,HB ENGLAND,BARNSLEY BOROUGH COUNCIL,2028834586,"174,149"
Department for Work and Pensions,Housing Benefits,14-Mar-13,HOUSING BENEFIT ADMINISTRATION,HB WALES,SWANSEA CITY COUNCIL,2028834627,"172,620"
Department for Work and Pensions,Housing Benefits,14-Mar-13,HOUSING BENEFIT ADMINISTRATION,HB ENGLAND,MILTON KEYNES BOROUGH COUNCIL,2028834691,"171,127"
Department for Work and Pensions,Employment Programmes,01-Mar-13,SERVICE FEE,WWEG EP WORK CHOICE HIGH ISLDS AND CLYDE COAST AND GRAMP,MOMENTUM SCOTLAND,2028667687,"170,871"
Department for Work and Pensions,Corporate,28-Mar-13,SOC SEC RESEARCH BUDGET,OPS NON-BASELINE DEL P MANAGEMENT ASSUMPTIONS,TNS BMRB,2028997942,"170,825"
Department for Work and Pensions,Employment Programmes,01-Mar-13,SERVICE FEE,WWEG EP WORK CHOICE ED LOTH BORDS AYR DUM GALL INVER,SHAW TRUST,2028667690,"170,665"
Department for Work and Pensions,Housing Benefits,14-Mar-13,HOUSING BENEFIT ADMINISTRATION,HB ENGLAND,DERBY CITY COUNCIL,2028834863,"169,196"
Department for Work and Pensions,Employment Programmes,01-Mar-13,SERVICE FEE,WWEG EP WORK CHOICE W OF ENGLAND GLOS WILTS AND SWINDON,WORKING LINKS,2028668674,"168,473"
Department for Work and Pensions,Corporate,13-Mar-13,HOSTING SERVICES,CIO CSD ITLR HOSTING,HP ENTERPRISE SERVICES UK LTD,2028791719,"168,359"
Department for Work and Pensions,Housing Benefits,14-Mar-13,HOUSING BENEFIT ADMINISTRATION,HB ENGLAND,LONDON BOROUGH OF HARROW,2028834772,"168,124"
Department for Work and Pensions,Corporate,19-Mar-13,FSF - SUPPORT CONTRACT MODULES FOR JSA JOBSEEKERS,OPS WDC WSD NW GREATER MANCHESTER E AND W DO,STANDGUIDE LTD,2028850656,"167,854"
Department for Work and Pensions,Housing Benefits,14-Mar-13,HOUSING BENEFIT ADMINISTRATION,HB ENGLAND,STOCKPORT BOROUGH COUNCIL,2028834606,"167,146"
Department for Work and Pensions,Housing Benefits,14-Mar-13,HOUSING BENEFIT ADMINISTRATION,HB ENGLAND,ROCHDALE BOROUGH COUNCIL,2028834607,"166,961"
Department for Work and Pensions,Housing Benefits,14-Mar-13,HOUSING BENEFIT ADMINISTRATION,HB ENGLAND,SHROPSHIRE COUNCIL,2028834576,"164,950"
Department for Work and Pensions,Corporate,25-Mar-13,FSF - PARTNERSHIP GRANTS - TO HELP JSA CLIENTS INTO WORK,OPS WDC WSD SC GLASGOW LANARKSHIRE E DUMBARTONSHIRE DO,NORTH LANARKSHIRE COUNCIL,2028925176,"164,108"
Department for Work and Pensions,Housing Benefits,14-Mar-13,HOUSING BENEFIT ADMINISTRATION,HB ENGLAND,LONDON BOROUGH OF BARKING & DAGENHAM,2028834699,"163,750"
Department for Work and Pensions,Corporate,25-Mar-13,GENERAL PAYMENTS,CHG RIGHT TO CONTROL DELP,MORI SOCIAL RESEARCH INSTITUTE,2028926657,"162,614"
Department for Work and Pensions,Housing Benefits,14-Mar-13,HOUSING BENEFIT ADMINISTRATION,HB ENGLAND,BLACKPOOL BOROUGH COUNCIL,2028834591,"161,386"
Department for Work and Pensions,Housing Benefits,14-Mar-13,HOUSING BENEFIT ADMINISTRATION,HB ENGLAND,LONDON BOROUGH OF BROMLEY,2028834612,"161,253"
Department for Work and Pensions,European Social Fund,28-Mar-13,MA ESF(D) PROGRAMME EXPENDITURE EC PREFUNDED L A's,WWEG EUROPEAN SOCIAL FUND PROGRAMME 2007-2013,KNOWSLEY METROPOLITIAN BOROUGH COUNCIL,5000001313,"161,156"
Department for Work and Pensions,Corporate,07-Mar-13,SOFTWARE LICENCES,CHG PIP DELIVERY,SPECIALIST COMPUTER CENTRES PLC,2028748231,"161,032"
Department for Work and Pensions,Corporate,19-Mar-13,CONTRACTED OUT OFFICE SERVICES,CHG APPEALS REFORM,HMCTS,2003743,"160,856"
Department for Work and Pensions,Child Maintenance and Enforcement Commission,27-Mar-13,Client Fund Write-Offs,CSA MISCELLANEOUS 5,CSA CLIENT FUNDS,1001267,"160,790"
Department for Work and Pensions,Employment Programmes,01-Mar-13,SERVICE FEE,WWEG EP WORK CHOICE FORTH VALLEY FIFE AND TAYSIDE,SHAW TRUST,2028667690,"160,754"
Department for Work and Pensions,Corporate,19-Mar-13,NON PRIME PROPERTY COSTS VAT RECOVERABLE,F&C CD DURHAM HOUSE,HM REVENUE & CUSTOMS,2003747,"159,899"
Department for Work and Pensions,Child Maintenance and Enforcement Commission,19-Mar-13,CORPORATE COSTS,NEW SCHEME HMRC 2,HMRC,2000867,"159,699"
Department for Work and Pensions,Corporate,01-Mar-13,SOC SEC RESEARCH BUDGET,CHG WORK PROGRAMME,INSTITUTE FOR EMPLOYMENT STUDIES,2028670385,"159,696"
Department for Work and Pensions,Corporate,26-Mar-13,HOSTING SERVICES,CIO CSD ITLR HOSTING,HP ENTERPRISE SERVICES UK LTD,2028934802,"159,513"
Department for Work and Pensions,Employment Programmes,01-Mar-13,SERVICE FEE,WWEG EP WORK CHOICE S LON LAMBETH SOUTHWARK WANDSWORTH,INGEUS UK LTD,2028668374,"159,272"
Department for Work and Pensions,Child Maintenance and Enforcement Commission,21-Mar-13,CORPORATE COSTS,"DWP RECHARGE - DOCUMENT HANDLING, POSTAGE, COURIER",DWP,2000884,"158,333"
Department for Work and Pensions,Child Maintenance and Enforcement Commission,12-Mar-13,CORPORATE COSTS,"DWP RECHARGE - DOCUMENT HANDLING, POSTAGE, COURIER",DWP,2000849,"158,333"
Department for Work and Pensions,Corporate,27-Mar-13,FSF - SUPPORT CONTRACT MODULES FOR JSA JOBSEEKERS,OPS WDC WSD NW MERSEYSIDE DISTRICT OFFICE,REED IN PARTNERSHIP LTD,2028953203,"157,388"
Department for Work and Pensions,Housing Benefits,14-Mar-13,HOUSING BENEFIT ADMINISTRATION,HB ENGLAND,LONDON BOROUGH OF REDBRIDGE,2028834505,"157,310"
Department for Work and Pensions,Corporate,18-Mar-13,FSF - SUPPORT CONTRACT MODULES FOR JSA JOBSEEKERS,OPS WDC WSD NW GTR MANCHESTER CENTRAL AND CHESHIRE DO,STANDGUIDE LTD,2028841225,"156,838"
Department for Work and Pensions,Corporate,15-Mar-13,CONTRACTED OUT OFFICE SERVICES,F&C OPS FIN DEBT OPS CONTROL,EXPERIAN LTD,2028838464,"156,750"
Department for Work and Pensions,Housing Benefits,14-Mar-13,HOUSING BENEFIT ADMINISTRATION,HB ENGLAND,KNOWSLEY BOROUGH COUNCIL,2028834535,"156,571"
Department for Work and Pensions,Child Maintenance and Enforcement Commission,21-Mar-13,IS/IT RECHARGES TO BU'S COVERING RESOURCES WITHIN CENTRALLY (CIT) FUNDED SERVICES AS PER THE SSBA & ICONS CONTRACT,LEGACY SYSTEMS IT RUNNING COSTS - IOL,DWP,2000880,"156,470"
Department for Work and Pensions,Housing Benefits,14-Mar-13,HOUSING BENEFIT ADMINISTRATION,HB ENGLAND,LONDON BOROUGH OF KENSINGTON & CHELSEA,2028834783,"156,449"
Department for Work and Pensions,Child Maintenance and Enforcement Commission,11-Mar-13,TREDDS IS IT CONSULTANCY (HOSTING) NON ADVICE,FUTURE SYSTEM IT RUNNING COSTS - IOL,HP ENTERPRISE SERVICES UK LTD,1000171262,"155,666"
Department for Work and Pensions,Corporate,12-Mar-13,SOC SEC RESEARCH BUDGET,PSG IGS STAT SERVICES,NATIONAL CENTRE FOR SOCIAL RESEARCH,2028759627,"155,348"
Department for Work and Pensions,Employment Programmes,28-Mar-13,SERVICE FEE,WWEG EP CORE MWA CPA NORTH WEST,JHP GROUP LTD,2029000750,"155,186"
Department for Work and Pensions,Housing Benefits,14-Mar-13,HOUSING BENEFIT ADMINISTRATION,HB ENGLAND,GATESHEAD BOROUGH COUNCIL,2028834584,"154,560"
Department for Work and Pensions,Corporate,26-Mar-13,MEDICAL OPINIONS (EMP) DISABILITY LIVING ALLOWANCE (DLA),OPS BEN DD DISABILITY CSD OVERLAY,ATOS HEALTHCARE,2028932151,"152,121"
Department for Work and Pensions,Housing Benefits,14-Mar-13,HOUSING BENEFIT ADMINISTRATION,HB ENGLAND,BOURNEMOUTH BOROUGH COUNCIL,2028834705,"151,680"
Department for Work and Pensions,Employment Programmes,01-Mar-13,SERVICE FEE,WWEG EP WORK CHOICE DORSET AND SOMERSET,SHAW TRUST,2028667690,"151,216"
Department for Work and Pensions,Housing Benefits,14-Mar-13,HOUSING BENEFIT ADMINISTRATION,HB ENGLAND,MIDDLESBROUGH COUNCIL,2028834789,"150,972"
Department for Work and Pensions,Employment Programmes,28-Mar-13,SERVICE FEE,WWEG EP CORE MWA CPA LONDON,SEETEC,2029000370,"150,678"
Department for Work and Pensions,Housing Benefits,14-Mar-13,HOUSING BENEFIT ADMINISTRATION,HB ENGLAND,CALDERDALE BOROUGH COUNCIL,2028834804,"150,305"
Department for Work and Pensions,Housing Benefits,14-Mar-13,HOUSING BENEFIT ADMINISTRATION,HB ENGLAND,NORTH TYNESIDE BOROUGH COUNCIL,2028834583,"148,112"
Department for Work and Pensions,Housing Benefits,14-Mar-13,HOUSING BENEFIT ADMINISTRATION,HB SCOTLAND,DUNDEE CITY COUNCIL,2028834787,"147,951"
Department for Work and Pensions,Corporate,26-Mar-13,NON PRIME PROPERTY COSTS,CHG UC BUSINESS & IT SOLUTIONS,HP ENTERPRISE SERVICES UK LTD,2028934801,"147,554"
Department for Work and Pensions,Housing Benefits,14-Mar-13,HOUSING BENEFIT ADMINISTRATION,HB ENGLAND,STOCKTON  BOROUGH COUNCIL,2028834670,"146,775"
Department for Work and Pensions,Corporate,14-Mar-13,NEW ENTERPRISE ALLOWANCE MENTOR MATCHING,OPS WDC WSD NW GREATER MANCHESTER E AND W DO,BLUE ORCHID SUPPORT SERVICES,2028833209,"146,625"
Department for Work and Pensions,Child Maintenance and Enforcement Commission,22-Mar-13,CONSULTANTS VAT RECOVERABLE,NEW SCHEME DEVELOPMENT AND CLIENT SIDE SUPPORT,ATKINS LTD,1000172666,"146,439"
Department for Work and Pensions,Housing Benefits,14-Mar-13,HOUSING BENEFIT ADMINISTRATION,HB SCOTLAND,RENFREWSHIRE COUNCIL,2028834813,"146,016"
Department for Work and Pensions,Housing Benefits,14-Mar-13,HOUSING BENEFIT ADMINISTRATION,HB ENGLAND,NORTH EAST LINCOLNSHIRE COUNCIL,2028834562,"145,739"
Department for Work and Pensions,Corporate,21-Mar-13,CONTRACTED OUT OFFICE SERVICES,HR CSODD,CABINET OFFICE,2003755,"145,086"
Department for Work and Pensions,Corporate,06-Mar-13,SOFTWARE LICENCES,CIO CSD ITLR HOSTING,SPECIALIST COMPUTER CENTRES PLC,2028696246,"144,925"
Department for Work and Pensions,Housing Benefits,14-Mar-13,HOUSING BENEFIT ADMINISTRATION,HB ENGLAND,ST HELENS BOROUGH COUNCIL,2028834587,"144,582"
Department for Work and Pensions,Housing Benefits,14-Mar-13,HOUSING BENEFIT ADMINISTRATION,HB ENGLAND,NORTHAMPTON BOROUGH COUNCIL,2028834811,"144,481"
Department for Work and Pensions,Corporate,21-Mar-13,NEW ENTERPRISE ALLOWANCE MENTOR MATCHING,OPS WDC WSD LN SOUTH LONDON DISTRICT OFFICE,IXION HOLDINGS LTD,2028917522,"143,605"
Department for Work and Pensions,Corporate,26-Mar-13,PROFESSIONAL ADVICE & OPINION VAT RECOVERABLE,PSG LEGAL SERVICES COMMERCIAL,LOVELLS,2028932160,"141,786"
Department for Work and Pensions,Housing Benefits,14-Mar-13,HOUSING BENEFIT ADMINISTRATION,HB ENGLAND,PETERBOROUGH CITY COUNCIL,2028834724,"141,455"
Department for Work and Pensions,European Social Fund,13-Mar-13,MA ESF(D) PROGRAMME EXPENDITURE EC PREFUNDED L A's,WWEG EUROPEAN SOCIAL FUND PROGRAMME 2007-2013,MEDWAY COUNCIL,5000001304,"141,262"
Department for Work and Pensions,Corporate,01-Mar-13,CONTRACTORS & STAFF SUBSTITUTIONS,CHG UNIVERSAL CREDIT PROG DIRECTOR & PMO,DETICA LTD,2028667617,"141,144"
Department for Work and Pensions,Housing Benefits,14-Mar-13,HOUSING BENEFIT ADMINISTRATION,HB SCOTLAND,HIGHLAND COUNCIL,2028834630,"140,740"
Department for Work and Pensions,Child Maintenance and Enforcement Commission,21-Mar-13,SIAM MANAGEMENT SERVICES,LEGACY SYSTEMS IT RUNNING COSTS - IOL,DWP,2000880,"138,891"
Department for Work and Pensions,Housing Benefits,14-Mar-13,HOUSING BENEFIT ADMINISTRATION,HB ENGLAND,LUTON BOROUGH COUNCIL,2028834770,"138,735"
Department for Work and Pensions,Corporate,27-Mar-13,NON PRIME PROPERTY COSTS VAT RECOVERABLE,F&C CD DURHAM HOUSE,HMRC,2003767,"138,484"
Department for Work and Pensions,Housing Benefits,14-Mar-13,HOUSING BENEFIT ADMINISTRATION,HB ENGLAND,NORTH SOMERSET COUNCIL,2028834516,"137,034"
Department for Work and Pensions,Housing Benefits,14-Mar-13,HOUSING BENEFIT ADMINISTRATION,HB ENGLAND,SOUTH GLOUCESTERSHIRE COUNCIL,2028834545,"136,412"
Department for Work and Pensions,Housing Benefits,14-Mar-13,HOUSING BENEFIT ADMINISTRATION,HB ENGLAND,SOUTHEND ON SEA BOROUGH COUNCIL,2028834636,"136,271"
Department for Work and Pensions,Employment Programmes,01-Mar-13,SERVICE FEE,WWEG EP WORK CHOICE BERKSHIRE BUCKS AND OXFORDSHIRE,SHAW TRUST,2028667690,"136,104"
Department for Work and Pensions,Corporate,21-Mar-13,STATIONERY/ PUBLICATIONS/IT CONSUMABLES,CHG STATE PENSION REFORM SINGLE TIER,HMRC,2003763,"136,099"
Department for Work and Pensions,Housing Benefits,14-Mar-13,HOUSING BENEFIT ADMINISTRATION,HB ENGLAND,TORBAY  COUNCIL,2028834547,"135,816"
Department for Work and Pensions,Employment Programmes,19-Mar-13,SUPPORT FOR THE VERY LONG TERM UNEMPLOYED SUSTAINED JOB OUTCOME FEE,WWEG EP SVLTU CPA1 EAST OF ENGLAND,ATOS IT SERVICES UK LTD,2028845274,"135,200"
Department for Work and Pensions,Corporate,12-Mar-13,TREDDS APPS DEV MANDAYS,CHG PIP DELIVERY,HP ENTERPRISE SERVICES UK LTD,2028760623,"134,432"
Department for Work and Pensions,Corporate,26-Mar-13,CONTRACTORS & STAFF SUBSTITUTIONS,CHG UNIVERSAL CREDIT PROG DIRECTOR & PMO,DETICA LTD,2028932532,"133,380"
Department for Work and Pensions,Housing Benefits,14-Mar-13,HOUSING BENEFIT ADMINISTRATION,HB ENGLAND,LONDON BOROUGH OF HAVERING,2028834866,"133,223"
Department for Work and Pensions,Employment Programmes,01-Mar-13,SERVICE FEE,WWEG EP CHOICE WALT FOR RBRID HAV BARK DAG C E LON,WORKING LINKS,2028668674,"132,585"
Department for Work and Pensions,Housing Benefits,14-Mar-13,HOUSING BENEFIT ADMINISTRATION,HB ENGLAND,LONDON BOROUGH OF BEXLEY,2028834613,"132,528"
Department for Work and Pensions,Housing Benefits,14-Mar-13,HOUSING BENEFIT ADMINISTRATION,HB ENGLAND,THANET DISTRICT COUNCIL,2028834861,"132,148"
Department for Work and Pensions,Corporate,13-Mar-13,CONTRACTED OUT OFFICE SERVICES,F&C OPS FIN DM CONTRACTS,BALFOUR BEATTY WORKPLACE LTD,2028791465,"131,213"
Department for Work and Pensions,Housing Benefits,14-Mar-13,HOUSING BENEFIT ADMINISTRATION,HB ENGLAND,SOUTH TYNESIDE METROPOLITAN BOROUGH COUNCIL,2028834558,"131,004"
Department for Work and Pensions,Housing Benefits,14-Mar-13,HOUSING BENEFIT ADMINISTRATION,HB ENGLAND,TRAFFORD BOROUGH COUNCIL,2028834810,"130,689"
Department for Work and Pensions,Housing Benefits,14-Mar-13,HOUSING BENEFIT ADMINISTRATION,HB ENGLAND,SWINDON BOROUGH COUNCIL,2028834500,"129,872"
Department for Work and Pensions,Housing Benefits,14-Mar-13,HOUSING BENEFIT ADMINISTRATION,HB ENGLAND,LONDON BOROUGH OF MERTON,2028834546,"128,747"
Department for Work and Pensions,Child Maintenance and Enforcement Commission,14-Mar-13,REMOTE STORAGE COSTS VAT RECOV,CS CENTRALLY HELD BUDGETS FILESTORES,CAPITA BUSINESS SERVICES LTD,1000171669,"128,200"
Department for Work and Pensions,Housing Benefits,14-Mar-13,HOUSING BENEFIT ADMINISTRATION,HB SCOTLAND,NORTH AYRSHIRE COUNCIL,2028834487,"127,372"
Department for Work and Pensions,Corporate,06-Mar-13,PENS ADVISORY SERVICE GIA,CHG ERSP COMMS,THE PENSIONS ADVISORY SERVICE,1005678,"127,000"
Department for Work and Pensions,Employment Programmes,01-Mar-13,SERVICE FEE,WWEG EP WORK CHOICE CUMBRIA AND LANCASHIRE,SHAW TRUST,2028667690,"126,734"
Department for Work and Pensions,Corporate,08-Mar-13,STAFF TRAINING VAT RECOVERABLE,HR CONTRACTUAL L AND D,FLETCHER CONSULTANCY,2028748831,"126,434"
Department for Work and Pensions,Corporate,27-Mar-13,TREDDS APPS DEV MANDAYS,CHG PIP DELIVERY,HMRC,2003771,"125,861"
Department for Work and Pensions,Corporate,27-Mar-13,PRIME FACILITY PRICE,F&C CD BIRCHWOOD,TELEREAL TRILLIUM,2028981834,"125,545"
Department for Work and Pensions,Housing Benefits,14-Mar-13,HOUSING BENEFIT ADMINISTRATION,HB ENGLAND,BOROUGH OF TELFORD & WREKIN COUNCIL,2028834497,"125,222"
Department for Work and Pensions,Corporate,12-Mar-13,DLA MEDICAL SERVICE ADVICE,OPS BEN DD DISABILITY CSD OVERLAY,ATOS HEALTHCARE,2028761774,"124,951"
Department for Work and Pensions,Housing Benefits,14-Mar-13,HOUSING BENEFIT ADMINISTRATION,HB ENGLAND,BURY METROPOLITAN BOROUGH COUNCIL,2028834609,"124,342"
Department for Work and Pensions,Corporate,14-Mar-13,HOSTING SERVICES,CIO CSD ITLR HOSTING,HP ENTERPRISE SERVICES UK LTD,2028833560,"124,204"
Department for Work and Pensions,Housing Benefits,14-Mar-13,HOUSING BENEFIT ADMINISTRATION,HB ENGLAND,REDCAR & CLEVELAND BOROUGH  COUNCIL,2028834669,"124,011"
Department for Work and Pensions,Corporate,15-Mar-13,BBC TV LIC O/75'S,STR BBC TV LIC O 75s DEL P,BBC PUBLIC SERVICE BROADCASTING,1005694,"123,948"
Department for Work and Pensions,Housing Benefits,14-Mar-13,HOUSING BENEFIT ADMINISTRATION,HB ENGLAND,BASILDON DISTRICT COUNCIL,2028834749,"123,753"
Department for Work and Pensions,Employment Programmes,07-Mar-13,SERVICE FEE,"WWEG EP SUPPORT ESSEX, BEDFORSHIRE AND HERTFORDSHIRE",SEETEC BUSINESS TECHNOLOGY CENTRE LTD,2028745279,"123,678"
Department for Work and Pensions,Housing Benefits,14-Mar-13,HOUSING BENEFIT ADMINISTRATION,HB WALES,CAERPHILLY COUNTY BOROUGH COUNCIL,2028834843,"123,096"
Department for Work and Pensions,Employment Programmes,07-Mar-13,SERVICE FEE,"WWEG EP SUPPORT CAMBRDIGE AND SUFFOLK, NORFOLK, LINCOLN AND RUTLAND",TNG LTD,2028747556,"122,951"
Department for Work and Pensions,Corporate,15-Mar-13,CIVIL SERVICE OCCUPATIONAL HEALTH SERVICE,HR OHS,ATOS ORIGIN IT SERVICES UK LTD,2028839863,"122,862"
Department for Work and Pensions,Housing Benefits,14-Mar-13,HOUSING BENEFIT ADMINISTRATION,HB ENGLAND,BLACKBURN BOROUGH COUNCIL,2028834712,"122,591"
Department for Work and Pensions,Housing Benefits,14-Mar-13,HOUSING BENEFIT ADMINISTRATION,HB ENGLAND,CENTRAL BEDFORDSHIRE DISTRICT COUNCIL,2028834683,"122,525"
Department for Work and Pensions,Corporate,15-Mar-13,NON PRIME UTILITIES,F&C CD DWP GAS & ELECTRICITY PAYMENTS / RECHARGES,BRITISH GAS BUSINESS SCC UTILITIES ONLY,2028840043,"122,404"
Department for Work and Pensions,Corporate,25-Mar-13,ICONS IS IT CONSULTANCY NON ADVICE,CHG UC PROJECT LEDGER CC,BT GLOBAL SERVICES,2028927973,"122,042"
Department for Work and Pensions,Corporate,18-Mar-13,NEW ENTERPRISE ALLOWANCE MENTOR MATCHING,OPS WDC WSD CE LINCOLNSHIRE NOTTINGHAMSHIRE RUTLAND DO,NOTTINGHAMSHIRE BUSINESS VENTURE,2028843886,"121,890"
Department for Work and Pensions,Employment Programmes,12-Mar-13,RESIDENTIAL TRAINING COSTS,WWEG EP DELIVERY WELFARE TO WORK PRODUCT SUPPORT,RNIB ROYAL NATIONAL INSTITUTE FOR THE BLIND,2028763310,"120,663"
Department for Work and Pensions,Corporate,14-Mar-13,Specific DEA expenditure,CHG SPECIAL DISABILITY EMPLOYMENT PROGS DELP,REMPLOY LTD,1005684,"120,108"
Department for Work and Pensions,Corporate,12-Mar-13,NEW ENTERPRISE ALLOWANCE LOAN PAYMENT (DEL CAPITAL),OPS WDC WSD DEL PROG REPORTING,GREATER LONDON ENTERPRISE,2028762484,"120,000"
Department for Work and Pensions,Corporate,13-Mar-13,NEW ENTERPRISE ALLOWANCE LOAN PAYMENT (DEL CAPITAL),OPS WDC WSD DEL PROG REPORTING,THE ENTERPRISE FUND LTD,2028777842,"120,000"
Department for Work and Pensions,Housing Benefits,14-Mar-13,HOUSING BENEFIT ADMINISTRATION,HB SCOTLAND,WEST LOTHIAN COUNCIL,2028834768,"119,647"
Department for Work and Pensions,Corporate,22-Mar-13,STAFF TRAINING VAT RECOVERABLE,HR CONTRACTUAL L AND D,CAPITA GROUP PLC,2028922478,"119,403"
Department for Work and Pensions,Child Maintenance and Enforcement Commission,21-Mar-13,CORPORATE COSTS,HUMAN RESOURCES,DWP,2000887,"119,403"
Department for Work and Pensions,Housing Benefits,14-Mar-13,HOUSING BENEFIT ADMINISTRATION,HB ENGLAND,TENDRING DISTRICT COUNCIL,2028834846,"118,673"
Department for Work and Pensions,Employment Programmes,01-Mar-13,SERVICE FEE,WWEG EP WORK CHOICE LEICESTERSHIRE AND NORTHAMPTONSHIRE,WORKING LINKS,2028668674,"118,629"
Department for Work and Pensions,Housing Benefits,14-Mar-13,HOUSING BENEFIT ADMINISTRATION,HB ENGLAND,NORWICH CITY COUNCIL,2028834728,"118,225"
Department for Work and Pensions,Corporate,12-Mar-13,NON-TREDDS IS IT APPS DEV MANDAY,CHG PIP DELIVERY,CAPGEMINI UK PLC,2028760878,"118,189"
Department for Work and Pensions,Corporate,07-Mar-13,STAFF RELATED COSTS VAT RECOVERABLE,HR EAP,RIGHT CORECARE,2028742592,"118,018"
Department for Work and Pensions,Corporate,26-Mar-13,MEDICAL SERVICES FIXED COSTS,OPS CCS MEDICAL SERVICES,ATOS HEALTHCARE,2028932151,"117,178"
Department for Work and Pensions,Employment Programmes,07-Mar-13,SERVICE FEE,WWEG EP SUPPORT WEST OF ENGLAND,PINNACLE PEOPLE,2028743660,"116,545"
Department for Work and Pensions,Housing Benefits,14-Mar-13,HOUSING BENEFIT ADMINISTRATION,HB ENGLAND,LONDON BOROUGH OF SUTTON,2028834632,"116,528"
Department for Work and Pensions,Housing Benefits,14-Mar-13,HOUSING BENEFIT ADMINISTRATION,HB WALES,CARMARTHENSHIRE COUNTY COUNCIL,2028834747,"116,066"
Department for Work and Pensions,Housing Benefits,14-Mar-13,HOUSING BENEFIT ADMINISTRATION,HB ENGLAND,NORTH LINCOLNSHIRE COUNCIL,2028834615,"115,653"
Department for Work and Pensions,Corporate,27-Mar-13,PRIME FACILITY PRICE,F&C CD SHEFFIELD STEEL CITY HOUSE,TELEREAL TRILLIUM,2028981834,"115,341"
Department for Work and Pensions,Corporate,27-Mar-13,PRIME FACILITY PRICE,F&C CD SHEFFIELD KINGS COURT,TELEREAL TRILLIUM,2028981834,"115,074"
Department for Work and Pensions,Corporate,27-Mar-13,PRIME BUSINESS RATES,F&C CD LEEDS QUARRY HOUSE,TELEREAL TRILLIUM,2028981832,"114,702"
Department for Work and Pensions,Housing Benefits,14-Mar-13,HOUSING BENEFIT ADMINISTRATION,HB SCOTLAND,ABERDEEN CITY COUNCIL,2028834697,"114,666"
Department for Work and Pensions,Housing Benefits,14-Mar-13,HOUSING BENEFIT ADMINISTRATION,HB ENGLAND,WARRINGTON BOROUGH COUNCIL,2028834541,"114,513"
Department for Work and Pensions,Corporate,21-Mar-13,CONTRACTED OUT OFFICE SERVICES,OPS OPE CENTRAL CONTACTS,XEROX UK LTD 3W,2028918387,"114,043"
Department for Work and Pensions,Housing Benefits,14-Mar-13,HOUSING BENEFIT ADMINISTRATION,HB ENGLAND,ISLE OF WIGHT COUNTY COUNCIL,2028834756,"113,561"
Department for Work and Pensions,Housing Benefits,14-Mar-13,HOUSING BENEFIT ADMINISTRATION,HB SCOTLAND,DUMFRIES & GALLOWAY COUNCIL,2028834860,"113,112"
Department for Work and Pensions,Corporate,26-Mar-13,CURRENT GRANTS TO LOCAL GOVERNMENT,CHG RIGHT TO CONTROL DELP,BARNSLEY METROPOLITAN BOROUGH COUNCIL,1005699,"112,558"
Department for Work and Pensions,Corporate,11-Mar-13,TREDDS APPS DEV MANDAYS,CHG ELECTRONIC SIGNING,HP ENTERPRISE SERVICES UK LTD,2028755530,"112,116"
Department for Work and Pensions,Corporate,22-Mar-13,FSF - SUPPORT CONTRACT MODULES FOR JSA JOBSEEKERS,OPS WDC WSD NE N AND E YORKS AND HUMBER DISTRICT OFFICE,PERTEMPS PEOPLE DEVELOPMENT GROUP,2028922084,"111,870"
Department for Work and Pensions,Housing Benefits,14-Mar-13,HOUSING BENEFIT ADMINISTRATION,HB WALES,NEATH PORT TALBOT COUNTY BOROUGH COUNCIL,2028834818,"111,679"
Department for Work and Pensions,Housing Benefits,14-Mar-13,HOUSING BENEFIT ADMINISTRATION,HB ENGLAND,SOLIHULL METROPOLITAN BOROUGH COUNCIL,2028834790,"111,626"
Department for Work and Pensions,Housing Benefits,14-Mar-13,HOUSING BENEFIT ADMINISTRATION,HB ENGLAND,READING BOROUGH COUNCIL,2028834795,"111,542"
Department for Work and Pensions,Corporate,08-Mar-13,FSF - PARTNERSHIP GRANTS - TO HELP JSA CLIENTS INTO WORK,OPS WDC WSD LN WEST LONDON DISTRICT OFFICE,A4E LTD,2028749955,"110,155"
Department for Work and Pensions,Corporate,28-Mar-13,SOC SEC RESEARCH BUDGET,PSG ANALYSIS CAD,SHEFFIELD HALLAM UNIVERSITY,2029000728,"109,417"
Department for Work and Pensions,Corporate,27-Mar-13,PRIME FACILITY PRICE,F&C CD SHEFFIELD PORTERBROOK HOUSE,TELEREAL TRILLIUM,2028981834,"108,363"
Department for Work and Pensions,Corporate,27-Mar-13,STAFF TRAINING VAT RECOVERABLE,HR PROF SVCS AND HR,CIPD ENTERPRISES LTD,2028947129,"108,100"
Department for Work and Pensions,Housing Benefits,14-Mar-13,HOUSING BENEFIT ADMINISTRATION,HB SCOTLAND,ABERDEENSHIRE COUNCIL,2028834786,"108,081"
Department for Work and Pensions,Employment Programmes,07-Mar-13,SERVICE FEE,"WWEG EP SUPPORT CHESHIRE, HALTON AND WARR, MERSEYSIDE",REED IN PARTNERSHIP LTD,2028746782,"107,713"
Department for Work and Pensions,Housing Benefits,14-Mar-13,HOUSING BENEFIT ADMINISTRATION,HB ENGLAND,BEDFORD BOROUGH COUNCIL,2028834771,"107,039"
Department for Work and Pensions,Housing Benefits,14-Mar-13,HOUSING BENEFIT ADMINISTRATION,HB WALES,NEWPORT CITY COUNCIL,2028834696,"106,975"
Department for Work and Pensions,Housing Benefits,14-Mar-13,HOUSING BENEFIT ADMINISTRATION,HB ENGLAND,HALTON BOROUGH COUNCIL,2028834678,"106,974"
Department for Work and Pensions,Corporate,28-Mar-13,CURRENT GRANTS TO LOCAL GOVERNMENT,CHG RIGHT TO CONTROL DELP,LONDON BOROUGH OF BARNET,1005718,"106,899"
Department for Work and Pensions,Corporate,27-Mar-13,PRIME UTILITIES,OPS OPE ESTATES BASELINE,TELEREAL TRILLIUM,2028981453,"106,860"
Department for Work and Pensions,Housing Benefits,14-Mar-13,HOUSING BENEFIT ADMINISTRATION,HB SCOTLAND,FALKIRK DISTRICT COUNCIL,2028834625,"105,436"
Department for Work and Pensions,Corporate,28-Mar-13,PROFESSIONAL ADVICE & OPINION VAT RECOVERABLE,PSG LEGAL SERVICES COMMERCIAL,LOVELLS,2028998868,"105,405"
Department for Work and Pensions,Housing Benefits,14-Mar-13,HOUSING BENEFIT ADMINISTRATION,HB ENGLAND,EAST LINDSEY DISTRICT COUNCIL,2028834835,"105,348"
Department for Work and Pensions,Corporate,25-Mar-13,PROFESSIONAL ADVICE & OPINION VAT RECOVERABLE,PSG LEGAL SERVICES LITIGATION & EMPLOYMENT,TREASURY SOLICITOR TSOL,2028924905,"105,241"
Department for Work and Pensions,Housing Benefits,14-Mar-13,HOUSING BENEFIT ADMINISTRATION,HB ENGLAND,SLOUGH BOROUGH COUNCIL,2028834726,"104,924"
Department for Work and Pensions,Housing Benefits,14-Mar-13,HOUSING BENEFIT ADMINISTRATION,HB ENGLAND,THURROCK BOROUGH COUNCIL,2028834543,"104,552"
Department for Work and Pensions,Corporate,28-Mar-13,CONTRACTED OUT OFFICE SERVICES,HR CSR,HM REVENUE & CUSTOMS,2003791,"103,428"
Department for Work and Pensions,Corporate,01-Mar-13,NEW ENTERPRISE ALLOWANCE MENTOR MATCHING,OPS WDC WSD NE WEST YORKSHIRE DISTRICT OFFICE,WYEA LTD,2028667138,"103,260"
Department for Work and Pensions,Housing Benefits,14-Mar-13,HOUSING BENEFIT ADMINISTRATION,HB WALES,BRIDGEND COUNTY BOROUGH COUNCIL,2028834571,"101,559"
Department for Work and Pensions,Housing Benefits,14-Mar-13,HOUSING BENEFIT ADMINISTRATION,HB ENGLAND,HASTINGS BOROUGH COUNCIL,2028834573,"100,970"
Department for Work and Pensions,Corporate,26-Mar-13,CURRENT GRANTS TO LOCAL GOVERNMENT,CHG RIGHT TO CONTROL DELP,LEICESTER CITY COUNCIL,1005701,"100,937"
Department for Work and Pensions,Employment Programmes,07-Mar-13,SERVICE FEE,"WWEG EP SUPPORT GRTR MANCHESTER CNTRL, GRTR MANCHESTER E AND W",STANDGUIDE LTD,2028743800,"100,612"
Department for Work and Pensions,Employment Programmes,07-Mar-13,SERVICE FEE,"WWEG EP SUPPORT KENT, SURREY AND SUSSEX",PINNACLE PEOPLE,2028743660,"100,021"
Department for Work and Pensions,Corporate,12-Mar-13,PROFESSIONAL ADVICE & OPINION VAT RECOVERABLE,PSG LEGAL SERVICES LITIGATION & EMPLOYMENT,TREASURY SOLICITOR TSOL,2028759307,"99,812"
Department for Work and Pensions,Child Maintenance and Enforcement Commission,27-Mar-13,CFERS PAID TO HM TREASURY,BALANCE SHEET,CONSOLIDATED FUND,2000897,"99,073"
Department for Work and Pensions,Corporate,08-Mar-13,CONSULTANTS VAT RECOVERABLE,CHG UC SERVICE DESIGN,CAPGEMINI UK PLC,2028748472,"98,575"
Department for Work and Pensions,Housing Benefits,14-Mar-13,HOUSING BENEFIT ADMINISTRATION,HB ENGLAND,HARTLEPOOL BOROUGH COUNCIL,2028834530,"98,181"
Department for Work and Pensions,Housing Benefits,14-Mar-13,HOUSING BENEFIT ADMINISTRATION,HB ENGLAND,HEREFORDSHIRE COUNCIL,2028834540,"98,119"
Department for Work and Pensions,Housing Benefits,14-Mar-13,HOUSING BENEFIT ADMINISTRATION,HB ENGLAND,PRESTON BOROUGH COUNCIL,2028834817,"97,993"
Department for Work and Pensions,Housing Benefits,14-Mar-13,HOUSING BENEFIT ADMINISTRATION,HB SCOTLAND,EAST AYRSHIRE COUNCIL FINANCE DEPARTMENT,2028834602,"97,857"
Department for Work and Pensions,Corporate,20-Mar-13,INNOVATION FUND,CHG INNOVATION FUND SOCIAL INV BONDS,TRIODOS NEW HORIZONS LTD,2028861827,"97,617"
Department for Work and Pensions,Corporate,27-Mar-13,CURRENT GRANTS TO LOCAL GOVERNMENT,CHG RIGHT TO CONTROL DELP,LONDON BOROUGH OF NEWHAM,1005715,"97,536"
Department for Work and Pensions,Corporate,12-Mar-13,NON-TREDDS IS IT APPS DEV MANDAY,CHG SCANNING & DIGITAL STORAGE,IBM UNITED KINGDOM LTD,2028761502,"97,090"
Department for Work and Pensions,Corporate,25-Mar-13,NON-TREDDS IS IT APPS DEV MANDAY,CHG PIP DELIVERY,ACCENTURE UK LTD,2028926646,"96,364"
Department for Work and Pensions,Housing Benefits,14-Mar-13,HOUSING BENEFIT ADMINISTRATION,HB ENGLAND,CITY OF YORK COUNCIL,2028834542,"96,173"
Department for Work and Pensions,European Social Fund,13-Mar-13,MA ESF(D) PROGRAMME EXPENDITURE EC PREFUNDED L A's,WWEG EUROPEAN SOCIAL FUND PROGRAMME 2007-2013,LONDON BOROUGH OF EALING,5000001303,"96,128"
Department for Work and Pensions,Employment Programmes,08-Mar-13,RESIDENTIAL TRAINING COSTS,WWEG EP DELIVERY WELFARE TO WORK PRODUCT SUPPORT,PORTLAND COLLEGE,2028749233,"95,944"
Department for Work and Pensions,Corporate,22-Mar-13,NON ICONS NETWORK SERVICES,CIO CSD ITLR NETWORK,TESCO MOBILE LTD,2028919136,"95,803"
Department for Work and Pensions,Housing Benefits,14-Mar-13,HOUSING BENEFIT ADMINISTRATION,HB ENGLAND,BATH & NORTH EAST SOMERSET COUNCIL,2028834774,"95,472"
Department for Work and Pensions,Corporate,27-Mar-13,AR PRIME RECOVERIES,BALANCE SHEET,TELEREAL TRILLIUM,2028981453,"95,452"
Department for Work and Pensions,Corporate,05-Mar-13,TREDDS APPS DEV MANDAYS,CHG CP SERVICE ORIENTATED ARCHITECTURE,HP ENTERPRISE SERVICES UK LTD,2028679565,"93,689"
Department for Work and Pensions,Housing Benefits,14-Mar-13,HOUSING BENEFIT ADMINISTRATION,HB ENGLAND,SCARBOROUGH BOROUGH COUNCIL,2028834616,"93,492"
Department for Work and Pensions,Employment Programmes,07-Mar-13,SERVICE FEE,"WWEG EP SUPPORT N AND E YORKSHIRE AND HUMBER, TEES VALLEY",PERTEMPS,2028745353,"93,270"
Department for Work and Pensions,Corporate,12-Mar-13,NON-TREDDS IS IT APPS DEV MANDAY,CHG CP SERVICE ORIENTATED ARCHITECTURE,IBM UNITED KINGDOM LTD,2028761502,"93,094"
Department for Work and Pensions,Employment Programmes,07-Mar-13,SERVICE FEE,"WWEG EP SUPPORT HAMPSHIRE AND ISLE OF WIGHT, BERKS, BUCKS AND OXON",A4E LTD,2028743313,"93,043"
Department for Work and Pensions,Housing Benefits,14-Mar-13,HOUSING BENEFIT ADMINISTRATION,HB SCOTLAND,WEST DUNBARTONSHIRE COUNCIL,2028834701,"92,839"
Department for Work and Pensions,Corporate,25-Mar-13,FSF - SUPPORT CONTRACT MODULES FOR JSA JOBSEEKERS,OPS WDC WSD CE BIRMINGHAM AND SOLIHULL DISTRICT OFFICE,INGEUS UK LTD,2028928400,"92,768"
Department for Work and Pensions,Corporate,07-Mar-13,FSF - SUPPORT CONTRACT MODULES FOR JSA JOBSEEKERS,OPS WDC WSD CE BIRMINGHAM AND SOLIHULL DISTRICT OFFICE,INGEUS UK LTD,2028744003,"92,768"
Department for Work and Pensions,Employment Programmes,13-Mar-13,RESIDENTIAL TRAINING COSTS,WWEG EP DELIVERY WELFARE TO WORK PRODUCT SUPPORT,DONCASTER DEAF TRUST,2028799098,"92,610"
Department for Work and Pensions,Housing Benefits,14-Mar-13,HOUSING BENEFIT ADMINISTRATION,HB ENGLAND,COLCHESTER BOROUGH COUNCIL,2028834793,"92,150"
Department for Work and Pensions,Corporate,26-Mar-13,CONTRACTED OUT WINTER FUEL PAYMENTS SERVICES,OPS OPE CENTRAL CONTACTS,PROMOTIONAL LOGISTICS LTD,2028934427,"92,136"
Department for Work and Pensions,Housing Benefits,14-Mar-13,HOUSING BENEFIT ADMINISTRATION,HB ENGLAND,KINGS LYNN & WEST NORFOLK BOROUGH COUNCIL,2028834641,"92,089"
Department for Work and Pensions,Housing Benefits,14-Mar-13,HOUSING BENEFIT ADMINISTRATION,HB ENGLAND,ARUN DISTRICT COUNCIL,2028834501,"91,810"
Department for Work and Pensions,Employment Programmes,28-Mar-13,WP JSA 25+ SUSTAINMENT OUTCOME PAYMENT,WWEG EP EAST LONDON CAREERS DEVELOPMENT GROUP,CAREERS DEVELOPMENT GROUP,2028998328,"91,805"
Department for Work and Pensions,Corporate,26-Mar-13,NON-TREDDS IS IT APPS DEV MANDAY,CHG PIP DELIVERY,IBM UNITED KINGDOM LTD,2028934110,"91,775"
Department for Work and Pensions,Housing Benefits,14-Mar-13,HOUSING BENEFIT ADMINISTRATION,HB ENGLAND,LONDON BOROUGH OF RICHMOND UPON THAMES,2028834781,"91,704"
Department for Work and Pensions,Employment Programmes,28-Mar-13,SERVICE FEE,WWEG EP CORE MWA CPA EAST OF ENGLAND,SEETEC,2029000370,"91,473"
Department for Work and Pensions,Employment Programmes,07-Mar-13,SERVICE FEE,WWEG EP SUPPORT WEST YORKSHIRE,A4E LTD,2028743313,"90,807"
Department for Work and Pensions,Housing Benefits,14-Mar-13,HOUSING BENEFIT ADMINISTRATION,HB ENGLAND,SOUTH SOMERSET DISTRICT COUNCIL,2028834854,"90,484"
Department for Work and Pensions,Employment Programmes,12-Mar-13,RESIDENTIAL TRAINING COSTS,WWEG EP DELIVERY WELFARE TO WORK PRODUCT SUPPORT,QUEEN ALEXANDRA COLLEGE,2028763291,"90,263"
Department for Work and Pensions,Housing Benefits,14-Mar-13,HOUSING BENEFIT ADMINISTRATION,HB ENGLAND,IPSWICH BOROUGH COUNCIL,2028834826,"89,997"
Department for Work and Pensions,Housing Benefits,14-Mar-13,HOUSING BENEFIT ADMINISTRATION,HB ENGLAND,SWALE BOROUGH COUNCIL,2028834731,"89,047"
Department for Work and Pensions,Corporate,27-Mar-13,PRIME FACILITY PRICE,F&C CD BRADFORD AMBLER MILL,TELEREAL TRILLIUM,2028981834,"88,453"
Department for Work and Pensions,Corporate,26-Mar-13,NON-TREDDS IS IT SERVICES (AMS),CIO C SS S & E IT DIRECTOR GATEWAY SERVICE DELIVER,ATOS ORIGIN IT SERVICES UK LTD,2028935167,"88,442"
Department for Work and Pensions,Corporate,06-Mar-13,MANAGED SERVICE UNIVERSAL JOBMATCH,CHG TRANSFORMING LABOUR MARKET SERVICES,MONSTER GOVERNMENT SOLUTIONS,2028713656,"88,425"
Department for Work and Pensions,European Social Fund,07-Mar-13,MA ESF(D) PROGRAMME EXPENDITURE EC PREFUNDED THIRD PARTIES,WWEG EUROPEAN SOCIAL FUND PROGRAMME 2007-2013,LIVERPOOL CHAMBER OF COMMERCE,5000001297,"88,062"
Department for Work and Pensions,Corporate,04-Mar-13,GENERAL PAYMENTS,CHG EMED NATIONAL ROLLOUT,IN PRACTICES SYSTEMS LTD INPS,2028673438,"87,951"
Department for Work and Pensions,Employment Programmes,07-Mar-13,SERVICE FEE,"WWEG EP SUPPORT NORTHUMBRIA, SOUTH TYNE AND WEAR VALLEY",ESG HOLDINGS LTD,2028743659,"87,730"
Department for Work and Pensions,Housing Benefits,14-Mar-13,HOUSING BENEFIT ADMINISTRATION,HB ENGLAND,GREAT YARMOUTH COUNCIL,2028834643,"87,625"
Department for Work and Pensions,Corporate,28-Mar-13,Specific DEA expenditure,CHG SPECIAL DISABILITY EMPLOYMENT PROGS DELP,REMPLOY LTD,1005719,"87,470"
Department for Work and Pensions,Corporate,27-Mar-13,PRIME FACILITY PRICE,F&C CD DEARNE VALLEY DISCOVERY HOUSE,TELEREAL TRILLIUM,2028981834,"87,220"
Department for Work and Pensions,Corporate,26-Mar-13,NON PRIME PROPERTY COSTS,OPS OPE ESTATES BASELINE,COPELAND BOROUGH COUNCIL,2028931390,"87,062"
Department for Work and Pensions,Corporate,15-Mar-13,PRIME VARIABLE CHARGE,OPS OPE ESTATES RECESSION,TELEREAL TRILLIUM,2028835146,"86,895"
Department for Work and Pensions,Housing Benefits,14-Mar-13,HOUSING BENEFIT ADMINISTRATION,HB ENGLAND,BRAINTREE DISTRICT COUNCIL,2028834507,"86,768"
Department for Work and Pensions,Child Maintenance and Enforcement Commission,21-Mar-13,CORPORATE COSTS,DWP RECHARGE - COMMERCIAL DIRECTORATE,DWP,2000885,"86,417"
Department for Work and Pensions,Child Maintenance and Enforcement Commission,12-Mar-13,CORPORATE COSTS,DWP RECHARGE - COMMERCIAL DIRECTORATE,DWP,2000850,"86,417"
Department for Work and Pensions,Corporate,27-Mar-13,PRIME FACILITY PRICE,F&C CD MANCHESTER ANCHORAGE HOUSE,TELEREAL TRILLIUM,2028981834,"86,386"
Department for Work and Pensions,Corporate,08-Mar-13,SIAM MANAGEMENT SERVICES,CIO CSD ITLR SIAM,HP ENTERPRISE SERVICES UK LTD,2028753399,"86,304"
Department for Work and Pensions,Housing Benefits,14-Mar-13,HOUSING BENEFIT ADMINISTRATION,HB ENGLAND,WAVENEY DISTRICT COUNCIL,2028834677,"85,909"
Department for Work and Pensions,Corporate,13-Mar-13,DESKTOP SERVICES,CIO CSD ITLR DESKTOP,HP ENTERPRISE SERVICES UK LTD,2028791719,"85,861"
Department for Work and Pensions,Housing Benefits,14-Mar-13,HOUSING BENEFIT ADMINISTRATION,HB ENGLAND,ROYAL BOROUGH OF KINGSTON UPON THAMES,2028834765,"85,310"
Department for Work and Pensions,Housing Benefits,14-Mar-13,HOUSING BENEFIT ADMINISTRATION,HB ENGLAND,LANCASTER CITY COUNCIL,2028834534,"85,082"
Department for Work and Pensions,Housing Benefits,14-Mar-13,HOUSING BENEFIT ADMINISTRATION,HB ENGLAND,OXFORD CITY COUNCIL,2028834568,"85,082"
Department for Work and Pensions,Housing Benefits,14-Mar-13,HOUSING BENEFIT ADMINISTRATION,HB ENGLAND,GLOUCESTER CITY COUNCIL,2028834682,"85,062"
Department for Work and Pensions,Corporate,22-Mar-13,PROFESSIONAL ADVICE & OPINION VAT RECOVERABLE,IFD ORC,ORC INTERNATIONAL LTD,2028921291,"85,045"
Department for Work and Pensions,Corporate,01-Mar-13,PROFESSIONAL ADVICE & OPINION VAT RECOVERABLE,IFD ORC,ORC INTERNATIONAL LTD,2028668023,"85,045"
Department for Work and Pensions,Corporate,27-Mar-13,PRIME FACILITY PRICE,F&C CD GLASGOW WEST REGENT HOUSE,TELEREAL TRILLIUM,2028981834,"84,879"
Department for Work and Pensions,Employment Programmes,07-Mar-13,SERVICE FEE,"WWEG EP SUPPORT DERBYSHIRE, SOUTH YORKSHIRE",A4E LTD,2028743313,"84,600"
Department for Work and Pensions,Corporate,26-Mar-13,CURRENT GRANTS TO LOCAL GOVERNMENT,CHG RIGHT TO CONTROL DELP,MANCHESTER CITY COUNCIL,1005700,"84,210"
Department for Work and Pensions,Corporate,27-Mar-13,PRIME FACILITY PRICE,F&C CD SHEFFIELD ROCKINGHAM HOUSE,TELEREAL TRILLIUM,2028981834,"83,801"
Department for Work and Pensions,Corporate,18-Mar-13,NEW ENTERPRISE ALLOWANCE MENTOR MATCHING,OPS WDC WSD NW GTR MANCHESTER CENTRAL AND CHESHIRE DO,BLUE ORCHID SUPPORT SERVICES,2028844178,"83,341"
Department for Work and Pensions,Corporate,15-Mar-13,MOTABILITY ADMINISTRATION GRANT,STR MOTABILITY,MOTABILITY,1005693,"83,330"
Department for Work and Pensions,Housing Benefits,14-Mar-13,HOUSING BENEFIT ADMINISTRATION,HB SCOTLAND,INVERCLYDE DISTRICT COUNCIL,2028834603,"83,139"
Department for Work and Pensions,Housing Benefits,14-Mar-13,HOUSING BENEFIT ADMINISTRATION,HB ENGLAND,EASTBOURNE BOROUGH COUNCIL,2028834492,"83,122"
Department for Work and Pensions,Corporate,07-Mar-13,STAFF RELATED COSTS VAT RECOVERABLE,HR WELLBEING AND PRODUCTIVITY,RIGHT CORECARE,2028742593,"82,500"
Department for Work and Pensions,Child Maintenance and Enforcement Commission,21-Mar-13,CORPORATE COSTS,DWP RECHARGE - LAW GOVERNANCE & SPECIAL POLICY GROUP,DWP,2000874,"82,378"
Department for Work and Pensions,Housing Benefits,14-Mar-13,HOUSING BENEFIT ADMINISTRATION,HB WALES,FLINTSHIRE COUNTY COUNCIL,2028834499,"82,271"
Department for Work and Pensions,Housing Benefits,14-Mar-13,HOUSING BENEFIT ADMINISTRATION,HB ENGLAND,POOLE BOROUGH COUNCIL,2028834519,"82,213"
Department for Work and Pensions,Housing Benefits,14-Mar-13,HOUSING BENEFIT ADMINISTRATION,HB SCOTLAND,SOUTH AYRSHIRE COUNCIL,2028834858,"82,041"
Department for Work and Pensions,Housing Benefits,14-Mar-13,HOUSING BENEFIT ADMINISTRATION,HB SCOTLAND,PERTH & KINROSS COUNCIL,2028834614,"81,857"
Department for Work and Pensions,Corporate,21-Mar-13,NON-TREDDS IS IT SERVICES (HOSTING),CIO ITD HEAD OF INNOVATION,SPECIALIST COMPUTER CENTRES PLC,2028914674,"81,800"
Department for Work and Pensions,Housing Benefits,14-Mar-13,HOUSING BENEFIT ADMINISTRATION,HB ENGLAND,BASINGSTOKE DISTRICT COUNCIL,2028834824,"81,793"
Department for Work and Pensions,Corporate,28-Mar-13,NON-TREDDS IS IT APPS DEV MANDAY,CHG PIP DELIVERY,ACCENTURE UK LTD,2028999421,"81,760"
Department for Work and Pensions,Corporate,11-Mar-13,TREDDS APPS DEV MANDAYS,CIO CSD ITLR ADEP TRANSITION,HP ENTERPRISE SERVICES UK LTD,2028755530,"81,591"
Department for Work and Pensions,Housing Benefits,14-Mar-13,HOUSING BENEFIT ADMINISTRATION,HB ENGLAND,BURNLEY BOROUGH COUNCIL,2028834751,"81,565"
Department for Work and Pensions,Employment Programmes,07-Mar-13,SERVICE FEE,WWEG EP SUPPORT BIRMINGHAM AND SOLIHULL,INGEUS UK LTD,2028744002,"81,483"
Department for Work and Pensions,Corporate,22-Mar-13,CONTRACTED OUT OFFICE SERVICES,PSG OGD SERVICES,CAPITA CUSTOMER MANAGEMENT LTD,2028920927,"81,380"
Department for Work and Pensions,Employment Programmes,07-Mar-13,SERVICE FEE,"WWEG EP SUPPORT COVENTRY AND WARWICKSHIRE, MARCHES, STAFFORDSHIRE",JHP GROUP LTD,2028747665,"81,209"
Department for Work and Pensions,Employment Programmes,01-Mar-13,WP JSA 25+ SUSTAINMENT OUTCOME PAYMENT,WWEG EP NORTH WEST GM CHES AND WARR SEETEC,SEETEC BUSINESS TECHNOLOGY CENTRE LTD,2028668561,"80,840"
Department for Work and Pensions,Corporate,19-Mar-13,NON-TREDDS APPS DEV FIXED PRICE CONTRACTS,OPS OPE IT REL - LMS,STERIA LTD,1005695,"80,552"
Department for Work and Pensions,Child Maintenance and Enforcement Commission,13-Mar-13,CORPORATE COSTS,FUTURE SYSTEM IT RUNNING COSTS - DIRECT,HMRC,2000856,"80,507"
Department for Work and Pensions,Housing Benefits,14-Mar-13,HOUSING BENEFIT ADMINISTRATION,HB ENGLAND,ASHFIELD DISTRICT COUNCIL,2028834788,"80,368"
Department for Work and Pensions,Employment Programmes,28-Mar-13,SERVICE FEE,WWEG EP CORE MWA CPA SCOTLAND,JHP GROUP LTD,2029000750,"80,301"
Department for Work and Pensions,Corporate,26-Mar-13,NON-TREDDS IS IT APPS DEV MANDAY,CHG UC PROJECT LEDGER CC,IBM UNITED KINGDOM LTD,2028934110,"80,049"
Department for Work and Pensions,Housing Benefits,14-Mar-13,HOUSING BENEFIT ADMINISTRATION,HB ENGLAND,DARLINGTON BOROUGH COUNCIL,2028834814,"79,960"
Department for Work and Pensions,SHARED SERVICES,13-Mar-13,CONTRACTED OUT OFFICE SERVICES,OFFICE SERVICES,BALFOUR BEATTY WORKPLACE LTD,2028791465,"79,722"
Department for Work and Pensions,Housing Benefits,14-Mar-13,HOUSING BENEFIT ADMINISTRATION,HB WALES,WREXHAM COUNTY BOROUGH COUNCIL,2028834752,"79,492"
Department for Work and Pensions,Corporate,22-Mar-13,PUBLICITY ADVERTISING MEDIA,CHG ERSP COMMS,M4C,2028921022,"79,460"
Department for Work and Pensions,Housing Benefits,14-Mar-13,HOUSING BENEFIT ADMINISTRATION,HB ENGLAND,NUNEATON BOROUGH COUNCIL,2028834716,"79,352"
Department for Work and Pensions,Corporate,14-Mar-13,NON-TREDDS IS IT APPS DEV MANDAY,OPS CCS HDD,IBM UNITED KINGDOM LTD,2028832975,"79,295"
Department for Work and Pensions,Housing Benefits,14-Mar-13,HOUSING BENEFIT ADMINISTRATION,HB ENGLAND,AYLESBURY VALE DISTRICT COUNCIL,2028834653,"79,063"
Department for Work and Pensions,Housing Benefits,14-Mar-13,HOUSING BENEFIT ADMINISTRATION,HB WALES,CONWY COUNTY BOROUGH  COUNCIL,2028834657,"78,780"
Department for Work and Pensions,Corporate,28-Mar-13,PRIME BILLABLE EXTRAS PRIME CONTRACT MANAGEMENT (PCM),F&C CD LEEDS BMT,TELEREAL TRILLIUM,2028996528,"78,772"
Department for Work and Pensions,Housing Benefits,14-Mar-13,HOUSING BENEFIT ADMINISTRATION,HB ENGLAND,NEW FOREST DISTRICT COUNCIL,2028834802,"78,393"
Department for Work and Pensions,Housing Benefits,14-Mar-13,HOUSING BENEFIT ADMINISTRATION,HB ENGLAND,HUNTINGDON DISTRICT COUNCIL,2028834672,"78,247"
Department for Work and Pensions,Housing Benefits,14-Mar-13,HOUSING BENEFIT ADMINISTRATION,HB ENGLAND,WYCOMBE DISTRICT COUNCIL,2028834690,"78,213"
Department for Work and Pensions,Housing Benefits,14-Mar-13,HOUSING BENEFIT ADMINISTRATION,HB ENGLAND,MANSFIELD DISTRICT COUNCIL,2028834503,"78,064"
Department for Work and Pensions,Corporate,26-Mar-13,AMS STAT MANDAYS,CIO CSD ITLR AMS,HP ENTERPRISE SERVICES UK LTD,2028934802,"77,911"
Department for Work and Pensions,Corporate,27-Mar-13,PRIME FACILITY PRICE,F&C CD NUNEATON DISCOVERY HOUSE,TELEREAL TRILLIUM,2028981834,"77,803"
Department for Work and Pensions,Housing Benefits,14-Mar-13,HOUSING BENEFIT ADMINISTRATION,HB ENGLAND,CANTERBURY CITY COUNCIL,2028834754,"77,505"
Department for Work and Pensions,Housing Benefits,14-Mar-13,HOUSING BENEFIT ADMINISTRATION,HB ENGLAND,CRAWLEY BOROUGH COUNCIL,2028834694,"77,143"
Department for Work and Pensions,Corporate,14-Mar-13,FSF - SUPPORT CONTRACT MODULES FOR JSA JOBSEEKERS,OPS WDC WSD LN KENT DISTRICT OFFICE,PINNACLE PEOPLE,2028831135,"77,051"
Department for Work and Pensions,Housing Benefits,14-Mar-13,HOUSING BENEFIT ADMINISTRATION,HB SCOTLAND,SCOTTISH BORDERS COUNCIL,2028834532,"76,728"
Department for Work and Pensions,Corporate,01-Mar-13,NON-TREDDS IS IT SERVICES (HOSTING),CHG RM DISASTER RECOVERY REPLACEMENT,FUJITSU SERVICES LTD,2028668553,"76,676"
Department for Work and Pensions,Housing Benefits,14-Mar-13,HOUSING BENEFIT ADMINISTRATION,HB ENGLAND,SHEPWAY DISTRICT COUNCIL,2028834531,"76,612"
Department for Work and Pensions,Housing Benefits,14-Mar-13,HOUSING BENEFIT ADMINISTRATION,HB ENGLAND,CHESTERFIELD BOROUGH COUNCIL,2028834504,"76,447"
Department for Work and Pensions,Housing Benefits,14-Mar-13,HOUSING BENEFIT ADMINISTRATION,HB ENGLAND,HAVANT BOROUGH COUNCIL,2028834797,"76,129"
Department for Work and Pensions,Corporate,21-Mar-13,FSF - SUPPORT CONTRACT MODULES FOR JSA JOBSEEKERS,OPS WDC WSD LN WEST LONDON DISTRICT OFFICE,A4E LTD,2028915242,"76,009"
Department for Work and Pensions,Child Maintenance and Enforcement Commission,21-Mar-13,NON-TREDDS IS IT SERVICES (DESKTOP),LEGACY SYSTEMS IT RUNNING COSTS - IOL,DWP,2000880,"75,904"
Department for Work and Pensions,Housing Benefits,14-Mar-13,HOUSING BENEFIT ADMINISTRATION,HB ENGLAND,DACORUM BOROUGH COUNCIL,2028834864,"75,827"
Department for Work and Pensions,Housing Benefits,14-Mar-13,HOUSING BENEFIT ADMINISTRATION,HB ENGLAND,BRECKLAND DISTRICT COUNCIL,2028834645,"75,773"
Department for Work and Pensions,Corporate,27-Mar-13,NON PRIME PROPERTY COSTS VAT RECOVERABLE,F&C CD BENTON PARK VIEW,HMRC,2003768,"75,598"
Department for Work and Pensions,Housing Benefits,14-Mar-13,HOUSING BENEFIT ADMINISTRATION,HB ENGLAND,CHELMSFORD BOROUGH COUNCIL,2028834849,"75,474"
Department for Work and Pensions,Corporate,22-Mar-13,PRIME BILLABLE EXTRAS PRIME CONTRACT MANAGEMENT (PCM),CHG ESTATES RATIONALISATION NORTH WEST,TELEREAL TRILLIUM,2028922071,"75,446"
Department for Work and Pensions,Corporate,07-Mar-13,NON-TREDDS IS IT APPS DEV MANDAY,CHG DELIVERING THE IRIS ORGANISATION,CAPGEMINI UK PLC,2028742904,"75,444"
Department for Work and Pensions,Employment Programmes,21-Mar-13,ACCESS TO WORK - PAYMENT FOR SUPPORT WORKERS,WWEG EP LONDON REGION,SOUTH WEST LONDON & ST GEORGES NHS TRUST,2028916507,"75,125"
Department for Work and Pensions,Housing Benefits,14-Mar-13,HOUSING BENEFIT ADMINISTRATION,HB ENGLAND,WYRE BOROUGH COUNCIL,2028834560,"74,964"
Department for Work and Pensions,Corporate,06-Mar-13,NON-TREDDS APPS DEV FIXED PRICE CONTRACTS,OPS OPE IT REL - OTHER,ACCENTURE UK LTD,2028731073,"74,870"
Department for Work and Pensions,Child Maintenance and Enforcement Commission,21-Mar-13,CORPORATE COSTS,DWP RECHARGE - FINANCIAL POLICY & PRACTICE,DWP,2000886,"74,364"
Department for Work and Pensions,Child Maintenance and Enforcement Commission,12-Mar-13,CORPORATE COSTS,DWP RECHARGE - FINANCIAL POLICY & PRACTICE,DWP,2000846,"74,364"
Department for Work and Pensions,Corporate,01-Mar-13,NON-TREDDS APPS DEV FIXED PRICE CONTRACTS,OPS OPE IT REL - LMS,STERIA,2028669449,"74,330"
Department for Work and Pensions,Housing Benefits,14-Mar-13,HOUSING BENEFIT ADMINISTRATION,HB WALES,GWYNEDD COUNCIL,2028834743,"74,328"
Department for Work and Pensions,Housing Benefits,14-Mar-13,HOUSING BENEFIT ADMINISTRATION,HB ENGLAND,MAIDSTONE BOROUGH COUNCIL,2028834734,"74,297"
Department for Work and Pensions,Housing Benefits,14-Mar-13,HOUSING BENEFIT ADMINISTRATION,HB WALES,TORFAEN BOROUGH COUNCIL,2028834648,"74,128"
Department for Work and Pensions,Child Maintenance and Enforcement Commission,20-Mar-13,NON-TREDDS IS IT SERVICES (AMS),NEW SCHEME CHANGE CONTROL,TATA CONSULTANCY SERVICES LTD,1000172378,"73,817"
Department for Work and Pensions,Corporate,08-Mar-13,NON ICONS NETWORK SERVICES,CIO CSD ITLR NETWORK,HUTCHINSON 3G UK LTD,2028752963,"73,428"
Department for Work and Pensions,Housing Benefits,14-Mar-13,HOUSING BENEFIT ADMINISTRATION,HB ENGLAND,CHARNWOOD BOROUGH COUNCIL,2028834658,"73,391"
Department for Work and Pensions,Housing Benefits,14-Mar-13,HOUSING BENEFIT ADMINISTRATION,HB ENGLAND,CHERWELL DISTRICT COUNCIL,2028834674,"73,328"
Department for Work and Pensions,Housing Benefits,14-Mar-13,HOUSING BENEFIT ADMINISTRATION,HB ENGLAND,PENDLE BOROUGH COUNCIL,2028834572,"73,286"
Department for Work and Pensions,Housing Benefits,14-Mar-13,HOUSING BENEFIT ADMINISTRATION,HB ENGLAND,DOVER DISTRICT COUNCIL,2028834753,"73,275"
Department for Work and Pensions,Housing Benefits,14-Mar-13,HOUSING BENEFIT ADMINISTRATION,HB WALES,VALE OF GLAMORGAN COUNCIL,2028834703,"73,223"
Department for Work and Pensions,Housing Benefits,14-Mar-13,HOUSING BENEFIT ADMINISTRATION,HB WALES,PEMBROKESHIRE COUNTY COUNCIL,2028834834,"73,128"
Department for Work and Pensions,Corporate,27-Mar-13,SERVICE FEE,CHG RIGHT TO CONTROL DELP,OLDHAM EDUCATION BUSINESS & GUIDANCE SERVICES,1005714,"72,993"
Department for Work and Pensions,Corporate,12-Mar-13,TREDDS APPS DEV MANDAYS,F&C FIN CONT FIN SYSTEMS INT CONTROL GROUP,HP ENTERPRISE SERVICES UK LTD,2028760623,"72,802"
Department for Work and Pensions,Corporate,07-Mar-13,SOC SEC RESEARCH BUDGET,PSG IGS STAT SERVICES,OFFICE FOR NATIONAL STATISTICS,2028743866,"72,552"
Department for Work and Pensions,Corporate,12-Mar-13,ICONS IS IT CONSULTANCY NON ADVICE,CIO CSD ITLR NETWORK,BT GLOBAL SERVICES,2028762392,"72,540"
Department for Work and Pensions,Corporate,08-Mar-13,COST VARIANCE ACCOUNT,CHG ERSP COMMS,M4C,2028749917,"72,456"
Department for Work and Pensions,Housing Benefits,14-Mar-13,HOUSING BENEFIT ADMINISTRATION,HB ENGLAND,TEIGNBRIDGE DISTRICT COUNCIL,2028834549,"72,282"
Department for Work and Pensions,Employment Programmes,28-Mar-13,WP JSA 25+ JOB OUTCOME PAYMENTWP JSA 25+ JOB OUTCOME PAYMENT,WWEG EP EAST LONDON A4E,A4E LTD,2029000341,"71,820"
Department for Work and Pensions,Housing Benefits,14-Mar-13,HOUSING BENEFIT ADMINISTRATION,HB ENGLAND,LINCOLN CITY COUNCIL,2028834665,"71,375"
Department for Work and Pensions,Housing Benefits,14-Mar-13,HOUSING BENEFIT ADMINISTRATION,HB ENGLAND,WEST BERKSHIRE COUNCIL,2028834763,"71,228"
Department for Work and Pensions,Employment Programmes,07-Mar-13,SERVICE FEE,"WWEG EP SUPPORT ADGI,EDIN,LOTH AND BORDRS,LNRK AND EAST DUN",JHP GROUP LTD,2028747665,"71,121"
Department for Work and Pensions,Housing Benefits,14-Mar-13,HOUSING BENEFIT ADMINISTRATION,HB ENGLAND,HYNDBURN BOROUGH COUNCIL,2028834710,"70,991"
Department for Work and Pensions,Housing Benefits,14-Mar-13,HOUSING BENEFIT ADMINISTRATION,HB ENGLAND,SEDGEMOOR DISTRICT COUNCIL,2028834865,"70,955"
Department for Work and Pensions,Housing Benefits,14-Mar-13,HOUSING BENEFIT ADMINISTRATION,HB ENGLAND,EXETER CITY COUNCIL,2028834552,"70,769"
Department for Work and Pensions,Corporate,27-Mar-13,PRIME BUSINESS RATES,F&C CD PEEL PARK,TELEREAL TRILLIUM,2028981832,"70,645"
Department for Work and Pensions,Housing Benefits,14-Mar-13,HOUSING BENEFIT ADMINISTRATION,HB ENGLAND,EREWASH BOROUGH COUNCIL,2028834581,"70,612"
Department for Work and Pensions,Corporate,05-Mar-13,TREDDS APPS DEV MANDAYS,CHG TRANSFORMING LABOUR MARKET SERVICES,HP ENTERPRISE SERVICES UK LTD,2028679565,"70,559"
Department for Work and Pensions,Corporate,13-Mar-13,FSF - SUPPORT CONTRACT MODULES FOR JSA JOBSEEKERS,OPS WDC WSD SE SURREY AND SUSSEX EXTERNAL RELATIONS TEAM,PINNACLE PEOPLE,2028783846,"70,464"
Department for Work and Pensions,Corporate,25-Mar-13,NEW ENTERPRISE ALLOWANCE MENTOR MATCHING,OPS WDC WSD NE EMPLOYER AND PARTNERSHIPS,GATESHEAD COUNCIL,2028928333,"70,425"
Department for Work and Pensions,Housing Benefits,14-Mar-13,HOUSING BENEFIT ADMINISTRATION,HB ENGLAND,NORTH HERTFORDSHIRE DISTRICT COUNCIL,2028834746,"69,955"
Department for Work and Pensions,Employment Programmes,07-Mar-13,SERVICE FEE,"WWEG EP SUPP H ISLS,C COAST AND GRAM,F VALL,FIFE AND TSID",JHP GROUP LTD,2028747665,"69,918"
Department for Work and Pensions,Housing Benefits,14-Mar-13,HOUSING BENEFIT ADMINISTRATION,HB ENGLAND,AMBER VALLEY BOROUGH COUNCIL,2028834660,"69,684"
Department for Work and Pensions,Corporate,01-Mar-13,FSF - SUPPORT CONTRACT MODULES FOR JSA JOBSEEKERS,OPS WDC WSD CE LEICESTERSHIRE AND NORTHAMPTONSHIRE DO,INGEUS UK LTD,2028668375,"69,620"
Department for Work and Pensions,Housing Benefits,14-Mar-13,HOUSING BENEFIT ADMINISTRATION,HB SCOTLAND,ANGUS COUNCIL,2028834537,"69,525"
Department for Work and Pensions,Housing Benefits,14-Mar-13,HOUSING BENEFIT ADMINISTRATION,HB ENGLAND,HARROGATE BOROUGH COUNCIL,2028834599,"69,477"
Department for Work and Pensions,Housing Benefits,14-Mar-13,HOUSING BENEFIT ADMINISTRATION,HB ENGLAND,NEWCASTLE UNDER LYME BOROUGH COUNCIL,2028834850,"69,073"
Department for Work and Pensions,Corporate,25-Mar-13,VOCA Charges,F&C FIN CONT COBAP BANKING,VOCALINK,2028924297,"69,049"
Department for Work and Pensions,Corporate,21-Mar-13,FSF - TRAINING PAYMENTS TO PROVIDERS - JSA JOBSEEKERS,OPS WDC WSD NW GREATER MANCHESTER E AND W DO,SENCIA LTD,2028915593,"69,000"
Department for Work and Pensions,Corporate,27-Mar-13,NON PRIME PROPERTY COSTS VAT RECOVERABLE,F&C CD BENTON PARK VIEW,HMRC,2003770,"68,799"
Department for Work and Pensions,Housing Benefits,14-Mar-13,HOUSING BENEFIT ADMINISTRATION,HB ENGLAND,FENLAND DISTRICT COUNCIL,2028834544,"68,790"
Department for Work and Pensions,Corporate,05-Mar-13,TREDDS APPS DEV MANDAYS,CHG CMEC FUTURE SCHEME REQ FOR OPS PARTNERSHIP,HP ENTERPRISE SERVICES UK LTD,2028679565,"68,606"
Department for Work and Pensions,Corporate,21-Mar-13,CONTRACTED OUT OFFICE SERVICES,HR CST,CABINET OFFICE,2003755,"68,499"
Department for Work and Pensions,Housing Benefits,14-Mar-13,HOUSING BENEFIT ADMINISTRATION,HB WALES,POWYS COUNTY COUNCIL,2028834566,"68,265"
Department for Work and Pensions,Child Maintenance and Enforcement Commission,12-Mar-13,DWP COURT FEES & RELATED EXPENSES,EXTERNAL CONTRACTS HARPER MACLEOD,HARPER MACLEOD LLP,1000171307,"68,156"
Department for Work and Pensions,Housing Benefits,14-Mar-13,HOUSING BENEFIT ADMINISTRATION,HB ENGLAND,BASSETLAW DISTRICT COUNCIL,2028834528,"67,924"
Department for Work and Pensions,Housing Benefits,14-Mar-13,HOUSING BENEFIT ADMINISTRATION,HB ENGLAND,WYRE FOREST DISTRICT COUNCIL,2028834780,"67,846"
Department for Work and Pensions,Corporate,27-Mar-13,NON-TREDDS APPS DEV FIXED PRICE CONTRACTS,CHG SPECIFIED ADULT CHILDCARE CREDITS,HMRC,2003777,"67,758"
Department for Work and Pensions,Corporate,28-Mar-13,NON-TREDDS IS IT APPS DEV MANDAY,CHG BENEFIT CAP,CAPGEMINI UK PLC,2028999799,"67,618"
Department for Work and Pensions,Housing Benefits,14-Mar-13,HOUSING BENEFIT ADMINISTRATION,HB ENGLAND,SOUTH KESTEVEN DISTRICT COUNCIL,2028834664,"67,357"
Department for Work and Pensions,Corporate,13-Mar-13,IT Owned Additions Cost,CIO CSD ITLR NETWORK,BT GLOBAL SERVICES,2028794765,"67,299"
Department for Work and Pensions,Corporate,22-Mar-13,FSF - SUPPORT CONTRACT MODULES FOR JSA JOBSEEKERS,OPS WDC WSD NE EMPLOYER AND PARTNERSHIPS,SENCIA LTD,2028921850,"67,029"
Department for Work and Pensions,SHARED SERVICES,28-Mar-13,BUSINESS RATES - DIRECT LOCAL AUTHORITIES,SHARED SERVICES ESTATE,COMPANIES HOUSE,2029001466,"66,641"
Department for Work and Pensions,Corporate,26-Mar-13,NEW ENTERPRISE ALLOWANCE MENTOR MATCHING,OPS WDC WSD NW CUMBRIA AND LANCASHIRE DISTRICT OFFICE,CUMBRIA CHAMBER OF COMMERCE,2028935442,"66,621"
Department for Work and Pensions,Corporate,14-Mar-13,NETWORK SERVICES,CHG PIP DELIVERY,BT GLOBAL SERVICES,2028830267,"66,459"
Department for Work and Pensions,Housing Benefits,14-Mar-13,HOUSING BENEFIT ADMINISTRATION,HB WALES,DENBIGHSHIRE COUNTY COUNCIL,2028834819,"66,451"
Department for Work and Pensions,Employment Programmes,22-Mar-13,WP JSA 25+ SUSTAINMENT OUTCOME PAYMENT,WWEG EP SCOTLAND INGEUS UK,INGEUS UK LTD,2028922664,"66,005"
Department for Work and Pensions,Corporate,11-Mar-13,PROFESSIONAL ADVICE & OPINION VAT RECOVERABLE,CHG NATIONAL ROLLOUT OF CREDIT REF AGENCY,EXPERIAN LTD,2028754620,"65,918"
Department for Work and Pensions,Corporate,12-Mar-13,NEW ENTERPRISE ALLOWANCE MENTOR MATCHING,OPS WDC WSD LN EAST LONDON DISTRICT OFFICE,NETWORK PROJECTS LTD,2028760355,"65,813"
Department for Work and Pensions,Corporate,06-Mar-13,COST VARIANCE ACCOUNT,CHG ERSP COMMS,MANNING GOTTLEIB OMD,2028725279,"65,731"
Department for Work and Pensions,Corporate,13-Mar-13,NEW ENTERPRISE ALLOWANCE MENTOR MATCHING,OPS WDC WSD NE DURHAM AND TEES VALLEY DISTRICT OFFICE,NORTH EAST ENTERPRISE AGENCIES LTD,2028813779,"65,695"
Department for Work and Pensions,Corporate,01-Mar-13,NON-TREDDS IS IT APPS DEV MANDAY,CHG PIP DELIVERY,ACCENTURE UK LTD,2028669169,"65,686"
Department for Work and Pensions,Housing Benefits,14-Mar-13,HOUSING BENEFIT ADMINISTRATION,HB ENGLAND,EAST STAFFORDSHIRE DISTRICT COUNCIL,2028834852,"65,674"
Department for Work and Pensions,European Social Fund,25-Mar-13,MA ESF(D) PROGRAMME EXPENDITURE EC PREFUNDED THIRD PARTIES,WWEG EUROPEAN SOCIAL FUND PROGRAMME 2007-2013,COMMUNITY SERVICE VOLUNTEERS CVS,5000001308,"65,295"
Department for Work and Pensions,Housing Benefits,14-Mar-13,HOUSING BENEFIT ADMINISTRATION,HB ENGLAND,CHELTENHAM BOROUGH COUNCIL,2028834720,"65,238"
Department for Work and Pensions,Housing Benefits,14-Mar-13,HOUSING BENEFIT ADMINISTRATION,HB ENGLAND,WORTHING BOROUGH COUNCIL,2028834692,"65,147"
Department for Work and Pensions,Corporate,21-Mar-13,NEW ENTERPRISE ALLOWANCE MENTOR MATCHING,OPS WDC WSD SE SURREY AND SUSSEX DISTRICT OFFICE,LETS DO BUSINESS,2028916120,"65,137"
Department for Work and Pensions,Corporate,14-Mar-13,BANK COMMISSION & CHARGES,F&C FIN CONT COBAP BANKING,HSBC BANK PLC,2028830964,"64,810"
Department for Work and Pensions,Housing Benefits,14-Mar-13,HOUSING BENEFIT ADMINISTRATION,HB ENGLAND,HARLOW DISTRICT COUNCIL,2028834511,"64,665"
Department for Work and Pensions,Corporate,27-Mar-13,PRIME BUSINESS RATES,F&C CD NORCROSS,TELEREAL TRILLIUM,2028981832,"64,561"
Department for Work and Pensions,Corporate,15-Mar-13,CONTRACTORS & STAFF SUBSTITUTIONS,CIO ADC DIRECTOR,CAPITA RESOURCING LTD,2028839837,"64,367"
Department for Work and Pensions,Housing Benefits,14-Mar-13,HOUSING BENEFIT ADMINISTRATION,HB ENGLAND,GEDLING BOROUGH COUNCIL,2028834526,"64,178"
Department for Work and Pensions,Child Maintenance and Enforcement Commission,11-Mar-13,TREDDS APPS DEV MANDAYS,LEGACY RELEASE 22,HP ENTERPRISE SERVICES UK LTD,1000171262,"64,084"
Department for Work and Pensions,Corporate,28-Mar-13,STAFF TRAINING VAT RECOVERABLE,HR EDT,FLETCHER CONSULTANCY,2028996056,"63,823"
Department for Work and Pensions,Corporate,12-Mar-13,NON-TREDDS IS IT APPS DEV MANDAY,CHG TRANSFORMING LABOUR MARKET SERVICES,IBM UNITED KINGDOM LTD,2028761502,"63,820"
Department for Work and Pensions,Corporate,08-Mar-13,STAFF TRAINING VAT RECOVERABLE,HR EDT,FLETCHER CONSULTANCY,2028748831,"63,670"
Department for Work and Pensions,Housing Benefits,14-Mar-13,HOUSING BENEFIT ADMINISTRATION,HB WALES,BLAENAU GWENT COUNTY BOROUGH COUNCIL,2028834727,"63,649"
Department for Work and Pensions,Housing Benefits,14-Mar-13,HOUSING BENEFIT ADMINISTRATION,HB ENGLAND,EAST DEVON DISTRICT COUNCIL,2028834577,"63,556"
Department for Work and Pensions,Housing Benefits,14-Mar-13,HOUSING BENEFIT ADMINISTRATION,HB ENGLAND,CAMBRIDGE CITY COUNCIL,2028834533,"63,305"
Department for Work and Pensions,Housing Benefits,14-Mar-13,HOUSING BENEFIT ADMINISTRATION,HB ENGLAND,NORTH DEVON DISTRICT COUNCIL,2028834551,"63,243"
Department for Work and Pensions,Housing Benefits,14-Mar-13,HOUSING BENEFIT ADMINISTRATION,HB ENGLAND,GRAVESHAM BOROUGH COUNCIL,2028834841,"63,175"
Department for Work and Pensions,Housing Benefits,14-Mar-13,HOUSING BENEFIT ADMINISTRATION,HB ENGLAND,WORCESTER CITY COUNCIL,2028834773,"63,134"
Department for Work and Pensions,Housing Benefits,14-Mar-13,HOUSING BENEFIT ADMINISTRATION,HB ENGLAND,WARWICK DISTRICT COUNCIL,2028834723,"62,920"
Department for Work and Pensions,Corporate,26-Mar-13,ADEP AM SERVICES - VAT NON-RECOVERABLE,CHG UNIVERSAL CREDIT PROG DIRECTOR & PMO,ACCENTURE UK LTD,2028935363,"62,843"
Department for Work and Pensions,Corporate,28-Mar-13,CURRENT GRANTS TO LOCAL GOVERNMENT,CHG RIGHT TO CONTROL DELP,SURREY COUNTY COUNCIL,1005729,"62,834"
Department for Work and Pensions,Housing Benefits,14-Mar-13,HOUSING BENEFIT ADMINISTRATION,HB ENGLAND,CANNOCK CHASE DISTRICT COUNCIL,2028834853,"62,429"
Department for Work and Pensions,Corporate,08-Mar-13,CONTRACTORS & STAFF SUBSTITUTIONS,CIO ADC DIRECTOR,CAPITA RESOURCING LTD,2028753706,"62,372"
Department for Work and Pensions,Employment Programmes,07-Mar-13,SERVICE FEE,WWEG EP SUPPORT BLACK COUNTRY,A4E LTD,2028743313,"62,320"
Department for Work and Pensions,Housing Benefits,14-Mar-13,HOUSING BENEFIT ADMINISTRATION,HB ENGLAND,BROXBOURNE BOROUGH COUNCIL,2028834779,"62,244"
Department for Work and Pensions,Corporate,15-Mar-13,CONTRACTORS & STAFF SUBSTITUTIONS,CHG UC PROJECT LEDGER CC,CAPITA RESOURCING LTD,2028839837,"62,213"
Department for Work and Pensions,Housing Benefits,14-Mar-13,HOUSING BENEFIT ADMINISTRATION,HB ENGLAND,WEST LANCASHIRE DISTRICT COUNCIL,2028834689,"62,205"
Department for Work and Pensions,Corporate,08-Mar-13,SOFTWARE LICENCES,CIO CSD ITLR HOSTING,HP ENTERPRISE SERVICES UK LTD,2028753399,"61,902"
Department for Work and Pensions,Housing Benefits,14-Mar-13,HOUSING BENEFIT ADMINISTRATION,HB ENGLAND,ASHFORD BOROUGH COUNCIL,2028834755,"61,815"
Department for Work and Pensions,Housing Benefits,14-Mar-13,HOUSING BENEFIT ADMINISTRATION,HB ENGLAND,MENDIP DISTRICT COUNCIL,2028834496,"61,796"
Department for Work and Pensions,Employment Programmes,28-Mar-13,SERVICE FEE,WWEG EP CORE MWA CPA YORKSHIRE AND HUMBER,INTERSERVE WORKING FUTURES,2028999751,"61,687"
Department for Work and Pensions,Housing Benefits,14-Mar-13,HOUSING BENEFIT ADMINISTRATION,HB ENGLAND,CITY OF CARLISLE DISTRICT COUNCIL,2028834601,"61,315"
Department for Work and Pensions,Housing Benefits,14-Mar-13,HOUSING BENEFIT ADMINISTRATION,HB ENGLAND,REIGATE & BANSTEAD BOROUGH COUNCIL,2028834738,"61,294"
Department for Work and Pensions,Corporate,14-Mar-13,PUBLICITY ADVERTISING MEDIA,PSG STRATEGIC COMMS COO,M4C,2028829943,"61,191"
Department for Work and Pensions,Housing Benefits,14-Mar-13,HOUSING BENEFIT ADMINISTRATION,HB ENGLAND,TAUNTON DEANE BOROUGH COUNCIL,2028834495,"61,068"
Department for Work and Pensions,Corporate,12-Mar-13,POSTAGE,F&C CD ACC POSTAGE,G3 WORLDWIDE MAIL UK LTD,2028761890,"60,729"
Department for Work and Pensions,Corporate,26-Mar-13,NON-TREDDS IS IT APPS DEV MANDAY,CHG UC PROJECT LEDGER CC,ACCENTURE UK LTD,2028935363,"60,674"
Department for Work and Pensions,Corporate,12-Mar-13,TREDDS APPS DEV MANDAYS,OPS OPE IT REL - JSAPS,HP ENTERPRISE SERVICES UK LTD,2028760623,"60,664"
Department for Work and Pensions,Corporate,22-Mar-13,CONTRACTORS & STAFF SUBSTITUTIONS,CIO ADC DIRECTOR,CAPITA RESOURCING LTD,2028920181,"60,300"
Department for Work and Pensions,Housing Benefits,14-Mar-13,HOUSING BENEFIT ADMINISTRATION,HB ENGLAND,GUILDFORD BOROUGH COUNCIL,2028834740,"60,060"
Department for Work and Pensions,Corporate,27-Mar-13,CURRENT GRANTS TO LOCAL GOVERNMENT,STR CHILD POVERTY UNIT,ESSEX COUNTY COUNCIL,1005716,"60,000"
Department for Work and Pensions,Child Maintenance and Enforcement Commission,11-Mar-13,NON-TREDDS APPS DEV FIXED PRICE CONTRACTS,FAMILY SUPPORT SERVICES,LIGHTMAKER UK LTD,1000171270,"60,000"
Department for Work and Pensions,Housing Benefits,14-Mar-13,HOUSING BENEFIT ADMINISTRATION,HB ENGLAND,NEWARK DISTRICT COUNCIL,2028834525,"59,907"
Department for Work and Pensions,Housing Benefits,14-Mar-13,HOUSING BENEFIT ADMINISTRATION,HB ENGLAND,NORTH NORFOLK DISTRICT COUNCIL,2028834642,"59,889"
Department for Work and Pensions,Housing Benefits,14-Mar-13,HOUSING BENEFIT ADMINISTRATION,HB ENGLAND,EPPING FOREST DISTRICT COUNCIL,2028834848,"59,846"
Department for Work and Pensions,Corporate,12-Mar-13,SIAM MANAGEMENT SERVICES,CIO CSD ITLR SIAM,HP ENTERPRISE SERVICES UK LTD,2028760623,"59,791"
Department for Work and Pensions,Corporate,07-Mar-13,POSTAGE,OPS BEN DD BENEFITS GROUP 3 SEO 2 SUPPORT 1,ROYAL MAIL GROUP PLC,2028744935,"59,678"
Department for Work and Pensions,Employment Programmes,26-Mar-13,WP JSA 25+ SUSTAINMENT OUTCOME PAYMENT,WWEG EP SOUTH EAST TV HANTS AND IOW MAXIMUS EMPLOYMENT,MAXIMUS EMPLOYMENT UK LTD,2028932432,"59,555"
Department for Work and Pensions,Housing Benefits,14-Mar-13,HOUSING BENEFIT ADMINISTRATION,HB ENGLAND,WELWYN HATFIELD DISTRICT COUNCIL,2028834775,"59,251"
Department for Work and Pensions,Housing Benefits,14-Mar-13,HOUSING BENEFIT ADMINISTRATION,HB ENGLAND,SOUTH NORFOLK DISTRICT COUNCIL,2028834651,"59,017"
Department for Work and Pensions,Corporate,21-Mar-13,CONSULTANTS VAT RECOVERABLE,CIO CSD INFRASTRUCTURE & SERVICE REMEDIATION,DELOITTE MCS LTD,2028916893,"59,007"
Department for Work and Pensions,Housing Benefits,14-Mar-13,HOUSING BENEFIT ADMINISTRATION,HB SCOTLAND,ARGYLL & BUTE COUNCIL,2028834809,"58,706"
Department for Work and Pensions,Corporate,13-Mar-13,SOC SEC RESEARCH BUDGET,PSG ANALYSIS CAD,IFF RESEARCH LTD,2028773882,"58,677"
Department for Work and Pensions,Corporate,12-Mar-13,STAFF TRAINING VAT RECOVERABLE,HR CONTRACTUAL L AND D,CAPITA CIVIL SERVICE LEARNING,2028760707,"58,597"
Department for Work and Pensions,Housing Benefits,14-Mar-13,HOUSING BENEFIT ADMINISTRATION,HB ENGLAND,WEALDEN DISTRICT COUNCIL,2028834490,"58,521"
Department for Work and Pensions,Housing Benefits,14-Mar-13,HOUSING BENEFIT ADMINISTRATION,HB ENGLAND,CHICHESTER DISTRICT COUNCIL,2028834695,"58,505"
Department for Work and Pensions,Corporate,27-Mar-13,PRIME FACILITY PRICE,F&C CD PRESTON HOLBORN HOUSE,TELEREAL TRILLIUM,2028981834,"58,440"
Department for Work and Pensions,Housing Benefits,14-Mar-13,HOUSING BENEFIT ADMINISTRATION,HB ENGLAND,WINDSOR & MAIDENHEAD BOROUGH COUNCIL,2028834762,"58,136"
Department for Work and Pensions,Corporate,01-Mar-13,MEDICAL SERVICES FIXED COSTS,CHG PIP ORG DESIGN & REASSESSMENT,ATOS IT SERVICES UK LTD,2028668447,"58,084"
Department for Work and Pensions,Corporate,08-Mar-13,TREDDS APPS DEV MANDAYS,CIO NISSA OGD,HP ENTERPRISE SERVICES UK LTD,2028753399,"57,992"
Department for Work and Pensions,Housing Benefits,14-Mar-13,HOUSING BENEFIT ADMINISTRATION,HB ENGLAND,GOSPORT BOROUGH COUNCIL,2028834820,"57,959"
Department for Work and Pensions,Corporate,08-Mar-13,SOC SEC RESEARCH BUDGET,EG CPAD RESEARCH AND EVALUATION,SHEFFIELD HALLAM UNIVERSITY,2028753482,"57,910"
Department for Work and Pensions,Housing Benefits,14-Mar-13,HOUSING BENEFIT ADMINISTRATION,HB ENGLAND,BRACKNELL FOREST BOROUGH COUNCIL,2028834764,"57,846"
Department for Work and Pensions,Corporate,08-Mar-13,AMS FIXED PRICE CONTRACTS,CIO CSD ITLR AMS,HP ENTERPRISE SERVICES UK LTD,2028753399,"57,681"
Department for Work and Pensions,Employment Programmes,07-Mar-13,SERVICE FEE,WWEG EP SUPPORT CUMBRIA AND LANCASHIRE,JHP GROUP LTD,2028747665,"57,676"
Department for Work and Pensions,Corporate,12-Mar-13,SOFTWARE LICENCES,CIO CSD ITLR HOSTING,HP ENTERPRISE SERVICES UK LTD,2028760623,"57,446"
Department for Work and Pensions,Employment Programmes,28-Mar-13,WP JSA 25+ JOB OUTCOME PAYMENTWP JSA 25+ JOB OUTCOME PAYMENT,WWEG EP NORTH WEST MERS HAL CUMB AND LANCS A4E,A4E LTD,2029000341,"57,408"
Department for Work and Pensions,Employment Programmes,08-Mar-13,WP JSA 25+ SUSTAINMENT OUTCOME PAYMENT,WWEG EP SCOTLAND INGEUS UK,INGEUS UK LTD,2028753498,"57,190"
Department for Work and Pensions,Housing Benefits,14-Mar-13,HOUSING BENEFIT ADMINISTRATION,HB ENGLAND,HERTSMERE BOROUGH COUNCIL,2028834778,"57,100"
Department for Work and Pensions,Corporate,27-Mar-13,PRIME FACILITY PRICE,F&C CD CORBY DISCOVERY HOUSE,TELEREAL TRILLIUM,2028981834,"57,099"
Department for Work and Pensions,Child Maintenance and Enforcement Commission,07-Mar-13,POSTAGE,CS CENTRALLY HELD BUDGETS FACILITIES CONTRACTS,ROYAL MAIL GROUP PLC,1000170880,"57,021"
Department for Work and Pensions,Employment Programmes,22-Mar-13,WP JSA 25+ SUSTAINMENT OUTCOME PAYMENT,WWEG EP EAST OF ENGLAND INGEUS UK,INGEUS UK LTD,2028922664,"56,975"
Department for Work and Pensions,Housing Benefits,14-Mar-13,HOUSING BENEFIT ADMINISTRATION,HB ENGLAND,STRATFORD ON AVON DISTRICT COUNCIL,2028834714,"56,847"
Department for Work and Pensions,Corporate,21-Mar-13,NEW ENTERPRISE ALLOWANCE MENTOR MATCHING,OPS WDC WSD LN WEST LONDON DISTRICT OFFICE,GLE ONE LONDON LTD,2028917281,"56,801"
Department for Work and Pensions,Housing Benefits,14-Mar-13,HOUSING BENEFIT ADMINISTRATION,HB SCOTLAND,EAST LOTHIAN DISTRICT COUNCIL,2028834624,"56,675"
Department for Work and Pensions,Housing Benefits,14-Mar-13,HOUSING BENEFIT ADMINISTRATION,HB ENGLAND,WATFORD BOROUGH COUNCIL,2028834563,"56,667"
Department for Work and Pensions,Corporate,11-Mar-13,NON PRIME PROPERTY COSTS,OPS WDC WSD LN 2012 EET,LONDON BOROUGH OF NEWHAM,2028757218,"56,471"
Department for Work and Pensions,Housing Benefits,14-Mar-13,HOUSING BENEFIT ADMINISTRATION,HB ENGLAND,STEVENAGE BOROUGH COUNCIL,2028834777,"56,461"
Department for Work and Pensions,Housing Benefits,14-Mar-13,HOUSING BENEFIT ADMINISTRATION,HB ENGLAND,RUGBY BOROUGH COUNCIL,2028834715,"56,407"
Department for Work and Pensions,Employment Programmes,08-Mar-13,WP JSA 25+ SUSTAINMENT OUTCOME PAYMENT,WWEG EP SCOTLAND WORKING LINKS,WORKING LINKS,2028753845,"56,330"
Department for Work and Pensions,Corporate,22-Mar-13,NON-TREDDS APPS DEV FIXED PRICE CONTRACTS,OPS CCS TUO NEW BUSINESS,ATOS ORIGIN IT SERVICES UK LTD,2028920501,"56,229"
Department for Work and Pensions,Employment Programmes,07-Mar-13,SERVICE FEE,"WWEG EP SUPPORT SOUTH EAST WALES, NORTH AND MID WALES",A4E LTD,2028743313,"56,174"
Department for Work and Pensions,Housing Benefits,14-Mar-13,HOUSING BENEFIT ADMINISTRATION,HB ENGLAND,EAST HERTFORDSHIRE DISTRICT COUNCIL,2028834833,"56,152"
Department for Work and Pensions,Housing Benefits,14-Mar-13,HOUSING BENEFIT ADMINISTRATION,HB ENGLAND,TONBRIDGE & MALLING DISTRICT COUNCIL,2028834730,"56,134"
Department for Work and Pensions,Corporate,25-Mar-13,POSTAGE,F&C CD NEWCASTLE ESTATE,UK MAIL,2028928312,"55,995"
Department for Work and Pensions,Housing Benefits,14-Mar-13,HOUSING BENEFIT ADMINISTRATION,HB ENGLAND,ALLERDALE DISTRICT COUNCIL,2028834650,"55,982"
Department for Work and Pensions,Corporate,18-Mar-13,CONTRACTED OUT OFFICE SERVICES,F&C OPS FIN DM ENFORCEMENT,IQOR RECOVERY SERVICES LTD,2028844475,"55,973"
Department for Work and Pensions,Housing Benefits,14-Mar-13,HOUSING BENEFIT ADMINISTRATION,HB ENGLAND,SUFFOLK COASTAL DISTRICT COUNCIL,2028834807,"55,783"
Department for Work and Pensions,Corporate,22-Mar-13,NEW ENTERPRISE ALLOWANCE MENTOR MATCHING,OPS WDC WSD SE HAMPSHIRE DISTRICT OFFICE,ENTERPRISE FIRST,2028919207,"55,740"
Department for Work and Pensions,Housing Benefits,14-Mar-13,HOUSING BENEFIT ADMINISTRATION,HB ENGLAND,RUSHMOOR BOROUGH COUNCIL,2028834801,"55,723"
Department for Work and Pensions,Housing Benefits,14-Mar-13,HOUSING BENEFIT ADMINISTRATION,HB ENGLAND,BOROUGH OF REDDITCH,2028834798,"55,679"
Department for Work and Pensions,Corporate,21-Mar-13,NEW ENTERPRISE ALLOWANCE MENTOR MATCHING,OPS WDC WSD NW MERSEYSIDE DISTRICT OFFICE,BLUE ORCHID SUPPORT SERVICES,2028918792,"55,470"
Department for Work and Pensions,Housing Benefits,14-Mar-13,HOUSING BENEFIT ADMINISTRATION,HB ENGLAND,BROXTOWE BOROUGH COUNCIL,2028834527,"55,342"
Department for Work and Pensions,Corporate,06-Mar-13,PENS ADVISORY SERVICE GIA,CHG ERSP COMMS,THE PENSIONS ADVISORY SERVICE,1005677,"55,000"
Department for Work and Pensions,Corporate,07-Mar-13,POSTAGE,F&C CD NEWCASTLE ESTATE,ROYAL MAIL GROUP PLC,2028744935,"54,838"
Department for Work and Pensions,Corporate,27-Mar-13,PRIME UTILITIES,OPS OPE ESTATES RECESSION,TELEREAL TRILLIUM,2028981453,"54,346"
Department for Work and Pensions,Corporate,01-Mar-13,FSF - SUPPORT CONTRACT MODULES FOR JSA JOBSEEKERS,OPS WDC WSD WL SOUTH EAST WALES DISTRICT OFFICE,CAPITAL TRAINING GROUP LTD,2028666680,"54,151"
Department for Work and Pensions,Corporate,05-Mar-13,TREDDS APPS DEV FIXED PRICE CONTRACTS,CHG PIP DELIVERY,HP ENTERPRISE SERVICES UK LTD,2028679565,"54,130"
Department for Work and Pensions,Child Maintenance and Enforcement Commission,08-Mar-13,PRIME VARIABLE CHARGE,PRIME,DEPARTMENT FOR WORK & PENSIONS,2000843,"54,027"
Department for Work and Pensions,Jobcentre Plus,21-Mar-13,NEW ENTERPRISE ALLOWANCE MENTOR MATCHING,CSD LN BEDS AND HERTS DISTRICT OFFICE,WENTA,2028917611,"53,996"
Department for Work and Pensions,Housing Benefits,14-Mar-13,HOUSING BENEFIT ADMINISTRATION,HB ENGLAND,CHORLEY BOROUGH COUNCIL,2028834711,"53,772"
Department for Work and Pensions,Housing Benefits,14-Mar-13,HOUSING BENEFIT ADMINISTRATION,HB ENGLAND,ST EDMUNDSBURY BOROUGH COUNCIL,2028834512,"53,706"
Department for Work and Pensions,Housing Benefits,14-Mar-13,HOUSING BENEFIT ADMINISTRATION,HB ENGLAND,ROTHER DISTRICT COUNCIL,2028834491,"53,652"
Department for Work and Pensions,Employment Programmes,25-Mar-13,WP JSA 25+ SUSTAINMENT OUTCOME PAYMENT,WWEG EP SOUTH EAST SURR SUSSX AND KENT G4S,G4S REGIONAL MANAGEMENT UK & I LTD,2028926918,"53,535"
Department for Work and Pensions,Housing Benefits,14-Mar-13,HOUSING BENEFIT ADMINISTRATION,HB ENGLAND,STAFFORD BOROUGH COUNCIL,2028834741,"53,491"
Department for Work and Pensions,Housing Benefits,14-Mar-13,HOUSING BENEFIT ADMINISTRATION,HB ENGLAND,WEST LINDSEY DISTRICT COUNCIL,2028834663,"53,352"
Department for Work and Pensions,Housing Benefits,14-Mar-13,HOUSING BENEFIT ADMINISTRATION,HB ENGLAND,TUNBRIDGE WELLS BOROUGH COUNCIL,2028834729,"53,256"
Department for Work and Pensions,Corporate,13-Mar-13,PUBLICITY ADVERTISING MEDIA,CHG ERSP COMMS,M4C,2028775654,"53,164"
Department for Work and Pensions,Corporate,20-Mar-13,TREDDS APPS DEV MANDAYS,CHG PIP DELIVERY,HP ENTERPRISE SERVICES UK LTD,2028900947,"53,082"
Department for Work and Pensions,Corporate,26-Mar-13,FSF - SUPPORT CONTRACT MODULES FOR JSA JOBSEEKERS,OPS WDC WSD CE LEICESTERSHIRE AND NORTHAMPTONSHIRE DO,INGEUS UK LTD,2028932444,"53,006"
Department for Work and Pensions,Employment Programmes,28-Mar-13,WP JSA 25+ JOB OUTCOME PAYMENTWP JSA 25+ JOB OUTCOME PAYMENT,WWEG EP EAST MIDLANDS A4E,A4E LTD,2029000341,"52,992"
Department for Work and Pensions,Employment Programmes,01-Mar-13,WP JSA 25+ SUSTAINMENT OUTCOME PAYMENT,WWEG EP SCOTLAND INGEUS UK,INGEUS UK LTD,2028668374,"52,890"
Department for Work and Pensions,Housing Benefits,14-Mar-13,HOUSING BENEFIT ADMINISTRATION,HB ENGLAND,SOUTH RIBBLE BOROUGH COUNCIL C,2028834707,"52,827"
Department for Work and Pensions,Housing Benefits,14-Mar-13,HOUSING BENEFIT ADMINISTRATION,HB ENGLAND,KETTERING BOROUGH COUNCIL,2028834621,"52,598"
Department for Work and Pensions,Housing Benefits,14-Mar-13,HOUSING BENEFIT ADMINISTRATION,HB ENGLAND,EASTLEIGH BOROUGH COUNCIL,2028834822,"52,506"
Department for Work and Pensions,Housing Benefits,14-Mar-13,HOUSING BENEFIT ADMINISTRATION,HB ENGLAND,LEWES DISTRICT COUNCIL,2028834676,"52,484"
Department for Work and Pensions,Child Maintenance and Enforcement Commission,28-Mar-13,CONTRACTORS & STAFF SUBSTITUTIONS,NEW SCHEME PROJECT RESOURCE RECHARGE,CAPITA RESOURCING LTD,1000173102,"52,410"
Department for Work and Pensions,Housing Benefits,14-Mar-13,HOUSING BENEFIT ADMINISTRATION,HB ENGLAND,WYCHAVON DISTRICT COUNCIL,2028834514,"52,349"
Department for Work and Pensions,Employment Programmes,01-Mar-13,ACCESS TO WORK - PAYMENT FOR SUPPORT WORKERS,WWEG EP LONDON REGION,UNIVERSITY OF LONDON,2028668158,"52,270"
Department for Work and Pensions,Employment Programmes,15-Mar-13,WP JSA 25+ SUSTAINMENT OUTCOME PAYMENT,WWEG EP SCOTLAND INGEUS UK,INGEUS UK LTD,2028839155,"52,030"
Department for Work and Pensions,Corporate,08-Mar-13,CONTRACTORS & STAFF SUBSTITUTIONS,CHG FUTURE CONTRACTING DELIVERY,CAPITA RESOURCING LTD,2028753706,"51,946"
Department for Work and Pensions,Corporate,08-Mar-13,FSF - PARTNERSHIP GRANTS - TO HELP JSA CLIENTS INTO WORK,OPS WDC WSD SE WESSEX DISTRICT OFFICE,PINNACLE PEOPLE,2028748916,"51,850"
Department for Work and Pensions,Employment Programmes,19-Mar-13,WP JSA 25+ SUSTAINMENT OUTCOME PAYMENT,WWEG EP SOUTH EAST SURR SUSSX AND KENT AVANTA ENTERPRISE,AVANTA ENTERPRISE LTD,2028852971,"51,815"
Department for Work and Pensions,Housing Benefits,14-Mar-13,HOUSING BENEFIT ADMINISTRATION,HB ENGLAND,BOROUGH OF WELLINGBOROUGH,2028834619,"51,750"
Department for Work and Pensions,Housing Benefits,14-Mar-13,HOUSING BENEFIT ADMINISTRATION,HB ENGLAND,TEST VALLEY BOROUGH COUNCIL,2028834815,"51,684"
Department for Work and Pensions,Housing Benefits,14-Mar-13,HOUSING BENEFIT ADMINISTRATION,HB ENGLAND,ELMBRIDGE BOROUGH COUNCIL,2028834806,"51,654"
Department for Work and Pensions,Child Maintenance and Enforcement Commission,12-Mar-13,CORPORATE COSTS,DWP RECHARGE - RISK & ASSURANCE,DWP,2000844,"51,542"
Department for Work and Pensions,Child Maintenance and Enforcement Commission,21-Mar-13,CORPORATE COSTS,DWP RECHARGE - RISK & ASSURANCE,DWP,2000870,"51,542"
Department for Work and Pensions,Corporate,22-Mar-13,CONTRACTORS & STAFF SUBSTITUTIONS,CHG FUTURE CONTRACTING DELIVERY,CAPITA RESOURCING LTD,2028920181,"51,523"
Department for Work and Pensions,Housing Benefits,14-Mar-13,HOUSING BENEFIT ADMINISTRATION,HB ENGLAND,BARROW BOROUGH COUNCIL,2028834719,"51,500"
Department for Work and Pensions,Housing Benefits,14-Mar-13,HOUSING BENEFIT ADMINISTRATION,HB SCOTLAND,MIDLOTHIAN COUNCIL,2028834769,"51,424"
Department for Work and Pensions,Child Maintenance and Enforcement Commission,21-Mar-13,DESKTOP FIXED PRICE CONTRACTS,LEGACY SYSTEMS IT RUNNING COSTS - IOL,DWP,2000880,"51,335"
Department for Work and Pensions,Employment Programmes,07-Mar-13,SERVICE FEE,WWEG EP SUPPORT LEICESTERSHIRE AND NORTHAMPTONSHIRE,INGEUS UK LTD,2028744002,"50,998"
Department for Work and Pensions,Employment Programmes,01-Mar-13,WP JSA 25+ SUSTAINMENT OUTCOME PAYMENT,WWEG EP EAST OF ENGLAND INGEUS UK,INGEUS UK LTD,2028668374,"50,955"
Department for Work and Pensions,Housing Benefits,14-Mar-13,HOUSING BENEFIT ADMINISTRATION,HB ENGLAND,DARTFORD BOROUGH COUNCIL,2028834652,"50,654"
Department for Work and Pensions,Housing Benefits,14-Mar-13,HOUSING BENEFIT ADMINISTRATION,HB ENGLAND,HIGH PEAK BOROUGH COUNCIL,2028834580,"50,422"
Department for Work and Pensions,Corporate,28-Mar-13,PROFESSIONAL ADVICE & OPINION VAT RECOVERABLE,PSG LEGAL SERVICES COMMERCIAL,DLA PIPER UK LLP,2029000854,"50,364"
Department for Work and Pensions,Housing Benefits,14-Mar-13,HOUSING BENEFIT ADMINISTRATION,HB WALES,MERTHYR TYDFIL BOROUGH COUNCIL,2028834646,"50,303"
Department for Work and Pensions,Housing Benefits,14-Mar-13,HOUSING BENEFIT ADMINISTRATION,HB ENGLAND,WEYMOUTH & PORTLAND BOROUGH COUNCIL,2028834493,"50,220"
Department for Work and Pensions,Corporate,21-Mar-13,NON-TREDDS IS IT CONSULTANCY (HOSTING) NON ADVICE,CHG UC PROJECT LEDGER CC,SPECIALIST COMPUTER CENTRES PLC,2028914674,"50,149"
Department for Work and Pensions,Corporate,11-Mar-13,TREDDS APPS DEV MANDAYS,CIO ODG HMRC,HP ENTERPRISE SERVICES UK LTD,2028755530,"50,026"
Department for Work and Pensions,Corporate,12-Mar-13,NEW ENTERPRISE ALLOWANCE LOAN PAYMENT (DEL CAPITAL),OPS WDC WSD DEL PROG REPORTING,GREATER LONDON ENTERPRISE,2028762483,"50,000"
Department for Work and Pensions,Corporate,26-Mar-13,ACCOUNTS PAYABLE UNAPPROVED INVOICES,OPS WDC WSD SE DEVON AND CORNWALL DISTRICT OFFICE,CORNWALL COUNTY COUNCIL,2028934983,"50,000"
Department for Work and Pensions,Corporate,11-Mar-13,STAFF TRAINING VAT RECOVERABLE,CHG PMU,OXFORD SAID BUSINESS SCHOOL LTD,2028754065,"50,000"
Department for Work and Pensions,Corporate,28-Mar-13,FSF - PARTNERSHIP GRANTS - TO HELP JSA CLIENTS INTO WORK,OPS WDC WSD NE DURHAM AND TEES VALLEY DISTRICT OFFICE,DURHAM COUNTY COUNCIL,1005722,"50,000"
Department for Work and Pensions,Housing Benefits,14-Mar-13,HOUSING BENEFIT ADMINISTRATION,HB ENGLAND,STROUD DISTRICT COUNCIL,2028834844,"49,992"
Department for Work and Pensions,Employment Programmes,19-Mar-13,WP JSA 25+ JOB OUTCOME PAYMENTWP JSA 25+ JOB OUTCOME PAYMENT,WWEG EP WEST YORKSHIRE BEST LTD,INTERSERVE WORKING FUTURES,2028853506,"49,980"
Department for Work and Pensions,Housing Benefits,14-Mar-13,HOUSING BENEFIT ADMINISTRATION,HB ENGLAND,WEST DORSET DISTRICT COUNCIL,2028834517,"49,972"
Department for Work and Pensions,Housing Benefits,14-Mar-13,HOUSING BENEFIT ADMINISTRATION,HB ENGLAND,NORTH EAST DERBYSHIRE DISTRICT COUNCIL,2028834579,"49,900"
Department for Work and Pensions,Employment Programmes,26-Mar-13,WP JSA 25+ SUSTAINMENT OUTCOME PAYMENT,WWEG EP WEST LONDON MAXIMUS EMPLOYMENT UK,MAXIMUS EMPLOYMENT UK LTD,2028932432,"49,880"
Department for Work and Pensions,Corporate,26-Mar-13,DESKTOP SERVICES,CIO CSD ITLR DESKTOP,HP ENTERPRISE SERVICES UK LTD,2028934802,"49,829"
Department for Work and Pensions,Corporate,21-Mar-13,NEW ENTERPRISE ALLOWANCE MENTOR MATCHING,OPS WDC WSD CE EAST ANGLIA DISTRICT OFFICE,IXION HOLDINGS LTD,2028917522,"49,789"
Department for Work and Pensions,Corporate,01-Mar-13,NEW ENTERPRISE ALLOWANCE MENTOR MATCHING,OPS WDC WSD SE GLOUCESTERSHIRE AND WEST OF ENGLAND DO,GLOUCESTERSHIRE ENTERPRISE LTD,2028667108,"49,680"
Department for Work and Pensions,Employment Programmes,28-Mar-13,SERVICE FEE,WWEG EP CORE MWA CPA WALES,TBG LEARNING LTD,2029000586,"49,605"
Department for Work and Pensions,Corporate,28-Mar-13,FSF - TRAINING PAYMENTS TO PROVIDERS - JSA JOBSEEKERS,OPS WDC WSD LN SOUTH LONDON DISTRICT OFFICE,PROSPECTS SERVICES LTD,2028999865,"49,533"
Department for Work and Pensions,Housing Benefits,14-Mar-13,HOUSING BENEFIT ADMINISTRATION,HB ENGLAND,SEVENOAKS DISTRICT COUNCIL,2028834732,"49,447"
Department for Work and Pensions,Corporate,27-Mar-13,FSF - SUPPORT CONTRACT MODULES FOR JSA JOBSEEKERS,OPS WDC WSD LN NORTH LONDON DISTRICT OFFICE,A4E LTD,2028959391,"49,392"
Department for Work and Pensions,Child Maintenance and Enforcement Commission,20-Mar-13,CONTRACTED OUT OFFICE SERVICES,EXTERNAL CONTRACTS VERTEX,SERCO PUBLIC SERVICES LTD,1000172291,"49,372"
Department for Work and Pensions,Housing Benefits,14-Mar-13,HOUSING BENEFIT ADMINISTRATION,HB ENGLAND,MID SUSSEX DISTRICT COUNCIL,2028834842,"49,333"
Department for Work and Pensions,Housing Benefits,14-Mar-13,HOUSING BENEFIT ADMINISTRATION,HB ENGLAND,BROADLAND DISTRICT COUNCIL,2028834644,"49,174"
Department for Work and Pensions,Housing Benefits,14-Mar-13,HOUSING BENEFIT ADMINISTRATION,HB ENGLAND,BOLSOVER DISTRICT COUNCIL,2028834721,"48,831"
Department for Work and Pensions,Corporate,28-Mar-13,SOC SEC RESEARCH BUDGET,PSG IGS STAT SERVICES,NATIONAL CENTRE FOR SOCIAL RESEARCH,2028996048,"48,821"
Department for Work and Pensions,Housing Benefits,14-Mar-13,HOUSING BENEFIT ADMINISTRATION,HB ENGLAND,CASTLE POINT DISTRICT COUNCIL,2028834488,"48,807"
Department for Work and Pensions,Housing Benefits,14-Mar-13,HOUSING BENEFIT ADMINISTRATION,HB ENGLAND,CORBY BOROUGH COUNCIL,2028834767,"48,759"
Department for Work and Pensions,Employment Programmes,20-Mar-13,SUPPORT FOR THE VERY LONG TERM UNEMPLOYED SUSTAINED JOB OUTCOME FEE,WWEG EP SVLTU CPA2 EAST MIDLANDS,INGEUS UK LTD,2028861847,"48,750"
Department for Work and Pensions,Employment Programmes,12-Mar-13,SERVICE FEE,WWEG EP CORE MWA CPA LONDON,SEETEC BUSINESS TECHNOLOGY CENTRE LTD,2028762373,"48,430"
Department for Work and Pensions,Employment Programmes,25-Mar-13,WP JSA 25+ SUSTAINMENT OUTCOME PAYMENT,WWEG EP NORTH WEST GM CHES AND WARR G4S,G4S REGIONAL MANAGEMENT UK & I LTD,2028926918,"48,375"
Department for Work and Pensions,Corporate,12-Mar-13,TREDDS APPS DEV MANDAYS,CHG CONTRACTED EMPLOYMENT PROG MI,HP ENTERPRISE SERVICES UK LTD,2028760623,"48,310"
Department for Work and Pensions,Housing Benefits,14-Mar-13,HOUSING BENEFIT ADMINISTRATION,HB ENGLAND,SOUTH STAFFORDSHIRE DISTRICT COUNCIL,2028834831,"48,228"
Department for Work and Pensions,Housing Benefits,14-Mar-13,HOUSING BENEFIT ADMINISTRATION,HB ENGLAND,ST ALBANS DISTRICT COUNCIL,2028834570,"48,090"
Department for Work and Pensions,Corporate,01-Mar-13,FSF - TRAINING PAYMENTS TO PROVIDERS - JSA JOBSEEKERS,OPS WDC WSD SC WEST OF SCOTLAND DO,WORKERS EDUCATIONAL ASSOCIATION,2028667095,"47,992"
Department for Work and Pensions,Employment Programmes,08-Mar-13,WP JSA 25+ SUSTAINMENT OUTCOME PAYMENT,WWEG EP EAST OF ENGLAND INGEUS UK,INGEUS UK LTD,2028753498,"47,945"
Department for Work and Pensions,Housing Benefits,14-Mar-13,HOUSING BENEFIT ADMINISTRATION,HB ENGLAND,SOUTH HOLLAND DISTRICT COUNCIL,2028834742,"47,917"
Department for Work and Pensions,Housing Benefits,14-Mar-13,HOUSING BENEFIT ADMINISTRATION,HB ENGLAND,ROSSENDALE BOROUGH COUNCIL,2028834708,"47,916"
Department for Work and Pensions,Employment Programmes,07-Mar-13,SERVICE FEE,"WWEG EP SUPPORT SOUTH WEST WALES, SOUTH WALES VALLEYS",CAPITAL TRAINING GROUP LTD,2028742849,"47,730"
Department for Work and Pensions,Employment Programmes,15-Mar-13,WP JSA 25+ SUSTAINMENT OUTCOME PAYMENT,WWEG EP EAST OF ENGLAND INGEUS UK,INGEUS UK LTD,2028839155,"47,515"
Department for Work and Pensions,Employment Programmes,08-Mar-13,WP JSA 25+ SUSTAINMENT OUTCOME PAYMENT,WWEG EP WEST LONDON INGEUS UK,INGEUS UK LTD,2028753498,"47,515"
Department for Work and Pensions,Corporate,28-Mar-13,Inter DWP debtor - Payments to Foreign bank accounts,BALANCE SHEET,E COHEN,2029004665,"47,488"
Department for Work and Pensions,Corporate,18-Mar-13,SOC SEC RESEARCH BUDGET,STR AGEING SOC DIRECTOR AND SUPPORT,RS CONSULTING LTD,2028843852,"47,405"
Department for Work and Pensions,Housing Benefits,14-Mar-13,HOUSING BENEFIT ADMINISTRATION,HB ENGLAND,VALE OF WHITE HORSE DISTRICT COUNCIL,2028834523,"47,332"
Department for Work and Pensions,Corporate,13-Mar-13,NEW ENTERPRISE ALLOWANCE MENTOR MATCHING,OPS WDC WSD LN KENT DISTRICT OFFICE,NETWORK PROJECTS LTD,2028800933,"47,253"
Department for Work and Pensions,Corporate,28-Mar-13,CONTRACTED OUT OFFICE SERVICES,F&C OPS FIN DM ENFORCEMENT,COMMERCIAL COLLECTION SERVICES LTD,2029000232,"47,192"
Department for Work and Pensions,Corporate,21-Mar-13,STAFF TRAINING VAT RECOVERABLE,HR EDT,FLETCHER CONSULTANCY,2028918794,"47,148"
Department for Work and Pensions,Housing Benefits,14-Mar-13,HOUSING BENEFIT ADMINISTRATION,HB ENGLAND,EAST HAMPSHIRE DISTRICT COUNCIL,2028834823,"47,114"
Department for Work and Pensions,Housing Benefits,14-Mar-13,HOUSING BENEFIT ADMINISTRATION,HB ENGLAND,HORSHAM DISTRICT COUNCIL,2028834693,"46,859"
Department for Work and Pensions,Corporate,27-Mar-13,PRIME FACILITY PRICE,F&C CD CLARKE HOUSE,TELEREAL TRILLIUM,2028981834,"46,855"
Department for Work and Pensions,Corporate,26-Mar-13,CONTRACTED OUT OFFICE SERVICES,OPS NET CC VERTEX NBFH,SERCO PUBLIC SERVICES LTD,2028934344,"46,845"
Department for Work and Pensions,Corporate,07-Mar-13,NETWORK SERVICES,CIO CSD AD HOC ITLR PROJECTS,BT GLOBAL SERVICES,2028744936,"46,806"
Department for Work and Pensions,Employment Programmes,19-Mar-13,WP JSA 25+ JOB OUTCOME PAYMENTWP JSA 25+ JOB OUTCOME PAYMENT,WWEG EP EAST LONDON CAREERS DEVELOPMENT GROUP,CAREERS DEVELOPMENT GROUP,2028849952,"46,740"
Department for Work and Pensions,Housing Benefits,14-Mar-13,HOUSING BENEFIT ADMINISTRATION,HB ENGLAND,FOREST OF DEAN DISTRICT COUNCIL,2028834845,"46,614"
Department for Work and Pensions,Employment Programmes,08-Mar-13,WP JSA 25+ SUSTAINMENT OUTCOME PAYMENT,WWEG EP EAST OF ENGLAND SEETEC,SEETEC BUSINESS TECHNOLOGY CENTRE LTD,2028748807,"46,440"
Department for Work and Pensions,Employment Programmes,11-Mar-13,SERVICE FEE,WWEG EP CORE MWA CPA WEST MIDLANDS,ESG HOLDINGS LTD,2028754104,"46,392"
Department for Work and Pensions,Housing Benefits,14-Mar-13,HOUSING BENEFIT ADMINISTRATION,HB ENGLAND,SOUTH CAMBRIDGESHIRE DISTRICT COUNCIL,2028834671,"46,371"
Department for Work and Pensions,Corporate,19-Mar-13,NON PRIME PROPERTY COSTS VAT RECOVERABLE,F&C CD DURHAM HOUSE,HM REVENUE & CUSTOMS,2003751,"46,364"
Department for Work and Pensions,Housing Benefits,14-Mar-13,HOUSING BENEFIT ADMINISTRATION,HB ENGLAND,NORTH KESTEVEN DISTRICT COUNCIL,2028834569,"46,217"
Department for Work and Pensions,Corporate,25-Mar-13,PROFESSIONAL SERVICES NON VAT RECOVERABLE,PSG LEGAL SERVICES LITIGATION & EMPLOYMENT,TREASURY SOLICITOR TSOL,2028924904,"45,951"
Department for Work and Pensions,Housing Benefits,14-Mar-13,HOUSING BENEFIT ADMINISTRATION,HB SCOTLAND,THE MORAY COUNCIL,2028834859,"45,820"
Department for Work and Pensions,Employment Programmes,08-Mar-13,WP JSA 25+ SUSTAINMENT OUTCOME PAYMENT,WWEG EP NORTH WEST MERS HAL CUMB AND LANCS INGEUS UK,INGEUS UK LTD,2028753498,"45,795"
Department for Work and Pensions,Corporate,14-Mar-13,PUBLICITY ADVERTISING MEDIA,CHG ERSP COMMS,M4C,2028829943,"45,786"
Department for Work and Pensions,Corporate,28-Mar-13,STAFF TRAINING VAT RECOVERABLE,HR CONTRACTUAL L AND D,FLETCHER CONSULTANCY,2028996056,"45,750"
Department for Work and Pensions,Corporate,08-Mar-13,SECURE PRINTING,OPS OPE ID WORKING AGE BENEFITS,XEROX UK LTD 3W,2028749477,"45,587"
Department for Work and Pensions,Corporate,07-Mar-13,NEW ENTERPRISE ALLOWANCE MENTOR MATCHING,OPS WDC WSD CE DERBYSHIRE DISTRICT OFFICE,BUSINESS IN THE COMMUNITY,2028742669,"45,496"
Department for Work and Pensions,Corporate,22-Mar-13,NEW ENTERPRISE ALLOWANCE MENTOR MATCHING,OPS WDC WSD CE DERBYSHIRE DISTRICT OFFICE,BUSINESS IN THE COMMUNITY,2028923145,"45,496"
Department for Work and Pensions,Corporate,14-Mar-13,FSF - PARTNERSHIP GRANTS - TO HELP JSA CLIENTS INTO WORK,OPS WDC WSD LN KENT DISTRICT OFFICE,KENT COUNTY COUNCIL,2028833803,"45,493"
Department for Work and Pensions,Corporate,07-Mar-13,VALUATION OFFICE,OPS BEN BD NE SPECIAL OPERATIONS,VALUATION OFFICE AGENCY,2028743538,"45,342"
Department for Work and Pensions,Housing Benefits,14-Mar-13,HOUSING BENEFIT ADMINISTRATION,HB ENGLAND,SOUTH OXFORDSHIRE DISTRICT COUNCIL,2028834524,"45,318"
Department for Work and Pensions,Housing Benefits,14-Mar-13,HOUSING BENEFIT ADMINISTRATION,HB ENGLAND,HINCKLEY & BOSWORTH BOROUGH COUNCIL,2028834687,"45,116"
Department for Work and Pensions,Housing Benefits,14-Mar-13,HOUSING BENEFIT ADMINISTRATION,HB ENGLAND,NORTH WEST LEICESTER DISTRICT COUNCIL,2028834685,"45,043"
Department for Work and Pensions,Corporate,27-Mar-13,PRIME FACILITY PRICE,F&C CD BIRMINGHAM CITY C POD IRS,TELEREAL TRILLIUM,2028981834,"44,991"
Department for Work and Pensions,Housing Benefits,14-Mar-13,HOUSING BENEFIT ADMINISTRATION,HB ENGLAND,WAVERLEY BOROUGH COUNCIL,2028834836,"44,902"
Department for Work and Pensions,Corporate,18-Mar-13,NETWORK SERVICES,CIO CSD ITLR NETWORK,BT GLOBAL SERVICES,2028842566,"44,821"
Department for Work and Pensions,Housing Benefits,14-Mar-13,HOUSING BENEFIT ADMINISTRATION,HB ENGLAND,LICHFIELD DISTRICT COUNCIL,2028834851,"44,718"
Department for Work and Pensions,Housing Benefits,14-Mar-13,HOUSING BENEFIT ADMINISTRATION,HB WALES,MONMOUTHSHIRE COUNTY  COUNCIL,2028834649,"44,688"
Department for Work and Pensions,Corporate,20-Mar-13,TREDDS IS IT CONSULTANCY (HOSTING) NON ADVICE,CHG SCANNING & DIGITAL STORAGE,HP ENTERPRISE SERVICES UK LTD,2028900947,"44,532"
Department for Work and Pensions,Employment Programmes,07-Mar-13,SERVICE FEE,WWEG EP SUPPORT CORNWALL AND DEVON,WORKING LINKS,2028744005,"44,410"
Department for Work and Pensions,Housing Benefits,14-Mar-13,HOUSING BENEFIT ADMINISTRATION,HB ENGLAND,SOUTH HAMS DISTRICT COUNCIL,2028834550,"44,365"
Department for Work and Pensions,Employment Programmes,01-Mar-13,WP JSA 25+ SUSTAINMENT OUTCOME PAYMENT,WWEG EP EAST LONDON CAREERS DEVELOPMENT GROUP,CAREERS DEVELOPMENT GROUP,2028668291,"44,290"
Department for Work and Pensions,Employment Programmes,19-Mar-13,SERVICE FEE,WWEG EP CORE MWA CPA LONDON,SEETEC BUSINESS TECHNOLOGY CENTRE LTD,2028847819,"44,279"
Department for Work and Pensions,Housing Benefits,14-Mar-13,HOUSING BENEFIT ADMINISTRATION,HB ENGLAND,SPELTHORNE BOROUGH COUNCIL,2028834736,"44,272"
Department for Work and Pensions,European Social Fund,13-Mar-13,MA ESF(D) PROGRAMME EXPENDITURE EC PREFUNDED L A's,WWEG EUROPEAN SOCIAL FUND PROGRAMME 2007-2013,CORNWALL COUNTY COUNCIL,5000001299,"44,266"
Department for Work and Pensions,Housing Benefits,14-Mar-13,HOUSING BENEFIT ADMINISTRATION,HB SCOTLAND,EAST DUNBARTONSHIRE COUNCIL,2028834681,"44,118"
Department for Work and Pensions,Corporate,08-Mar-13,TREDDS APPS DEV MANDAYS,CHG UC PROJECT LEDGER CC,HP ENTERPRISE SERVICES UK LTD,2028753399,"44,027"
Department for Work and Pensions,Child Maintenance and Enforcement Commission,25-Mar-13,NON-TREDDS IS IT SERVICES (AMS),MI PROJECT WAREHOUSE,CAPGEMINI UK PLC,1000172817,"44,002"
Department for Work and Pensions,Corporate,04-Mar-13,STAFF TRAINING VAT RECOVERABLE,HR CONTRACTUAL L AND D,FLETCHER CONSULTANCY,2028672032,"43,940"
Department for Work and Pensions,Corporate,15-Mar-13,PUBLICITY ADVERTISING MEDIA,CHG ERSP COMMS,M4C,2028839984,"43,913"
Department for Work and Pensions,Employment Programmes,22-Mar-13,WP JSA 25+ SUSTAINMENT OUTCOME PAYMENT,WWEG EP SCOTLAND WORKING LINKS,WORKING LINKS,2028922923,"43,860"
Department for Work and Pensions,Housing Benefits,14-Mar-13,HOUSING BENEFIT ADMINISTRATION,HB SCOTLAND,STIRLING COUNCIL,2028834637,"43,807"
Department for Work and Pensions,Corporate,07-Mar-13,POSTAGE,OPS BEN BD DIRECTORS RESIDUAL,ROYAL MAIL GROUP PLC,2028744935,"43,774"
Department for Work and Pensions,Housing Benefits,14-Mar-13,HOUSING BENEFIT ADMINISTRATION,HB ENGLAND,WINCHESTER CITY COUNCIL,2028834800,"43,631"
Department for Work and Pensions,Housing Benefits,14-Mar-13,HOUSING BENEFIT ADMINISTRATION,HB ENGLAND,COPELAND BOROUGH COUNCIL,2028834600,"43,526"
Department for Work and Pensions,Employment Programmes,01-Mar-13,WP JSA CLAIMING 22 OF 24MTHS SUSTAINMENT OUTCOME PAYMENT,WWEG EP NORTH WEST GM CHES AND WARR SEETEC,SEETEC BUSINESS TECHNOLOGY CENTRE LTD,2028668561,"43,500"
Department for Work and Pensions,Housing Benefits,14-Mar-13,HOUSING BENEFIT ADMINISTRATION,HB ENGLAND,WOKINGHAM DISTRICT COUNCIL,2028834509,"43,489"
Department for Work and Pensions,Employment Programmes,01-Mar-13,WP JSA 18-24 JOB SUSTAINMENT OUTCOME PAYMENT,WWEG EP NORTH WEST GM CHES AND WARR SEETEC,SEETEC BUSINESS TECHNOLOGY CENTRE LTD,2028668561,"43,350"
Department for Work and Pensions,Housing Benefits,14-Mar-13,HOUSING BENEFIT ADMINISTRATION,HB ENGLAND,WEST OXFORDSHIRE DISTRICT COUNCIL,2028834498,"43,283"
Department for Work and Pensions,Housing Benefits,14-Mar-13,HOUSING BENEFIT ADMINISTRATION,HB WALES,ISLE OF ANGLESEY COUNTY COUNCIL,2028834647,"43,262"
Department for Work and Pensions,Corporate,11-Mar-13,TREDDS APPS DEV MANDAYS,CHG CENTRAL PAYMENT SYSTEM,HP ENTERPRISE SERVICES UK LTD,2028755530,"43,224"
Department for Work and Pensions,Corporate,08-Mar-13,TREDDS APPS DEV MANDAYS,CHG CP BENEFIT ENQUIRY SERVICE ONLINE,HP ENTERPRISE SERVICES UK LTD,2028753399,"43,103"
Department for Work and Pensions,Housing Benefits,14-Mar-13,HOUSING BENEFIT ADMINISTRATION,HB ENGLAND,BOSTON BOROUGH COUNCIL,2028834666,"42,978"
Department for Work and Pensions,Corporate,18-Mar-13,FSF - TRAINING PAYMENTS TO PROVIDERS - JSA JOBSEEKERS,OPS WDC WSD SE GLOUCESTERSHIRE AND WEST OF ENGLAND DO,PINNACLE PEOPLE,2028842334,"42,928"
Department for Work and Pensions,Housing Benefits,14-Mar-13,HOUSING BENEFIT ADMINISTRATION,HB ENGLAND,WOKING BOROUGH COUNCIL,2028834718,"42,859"
Department for Work and Pensions,Child Maintenance and Enforcement Commission,26-Mar-13,CONSULTANTS VAT RECOVERABLE,NEW SCHEME DEVELOPMENT AND CLIENT SIDE SUPPORT,ATKINS LTD,1000172905,"42,816"
Department for Work and Pensions,Employment Programmes,28-Mar-13,WP JSA 25+ SUSTAINMENT OUTCOME PAYMENT,WWEG EP NORTH WEST MERS HAL CUMB AND LANCS A4E,A4E LTD,2029000341,"42,785"
Department for Work and Pensions,Corporate,07-Mar-13,FSF - SUPPORT CONTRACT MODULES FOR JSA JOBSEEKERS,OPS WDC WSD NE SOUTH YORKSHIRE DISTRICT OFFICE,A4E LTD,2028743312,"42,782"
Department for Work and Pensions,Housing Benefits,14-Mar-13,HOUSING BENEFIT ADMINISTRATION,HB ENGLAND,TAMWORTH BOROUGH COUNCIL,2028834829,"42,667"
Department for Work and Pensions,Employment Programmes,14-Mar-13,WP JSA 25+ SUSTAINMENT OUTCOME PAYMENT,WWEG EP NORTH WEST MERS HAL CUMB AND LANCS A4E,A4E LTD,2028833346,"42,570"
Department for Work and Pensions,Corporate,28-Mar-13,SECURE PRINTING,F&C CD SECURE PRINT,XEROX UK LTD 3W,2029000455,"42,551"
Department for Work and Pensions,Corporate,18-Mar-13,PROFESSIONAL ADVICE & OPINION VAT RECOVERABLE,F&C MYCSP SUSPENSE,CAPITA BUSINESS SERVICES LTD,2028843905,"42,500"
Department for Work and Pensions,Housing Benefits,14-Mar-13,HOUSING BENEFIT ADMINISTRATION,HB ENGLAND,EAST NORTHANTS DISTRICT COUNCIL,2028834622,"42,117"
Department for Work and Pensions,Employment Programmes,28-Mar-13,WP JSA 25+ JOB OUTCOME PAYMENTWP JSA 25+ JOB OUTCOME PAYMENT,WWEG EP SOUTH EAST TV HANTS AND IOW A4E,A4E LTD,2029000341,"41,952"
Department for Work and Pensions,Corporate,26-Mar-13,SOC SEC RESEARCH BUDGET,PSG ANALYSIS CAD,OFFICE FOR NATIONAL STATISTICS,2028932551,"41,700"
Department for Work and Pensions,Corporate,06-Mar-13,SOFTWARE LICENCES,CHG UC PROJECT LEDGER CC,SPECIALIST COMPUTER CENTRES PLC,2028696246,"41,566"
Department for Work and Pensions,Employment Programmes,28-Mar-13,WP JSA 25+ SUSTAINMENT OUTCOME PAYMENT,WWEG EP EAST LONDON A4E,A4E LTD,2029000341,"41,495"
Department for Work and Pensions,Housing Benefits,14-Mar-13,HOUSING BENEFIT ADMINISTRATION,HB ENGLAND,BABERGH DISTRICT COUNCIL,2028834828,"41,436"
Department for Work and Pensions,Corporate,28-Mar-13,PROFESSIONAL ADVICE & OPINION VAT RECOVERABLE,OPS OPE FS DISCRETE BUGET CONTROL,TAMESIDE MBC,1005728,"41,392"
Department for Work and Pensions,Child Maintenance and Enforcement Commission,13-Mar-13,DNA TESTING,EXTERNAL CONTRACTS CENTRALLY HELD DNA,CELLMARK,1000171423,"41,368"
Department for Work and Pensions,Employment Programmes,19-Mar-13,WP JSA 25+ SUSTAINMENT OUTCOME PAYMENT,WWEG EP WEST LONDON MAXIMUS EMPLOYMENT UK,MAXIMUS EMPLOYMENT UK LTD,2028849923,"41,280"
Department for Work and Pensions,Corporate,07-Mar-13,FSF - SUPPORT CONTRACT MODULES FOR JSA JOBSEEKERS,OPS WDC WSD WL SOUTH EAST WALES DISTRICT OFFICE,CAPITAL TRAINING GROUP,2028745642,"41,150"
Department for Work and Pensions,Employment Programmes,05-Mar-13,WP JSA 25+ JOB OUTCOME PAYMENTWP JSA 25+ JOB OUTCOME PAYMENT,WWEG EP SCOTLAND INGEUS UK,INGEUS UK LTD,2028679938,"40,850"
Department for Work and Pensions,Employment Programmes,19-Mar-13,WP JSA 18-24 JOB OUTCOME PAYMENT,WWEG EP WEST YORKSHIRE BEST LTD,INTERSERVE WORKING FUTURES,2028853506,"40,800"
Department for Work and Pensions,Housing Benefits,14-Mar-13,HOUSING BENEFIT ADMINISTRATION,HB ENGLAND,STAFFORDSHIRE MOORLANDS DISTRICT COUNCIL,2028834830,"40,755"
Department for Work and Pensions,European Social Fund,13-Mar-13,MA ESF(D) PROGRAMME EXPENDITURE EC PREFUNDED THIRD PARTIES,WWEG EUROPEAN SOCIAL FUND PROGRAMME 2007-2013,NEWHAVEN COMMUNITY DEVELOPMENT ASSOCIATION,5000001302,"40,744"
Department for Work and Pensions,Housing Benefits,14-Mar-13,HOUSING BENEFIT ADMINISTRATION,HB WALES,CEREDIGION COUNTY COUNCIL,2028834816,"40,736"
Department for Work and Pensions,Corporate,22-Mar-13,NON ICONS IS IT CONSULTANCY NON ADVICE,CHG DIGITAL ADVISORY MANAGEMENT SYSTEM,SPECIALIST COMPUTER CENTRES PLC,2028920893,"40,732"
Department for Work and Pensions,Employment Programmes,18-Mar-13,WP JSA 25+ SUSTAINMENT OUTCOME PAYMENT,WWEG EP SCOTLAND WORKING LINKS,WORKING LINKS,2028842982,"40,635"
Department for Work and Pensions,Child Maintenance and Enforcement Commission,01-Mar-13,CONTRACTORS & STAFF SUBSTITUTIONS,NEW SCHEME PROJECT RESOURCE RECHARGE,CAPITA RESOURCING LTD,1000170379,"40,429"
Department for Work and Pensions,Housing Benefits,14-Mar-13,HOUSING BENEFIT ADMINISTRATION,HB ENGLAND,TORRIDGE DISTRICT COUNCIL,2028834522,"40,409"
Department for Work and Pensions,Corporate,28-Mar-13,PRINTING/BINDING,OPS CCS MEDICAL SERVICES,XEROX UK LTD 3W,2029000454,"40,345"
Department for Work and Pensions,Housing Benefits,14-Mar-13,HOUSING BENEFIT ADMINISTRATION,HB ENGLAND,FAREHAM BOROUGH COUNCIL,2028834821,"40,276"
Department for Work and Pensions,Housing Benefits,14-Mar-13,HOUSING BENEFIT ADMINISTRATION,HB ENGLAND,RUNNYMEDE BOROUGH COUNCIL,2028834737,"40,255"
Department for Work and Pensions,Employment Programmes,22-Mar-13,WP JSA 25+ SUSTAINMENT OUTCOME PAYMENT,WWEG EP NORTH WEST MERS HAL CUMB AND LANCS INGEUS UK,INGEUS UK LTD,2028922664,"40,205"
Department for Work and Pensions,Employment Programmes,28-Mar-13,RESIDENTIAL TRAINING COSTS,WWEG EP DELIVERY WELFARE TO WORK PRODUCT SUPPORT,RNIB ROYAL NATIONAL INSTITUTE FOR THE BLIND,2029005324,"40,143"
Department for Work and Pensions,Employment Programmes,26-Mar-13,SERVICE FEE,WWEG EP CORE MWA CPA LONDON,SEETEC BUSINESS TECHNOLOGY CENTRE LTD,2028933129,"40,128"
Department for Work and Pensions,Employment Programmes,07-Mar-13,SERVICE FEE,WWEG EP SUPPORT NOTTINGHAM,INGEUS UK LTD,2028744002,"40,087"
Department for Work and Pensions,Child Maintenance and Enforcement Commission,08-Mar-13,PRIME UTILITIES,PRIME,DEPARTMENT FOR WORK & PENSIONS,2000842,"39,993"
Department for Work and Pensions,Employment Programmes,18-Mar-13,WP JSA 25+ JOB OUTCOME PAYMENTWP JSA 25+ JOB OUTCOME PAYMENT,WWEG EP EAST OF ENGLAND INGEUS UK,INGEUS UK LTD,2028842978,"39,600"
Department for Work and Pensions,Housing Benefits,14-Mar-13,HOUSING BENEFIT ADMINISTRATION,HB ENGLAND,THREE RIVERS DISTRICT COUNCIL,2028834776,"39,371"
Department for Work and Pensions,Employment Programmes,25-Mar-13,WP JSA CLAIMING 22 OF 24MTHS SUSTAINMENT OUTCOME PAYMENT,WWEG EP SOUTH EAST SURR SUSSX AND KENT G4S,G4S REGIONAL MANAGEMENT UK & I LTD,2028926918,"39,250"
Department for Work and Pensions,Employment Programmes,18-Mar-13,SERVICE FEE,WWEG EP CORE MWA CPA YORKSHIRE AND HUMBER,INTERSERVE WORKING FUTURES,2028844147,"39,120"
Department for Work and Pensions,Housing Benefits,14-Mar-13,HOUSING BENEFIT ADMINISTRATION,HB ENGLAND,MID DEVON DISTRICT COUNCIL,2028834548,"39,041"
Department for Work and Pensions,Housing Benefits,14-Mar-13,HOUSING BENEFIT ADMINISTRATION,HB ENGLAND,COTSWOLD DISTRICT COUNCIL,2028834744,"38,748"
Department for Work and Pensions,Housing Benefits,14-Mar-13,HOUSING BENEFIT ADMINISTRATION,HB ENGLAND,HAMBLETON DISTRICT COUNCIL,2028834618,"38,602"
Department for Work and Pensions,Housing Benefits,14-Mar-13,HOUSING BENEFIT ADMINISTRATION,HB ENGLAND,EAST CAMBRIDGESHIRE DISTRICT COUNCIL,2028834673,"38,526"
Department for Work and Pensions,Housing Benefits,14-Mar-13,HOUSING BENEFIT ADMINISTRATION,HB ENGLAND,RUSHCLIFFE BOROUGH COUNCIL,2028834702,"38,479"
Department for Work and Pensions,Employment Programmes,28-Mar-13,WP JSA 25+ JOB OUTCOME PAYMENTWP JSA 25+ JOB OUTCOME PAYMENT,WWEG EP WEST LONDON INGEUS UK,INGEUS UK LTD,2028999243,"38,400"
Department for Work and Pensions,Housing Benefits,14-Mar-13,HOUSING BENEFIT ADMINISTRATION,HB ENGLAND,SOUTH DERBYSHIRE DISTRICT COUNCIL,2028834832,"38,311"
Department for Work and Pensions,Employment Programmes,22-Mar-13,WP JSA 25+ SUSTAINMENT OUTCOME PAYMENT,WWEG EP WEST LONDON INGEUS UK,INGEUS UK LTD,2028922664,"38,270"
Department for Work and Pensions,Housing Benefits,14-Mar-13,HOUSING BENEFIT ADMINISTRATION,HB ENGLAND,SOUTH LAKELAND DISTRICT COUNCIL,2028834634,"38,232"
Department for Work and Pensions,Corporate,28-Mar-13,CONTRACTED OUT OFFICE SERVICES,PSG OGD SERVICES,CAPITA CUSTOMER MANAGEMENT LTD,2028996674,"38,133"
Department for Work and Pensions,Housing Benefits,14-Mar-13,HOUSING BENEFIT ADMINISTRATION,HB ENGLAND,TEWKESBURY BOROUGH COUNCIL,2028834825,"38,008"
Department for Work and Pensions,Corporate,22-Mar-13,FSF - SUPPORT CONTRACT MODULES FOR JSA JOBSEEKERS,OPS WDC WSD NE WEST YORKSHIRE DISTRICT OFFICE,A4E LTD,2028921061,"37,897"
Department for Work and Pensions,Employment Programmes,22-Mar-13,WP JSA 25+ SUSTAINMENT OUTCOME PAYMENT,WWEG EP EAST MIDLANDS INGEUS UK,INGEUS UK LTD,2028922664,"37,840"
Department for Work and Pensions,Employment Programmes,07-Mar-13,WP JSA 25+ SUSTAINMENT OUTCOME PAYMENT,WWEG EP NORTH WEST MERS HAL CUMB AND LANCS A4E,A4E LTD,2028743313,"37,840"
Department for Work and Pensions,Employment Programmes,05-Mar-13,SERVICE FEE,WWEG EP CORE MWA CPA LONDON,SEETEC BUSINESS TECHNOLOGY CENTRE LTD,2028681975,"37,822"
Department for Work and Pensions,Employment Programmes,06-Mar-13,ESF 2011-13 SUPPORT FOR FAMILIES WITH MULTIPLE PROBLEMS ESA/NON CLAIMANTS CUSTOMERS PROGRESS MEASURE - INITIAL 25% PAYMENT,CPA6 GTR MAN CHES WARR EXC HAL G4S CARE AND JUSTICE SERV,G4S REGIONAL MANAGEMENT UK & I LTD,2028717668,"37,668"
Department for Work and Pensions,Housing Benefits,14-Mar-13,HOUSING BENEFIT ADMINISTRATION,HB SCOTLAND,CLACKMANNANSHIRE COUNCIL,2028834565,"37,640"
Department for Work and Pensions,Employment Programmes,06-Mar-13,WP JSA 25+ JOB OUTCOME PAYMENTWP JSA 25+ JOB OUTCOME PAYMENT,WWEG EP EAST LONDON A4E,A4E LTD,2028703978,"37,620"
Department for Work and Pensions,Employment Programmes,28-Mar-13,WP JSA 18-24 JOB OUTCOME PAYMENT,WWEG EP EAST MIDLANDS A4E,A4E LTD,2029000341,"37,536"
Department for Work and Pensions,Corporate,21-Mar-13,CONSULTANTS VAT RECOVERABLE,CHG UC SERVICE DESIGN,CAPGEMINI UK PLC,2028916472,"37,500"
Department for Work and Pensions,Corporate,28-Mar-13,AGENCY PAYMENTS TO LOCAL AUTHORITIES,CHG UC PHASE ONE DELIVERY,DUNEDIN CANMORE HOUSING LTD,2028999597,"37,410"
Department for Work and Pensions,Corporate,01-Mar-13,CONTRACTED OUT OFFICE SERVICES,F&C OPS FIN DM ENFORCEMENT,COMMERCIAL COLLECTION SERVICES LTD,2028667996,"37,346"
Department for Work and Pensions,Corporate,22-Mar-13,NON-TREDDS IS IT APPS DEV MANDAY,CHG CP DWP ENQUIRY SERVICE,ACCENTURE UK LTD,2028919452,"37,318"
Department for Work and Pensions,Housing Benefits,14-Mar-13,HOUSING BENEFIT ADMINISTRATION,HB ENGLAND,SELBY DISTRICT COUNCIL,2028834567,"37,282"
Department for Work and Pensions,Housing Benefits,14-Mar-13,HOUSING BENEFIT ADMINISTRATION,HB ENGLAND,FYLDE BOROUGH COUNCIL,2028834631,"37,221"
Department for Work and Pensions,Employment Programmes,22-Mar-13,WP JSA 25+ JOB OUTCOME PAYMENTWP JSA 25+ JOB OUTCOME PAYMENT,WWEG EP WEST YORKSHIRE INGEUS UK,INGEUS UK LTD,2028922664,"37,200"
Department for Work and Pensions,Employment Programmes,15-Mar-13,WP JSA 25+ SUSTAINMENT OUTCOME PAYMENT,WWEG EP SCOTLAND WORKING LINKS,WORKING LINKS,2028839286,"36,980"
Department for Work and Pensions,Child Maintenance and Enforcement Commission,12-Mar-13,ICONS IS IT CONSULTANCY NON ADVICE,NEW SCHEME TELEPHONY,BT GLOBAL SERVICES,1000171308,"36,949"
Department for Work and Pensions,Corporate,22-Mar-13,NON-TREDDS IS IT APPS DEV MANDAY,CIO CSD INFRASTRUCTURE & SERVICE REMEDIATION,ACCENTURE UK LTD,2028919452,"36,719"
Department for Work and Pensions,Employment Programmes,22-Mar-13,WP JSA 25+ JOB OUTCOME PAYMENTWP JSA 25+ JOB OUTCOME PAYMENT,WWEG EP SCOTLAND INGEUS UK,INGEUS UK LTD,2028922664,"36,550"
Department for Work and Pensions,Employment Programmes,04-Mar-13,WP JSA 25+ SUSTAINMENT OUTCOME PAYMENT,WWEG EP SCOTLAND WORKING LINKS,WORKING LINKS,2028671581,"36,335"
Department for Work and Pensions,Corporate,20-Mar-13,INNOVATION FUND,CHG INNOVATION FUND SOCIAL INV BONDS,INDIGO PROJECT SOLUTIONS LTD,2028861829,"36,290"
Department for Work and Pensions,Child Maintenance and Enforcement Commission,27-Mar-13,IS/IT RECHARGES TO BU'S COVERING RESOURCES WITHIN CENTRALLY (CIT) FUNDED SERVICES AS PER THE SSBA & ICONS CONTRACT,LEGACY SYSTEMS IT RUNNING COSTS - DIRECT,DWP,2000892,"36,128"
Department for Work and Pensions,Employment Programmes,01-Mar-13,WP JSA 25+ SUSTAINMENT OUTCOME PAYMENT,WWEG EP EAST OF ENGLAND SEETEC,SEETEC BUSINESS TECHNOLOGY CENTRE LTD,2028668561,"36,120"
Department for Work and Pensions,Employment Programmes,19-Mar-13,WP JSA 25+ SUSTAINMENT OUTCOME PAYMENT,WWEG EP EAST LONDON CAREERS DEVELOPMENT GROUP,CAREERS DEVELOPMENT GROUP,2028849952,"36,120"
Department for Work and Pensions,Employment Programmes,01-Mar-13,WP JSA 25+ SUSTAINMENT OUTCOME PAYMENT,WWEG EP NORTH WEST MERS HAL CUMB AND LANCS INGEUS UK,INGEUS UK LTD,2028668374,"36,120"
Department for Work and Pensions,Employment Programmes,22-Mar-13,WP JSA 25+ SUSTAINMENT OUTCOME PAYMENT,WWEG EP EAST OF ENGLAND SEETEC,SEETEC BUSINESS TECHNOLOGY CENTRE LTD,2028919438,"36,120"
Department for Work and Pensions,Corporate,08-Mar-13,SOFTWARE LICENCES,CIO CSD ITLR DESKTOP,HP ENTERPRISE SERVICES UK LTD,2028753399,"36,069"
Department for Work and Pensions,Housing Benefits,14-Mar-13,HOUSING BENEFIT ADMINISTRATION,HB ENGLAND,BLABY DISTRICT COUNCIL,2028834659,"36,052"
Department for Work and Pensions,Employment Programmes,15-Mar-13,WP JSA 25+ JOB OUTCOME PAYMENTWP JSA 25+ JOB OUTCOME PAYMENT,WWEG EP SCOTLAND WORKING LINKS,WORKING LINKS,2028839286,"36,000"
Department for Work and Pensions,Employment Programmes,06-Mar-13,WP JSA 25+ JOB OUTCOME PAYMENTWP JSA 25+ JOB OUTCOME PAYMENT,WWEG EP SCOTLAND WORKING LINKS,WORKING LINKS,2028720785,"36,000"
Department for Work and Pensions,Employment Programmes,28-Mar-13,WP JSA 25+ SUSTAINMENT OUTCOME PAYMENT,WWEG EP SOUTH EAST TV HANTS AND IOW A4E,A4E LTD,2029000341,"35,905"
Department for Work and Pensions,Housing Benefits,14-Mar-13,HOUSING BENEFIT ADMINISTRATION,HB ENGLAND,MID SUFFOLK DISTRICT COUNCIL,2028834808,"35,686"
Department for Work and Pensions,Corporate,14-Mar-13,PUBLICITY TRANS/ALT,OPS BEN DD BENEFITS GROUP 3 SEO 2 SUPPORT 1,XEROX UK LTD 3W,2028830194,"35,645"
Department for Work and Pensions,Corporate,07-Mar-13,PROFESSIONAL ADVICE & OPINION VAT RECOVERABLE,PSG LEGAL SERVICES COMMERCIAL,DLA PIPER UK LLP,2028745988,"35,643"
Department for Work and Pensions,Corporate,14-Mar-13,FSF - PARTNERSHIP GRANTS - TO HELP JSA CLIENTS INTO WORK,OPS WDC WSD NE N AND E YORKS AND HUMBER DISTRICT OFFICE,CATZERO LTD,2028831038,"35,604"
Department for Work and Pensions,Corporate,22-Mar-13,CONTRACTORS & STAFF SUBSTITUTIONS,CHG UC PROJECT LEDGER CC,CAPITA RESOURCING LTD,2028920181,"35,600"
Department for Work and Pensions,Employment Programmes,01-Mar-13,WP JSA 25+ SUSTAINMENT OUTCOME PAYMENT,WWEG EP SCOTLAND WORKING LINKS,WORKING LINKS,2028668674,"35,475"
Department for Work and Pensions,Employment Programmes,19-Mar-13,WP JSA 25+ SUSTAINMENT OUTCOME PAYMENT,WWEG EP NORTH EAST AVANTA ENTERPRISE,AVANTA ENTERPRISE LTD,2028852971,"35,475"
Department for Work and Pensions,Housing Benefits,14-Mar-13,HOUSING BENEFIT ADMINISTRATION,HB ENGLAND,MALVERN HILLS DISTRICT COUNCIL,2028834638,"35,369"
Department for Work and Pensions,Housing Benefits,14-Mar-13,HOUSING BENEFIT ADMINISTRATION,HB ENGLAND,EAST DORSET DISTRICT COUNCIL,2028834794,"35,368"
Department for Work and Pensions,Employment Programmes,26-Mar-13,WP JSA 25+ JOB OUTCOME PAYMENTWP JSA 25+ JOB OUTCOME PAYMENT,WWEG EP EAST LONDON CAREERS DEVELOPMENT GROUP,CAREERS DEVELOPMENT GROUP,2028935413,"35,340"
Department for Work and Pensions,Employment Programmes,28-Mar-13,WP JSA 25+ SUSTAINMENT OUTCOME PAYMENT,WWEG EP SOUTH EAST SURR SUSSX AND KENT G4S,G4S REGIONAL MANAGEMENT UK & I LTD,2028995950,"35,045"
Department for Work and Pensions,Corporate,01-Mar-13,CONTRACTED OUT OFFICE SERVICES,F&C OPS FIN DM ENFORCEMENT,CREDIT SOLUTIONS LTD,2028668964,"34,980"
Department for Work and Pensions,Employment Programmes,28-Mar-13,WP JSA 25+ JOB OUTCOME PAYMENTWP JSA 25+ JOB OUTCOME PAYMENT,WWEG EP SOUTH EAST SURR SUSSX AND KENT G4S,G4S REGIONAL MANAGEMENT UK & I LTD,2028995950,"34,800"
Department for Work and Pensions,Housing Benefits,14-Mar-13,HOUSING BENEFIT ADMINISTRATION,HB ENGLAND,BROMSGROVE DISTRICT COUNCIL,2028834799,"34,774"
Department for Work and Pensions,Housing Benefits,14-Mar-13,HOUSING BENEFIT ADMINISTRATION,HB ENGLAND,ROCHFORD DISTRICT COUNCIL,2028834847,"34,766"
Department for Work and Pensions,Employment Programmes,25-Mar-13,WP JSA 25+ SUSTAINMENT OUTCOME PAYMENT,WWEG EP EAST OF ENGLAND SEETEC,SEETEC BUSINESS TECHNOLOGY CENTRE LTD,2028925257,"34,400"
Department for Work and Pensions,Employment Programmes,05-Mar-13,WP JSA 25+ SUSTAINMENT OUTCOME PAYMENT,WWEG EP SOUTH EAST SURR SUSSX AND KENT G4S,G4S REGIONAL MANAGEMENT UK & I LTD,2028679736,"34,400"
Department for Work and Pensions,Corporate,28-Mar-13,CONTRACTED OUT OFFICE SERVICES,F&C OPS FIN DM ENFORCEMENT,CREDIT SOLUTIONS LTD,2029000742,"34,379"
Department for Work and Pensions,Corporate,27-Mar-13,STAFF RELATED COSTS,CIO PROFESSIONAL CAPABILITY GRADUATES,CABINET OFFICE,2003780,"34,200"
Department for Work and Pensions,Employment Programmes,13-Mar-13,WP JSA 25+ JOB OUTCOME PAYMENTWP JSA 25+ JOB OUTCOME PAYMENT,WWEG EP EAST LONDON CAREERS DEVELOPMENT GROUP,CAREERS DEVELOPMENT GROUP,2028794941,"34,200"
Department for Work and Pensions,Employment Programmes,14-Mar-13,WP JSA 25+ SUSTAINMENT OUTCOME PAYMENT,WWEG EP EAST LONDON A4E,A4E LTD,2028833346,"34,185"
Department for Work and Pensions,Corporate,21-Mar-13,FSF - SUPPORT CONTRACT MODULES FOR JSA JOBSEEKERS,OPS WDC WSD NW GTR MANCHESTER CENTRAL AND CHESHIRE DO,STANDGUIDE LTD,2028914694,"34,112"
Department for Work and Pensions,Corporate,12-Mar-13,TREDDS APPS DEV MANDAYS,CHG APPEALS REFORM,HP ENTERPRISE SERVICES UK LTD,2028760623,"34,097"
Department for Work and Pensions,Corporate,06-Mar-13,POSTAGE,F&C CD NEWCASTLE ESTATE,G3 WORLDWIDE MAIL UK LTD,2028711293,"34,040"
Department for Work and Pensions,Employment Programmes,19-Mar-13,WP JSA CLAIMING 22 OF 24MTHS SUSTAINMENT OUTCOME PAYMENT,WWEG EP SOUTH EAST SURR SUSSX AND KENT AVANTA ENTERPRISE,AVANTA ENTERPRISE LTD,2028852971,"34,000"
Department for Work and Pensions,Employment Programmes,15-Mar-13,WP JSA 25+ SUSTAINMENT OUTCOME PAYMENT,WWEG EP EAST OF ENGLAND SEETEC,SEETEC BUSINESS TECHNOLOGY CENTRE LTD,2028838459,"33,970"
Department for Work and Pensions,Employment Programmes,14-Mar-13,WP JSA 25+ SUSTAINMENT OUTCOME PAYMENT,WWEG EP EAST LONDON CAREERS DEVELOPMENT GROUP,CAREERS DEVELOPMENT GROUP,2028833965,"33,970"
Department for Work and Pensions,Employment Programmes,13-Mar-13,WP JSA 25+ SUSTAINMENT OUTCOME PAYMENT,WWEG EP EAST LONDON CAREERS DEVELOPMENT GROUP,CAREERS DEVELOPMENT GROUP,2028794941,"33,970"
Department for Work and Pensions,SHARED SERVICES,15-Mar-13,NON-TREDDS IS IT CONSULTANCY (HOSTING) NON ADVICE,AS P2P CARDIFF,IBM UNITED KINGDOM LTD,2028836568,"33,891"
Department for Work and Pensions,Housing Benefits,14-Mar-13,HOUSING BENEFIT ADMINISTRATION,HB ENGLAND,ADUR DISTRICT COUNCIL,2028834713,"33,757"
Department for Work and Pensions,Employment Programmes,25-Mar-13,WP JSA 25+ SUSTAINMENT OUTCOME PAYMENT,WWEG EP SOUTH EAST TV HANTS AND IOW MAXIMUS EMPLOYMENT,MAXIMUS EMPLOYMENT UK LTD,2028924676,"33,755"
Department for Work and Pensions,Corporate,18-Mar-13,CONTRACTED OUT OFFICE SERVICES,F&C OPS FIN DM ENFORCEMENT,CREDIT SOLUTIONS LTD,2028843294,"33,750"
Department for Work and Pensions,Corporate,05-Mar-13,FSF - TRAINING PAYMENTS TO PROVIDERS - SICK/DISABLED CLIENTS,OPS WDC WSD NW GREATER MANCHESTER E AND W DO,STANDGUIDE LTD,2028679176,"33,638"
Department for Work and Pensions,Employment Programmes,05-Mar-13,WP JSA 25+ JOB OUTCOME PAYMENTWP JSA 25+ JOB OUTCOME PAYMENT,WWEG EP SOUTH EAST SURR SUSSX AND KENT G4S,G4S REGIONAL MANAGEMENT UK & I LTD,2028679736,"33,600"
Department for Work and Pensions,Employment Programmes,21-Mar-13,WP JSA 25+ JOB OUTCOME PAYMENTWP JSA 25+ JOB OUTCOME PAYMENT,WWEG EP EAST LONDON SEETEC,SEETEC BUSINESS TECHNOLOGY CENTRE LTD,2028913781,"33,600"
Department for Work and Pensions,Employment Programmes,01-Mar-13,WP JSA 25+ SUSTAINMENT OUTCOME PAYMENT,WWEG EP EAST MIDLANDS INGEUS UK,INGEUS UK LTD,2028668374,"33,540"
Department for Work and Pensions,Employment Programmes,07-Mar-13,WP JSA 25+ SUSTAINMENT OUTCOME PAYMENT,WWEG EP EAST LONDON A4E,A4E LTD,2028743313,"33,540"
Department for Work and Pensions,Corporate,07-Mar-13,FSF - TRAINING PAYMENTS TO PROVIDERS - JSA JOBSEEKERS,OPS WDC WSD SC EAST AND SOUTH EAST SCOTLAND DO,NHS LANARKSHIRE,2028742943,"33,495"
Department for Work and Pensions,Housing Benefits,14-Mar-13,HOUSING BENEFIT ADMINISTRATION,HB ENGLAND,CHILTERN DISTRICT COUNCIL,2028834760,"33,459"
Department for Work and Pensions,Employment Programmes,05-Mar-13,ACCESS TO WORK - PAYMENT FOR SUPPORT WORKERS,WWEG EP LONDON REGION,SOUTH WEST LONDON & ST GEORGES NHS TRUST,2028679575,"33,425"
Department for Work and Pensions,Housing Benefits,14-Mar-13,HOUSING BENEFIT ADMINISTRATION,HB ENGLAND,FOREST HEATH DISTRICT COUNCIL,2028834827,"33,391"
Department for Work and Pensions,Employment Programmes,13-Mar-13,WP JSA 25+ JOB OUTCOME PAYMENTWP JSA 25+ JOB OUTCOME PAYMENT,WWEG EP SCOTLAND INGEUS UK,INGEUS UK LTD,2028786980,"33,325"
Department for Work and Pensions,Corporate,18-Mar-13,FSF - SUPPORT CONTRACT MODULES FOR JSA JOBSEEKERS,OPS WDC WSD WL SOUTH EAST WALES DISTRICT OFFICE,A4E LTD,2028844244,"33,303"
Department for Work and Pensions,Corporate,22-Mar-13,NON-TREDDS IS IT APPS DEV MANDAY,CHG IT FIXES EASD,ACCENTURE UK LTD,2028919452,"33,281"
Department for Work and Pensions,Employment Programmes,21-Mar-13,WP JSA 25+ SUSTAINMENT OUTCOME PAYMENT,WWEG EP EAST LONDON CAREERS DEVELOPMENT GROUP,CAREERS DEVELOPMENT GROUP,2028918188,"33,110"
Department for Work and Pensions,Employment Programmes,19-Mar-13,WP JSA 25+ SUSTAINMENT OUTCOME PAYMENT,WWEG EP EAST OF ENGLAND INGEUS UK,INGEUS UK LTD,2028848978,"33,110"
Department for Work and Pensions,Housing Benefits,14-Mar-13,HOUSING BENEFIT ADMINISTRATION,HB ENGLAND,DAVENTRY DISTRICT COUNCIL,2028834623,"33,091"
Department for Work and Pensions,Employment Programmes,28-Mar-13,WP JSA 25+ JOB OUTCOME PAYMENTWP JSA 25+ JOB OUTCOME PAYMENT,WWEG EP W MIDLANDS COV WARW STAFFS AND MARCHES ESG,ESG HOLDINGS LIMITED,2029001493,"33,060"
Department for Work and Pensions,Corporate,27-Mar-13,PRIME BUSINESS RATES,F&C CD SHEFFIELD KINGS COURT,TELEREAL TRILLIUM,2028981832,"32,830"
Department for Work and Pensions,Corporate,25-Mar-13,FSF - SUPPORT CONTRACT MODULES FOR JSA JOBSEEKERS,OPS WDC WSD LN BEDS AND HERTS DISTRICT OFFICE,SEETEC,2028926054,"32,766"
Department for Work and Pensions,Employment Programmes,01-Mar-13,WP JSA 25+ SUSTAINMENT OUTCOME PAYMENT,WWEG EP WEST LONDON INGEUS UK,INGEUS UK LTD,2028668374,"32,680"
Department for Work and Pensions,Employment Programmes,28-Mar-13,WP JSA 25+ SUSTAINMENT OUTCOME PAYMENT,WWEG EP NORTH WEST GM CHES AND WARR AVANTA ENTERPRISE,AVANTA ENTERPRISE LTD,2029001559,"32,680"
Department for Work and Pensions,Employment Programmes,07-Mar-13,WP JSA 25+ SUSTAINMENT OUTCOME PAYMENT,WWEG EP EAST OF ENGLAND SEETEC,SEETEC BUSINESS TECHNOLOGY CENTRE LTD,2028745279,"32,680"
Department for Work and Pensions,Employment Programmes,28-Mar-13,WP JSA 25+ JOB OUTCOME PAYMENTWP JSA 25+ JOB OUTCOME PAYMENT,WWEG EP WEST YORKSHIRE BEST LTD,INTERSERVE WORKING FUTURES,2028999379,"32,640"
Department for Work and Pensions,Housing Benefits,14-Mar-13,HOUSING BENEFIT ADMINISTRATION,HB ENGLAND,NORTH WARWICKSHIRE DISTRICT COUNCIL,2028834717,"32,480"
Department for Work and Pensions,Employment Programmes,19-Mar-13,WP JSA 25+ SUSTAINMENT OUTCOME PAYMENT,WWEG EP SOUTH EAST TV HANTS AND IOW MAXIMUS EMPLOYMENT,MAXIMUS EMPLOYMENT UK LTD,2028849923,"32,465"
Department for Work and Pensions,Employment Programmes,08-Mar-13,WP JSA 25+ SUSTAINMENT OUTCOME PAYMENT,WWEG EP SOUTH EAST TV HANTS AND IOW MAXIMUS EMPLOYMENT,MAXIMUS EMPLOYMENT UK LTD,2028750654,"32,465"
Department for Work and Pensions,Employment Programmes,01-Mar-13,WP JSA 25+ JOB OUTCOME PAYMENTWP JSA 25+ JOB OUTCOME PAYMENT,WWEG EP SCOTLAND WORKING LINKS,WORKING LINKS,2028668674,"32,400"
Department for Work and Pensions,Employment Programmes,19-Mar-13,WP JSA 25+ JOB OUTCOME PAYMENTWP JSA 25+ JOB OUTCOME PAYMENT,WWEG EP SCOTLAND WORKING LINKS,WORKING LINKS,2028850026,"32,400"
Department for Work and Pensions,Corporate,05-Mar-13,NON-TREDDS IS IT SERVICES (DESKTOP),CIO CSD ITLR SUSTAINABLE PRINT SERVICE,XEROX UK LTD 3W,2028682445,"32,384"
Department for Work and Pensions,Employment Programmes,21-Mar-13,WP JSA 25+ SUSTAINMENT OUTCOME PAYMENT,WWEG EP NORTH WEST MERS HAL CUMB AND LANCS A4E,A4E LTD,2028915243,"32,250"
Department for Work and Pensions,Employment Programmes,15-Mar-13,WP JSA 25+ SUSTAINMENT OUTCOME PAYMENT,WWEG EP EAST MIDLANDS INGEUS UK,INGEUS UK LTD,2028839155,"32,250"
Department for Work and Pensions,Employment Programmes,25-Mar-13,WP JSA CLAIMING 22 OF 24MTHS SUSTAINMENT OUTCOME PAYMENT,WWEG EP NORTH WEST GM CHES AND WARR G4S,G4S REGIONAL MANAGEMENT UK & I LTD,2028926918,"32,250"
Department for Work and Pensions,Employment Programmes,28-Mar-13,SOC SEC RESEARCH BUDGET,WWEG EP SCOTLAND WORKING LINKS,TNS BMRB,2028997942,"32,112"
Department for Work and Pensions,Employment Programmes,19-Mar-13,WP JSA 25+ SUSTAINMENT OUTCOME PAYMENT,WWEG EP SCOTLAND WORKING LINKS,WORKING LINKS,2028850026,"32,035"
Department for Work and Pensions,Housing Benefits,14-Mar-13,HOUSING BENEFIT ADMINISTRATION,HB SCOTLAND,EAST RENFREWSHIRE COUNCIL,2028834529,"31,880"
Department for Work and Pensions,Housing Benefits,14-Mar-13,HOUSING BENEFIT ADMINISTRATION,HB ENGLAND,TANDRIDGE DISTRICT COUNCIL,2028834837,"31,812"
Department for Work and Pensions,Corporate,28-Mar-13,CONTRACTORS & STAFF SUBSTITUTIONS,DWP CHG MOPR SMOTS,NORTHERN IRELAND SOCIAL SECURITY AGENCY,1005726,"31,716"
Department for Work and Pensions,Housing Benefits,14-Mar-13,HOUSING BENEFIT ADMINISTRATION,HB ENGLAND,MOLE VALLEY DISTRICT COUNCIL,2028834739,"31,652"
Department for Work and Pensions,Employment Programmes,08-Mar-13,WP JSA 25+ SUSTAINMENT OUTCOME PAYMENT,WWEG EP EAST MIDLANDS INGEUS UK,INGEUS UK LTD,2028753498,"31,605"
Department for Work and Pensions,Employment Programmes,15-Mar-13,WP JSA 25+ SUSTAINMENT OUTCOME PAYMENT,WWEG EP EAST LONDON SEETEC,SEETEC BUSINESS TECHNOLOGY CENTRE LTD,2028838459,"31,605"
Department for Work and Pensions,Employment Programmes,12-Mar-13,WP JSA 25+ SUSTAINMENT OUTCOME PAYMENT,WWEG EP WEST LONDON REED IN PARTNERSHIP,REED IN PARTNERSHIP LTD,2028759361,"31,605"
Department for Work and Pensions,Housing Benefits,14-Mar-13,HOUSING BENEFIT ADMINISTRATION,HB ENGLAND,SURREY HEATH BOROUGH COUNCIL,2028834735,"31,431"
Department for Work and Pensions,Child Maintenance and Enforcement Commission,22-Mar-13,CONTRACTORS & STAFF SUBSTITUTIONS,NEW SCHEME PROJECT RESOURCE RECHARGE,CAPITA RESOURCING LTD,1000172600,"31,413"
Department for Work and Pensions,Employment Programmes,15-Mar-13,WP JSA 25+ SUSTAINMENT OUTCOME PAYMENT,WWEG EP NORTH WEST MERS HAL CUMB AND LANCS INGEUS UK,INGEUS UK LTD,2028839155,"31,390"
Department for Work and Pensions,Corporate,22-Mar-13,FSF - SUPPORT CONTRACT MODULES FOR JSA JOBSEEKERS,OPS WDC WSD NE DURHAM AND TEES VALLEY DISTRICT OFFICE,SENCIA LTD,2028921850,"31,333"
Department for Work and Pensions,Corporate,08-Mar-13,CONTRACTORS & STAFF SUBSTITUTIONS,CIO C SS S & E IT DIRECTOR CORE,CAPITA RESOURCING LTD,2028753706,"31,298"
Department for Work and Pensions,Employment Programmes,19-Mar-13,WP JSA 25+ JOB OUTCOME PAYMENTWP JSA 25+ JOB OUTCOME PAYMENT,WWEG EP WEST YORKSHIRE INGEUS UK,INGEUS UK LTD,2028848978,"31,200"
Department for Work and Pensions,Employment Programmes,21-Mar-13,WP JSA 25+ SUSTAINMENT OUTCOME PAYMENT,WWEG EP EAST LONDON A4E,A4E LTD,2028915243,"31,175"
Department for Work and Pensions,Employment Programmes,07-Mar-13,SERVICE FEE,WWEG EP SUPPORT GLASGOW,REED IN PARTNERSHIP LTD,2028746782,"31,164"
Department for Work and Pensions,Employment Programmes,25-Mar-13,WP JSA 18-24 JOB SUSTAINMENT OUTCOME PAYMENT,WWEG EP NORTH WEST GM CHES AND WARR G4S,G4S REGIONAL MANAGEMENT UK & I LTD,2028926918,"31,110"
Department for Work and Pensions,Employment Programmes,22-Mar-13,SUSTAINMENT FEE,WWEG EP WORK CHOICE W OF ENGLAND GLOS WILTS AND SWINDON,WORKING LINKS,2028922923,"31,025"
Department for Work and Pensions,Corporate,01-Mar-13,FSF - PARTNERSHIP GRANTS - TO HELP JSA CLIENTS INTO WORK,OPS WDC WSD LN NORTH LONDON DISTRICT OFFICE,URBAN FUTURES LONDON LTD,2028671156,"30,808"
Department for Work and Pensions,Corporate,01-Mar-13,FSF - PARTNERSHIP GRANTS - TO HELP JSA CLIENTS INTO WORK,OPS WDC WSD LN NORTH LONDON DISTRICT OFFICE,LONDON TRAINING & EMPLOYMENT NETWORK,2028667700,"30,795"
Department for Work and Pensions,Employment Programmes,28-Mar-13,WP JSA 25+ SUSTAINMENT OUTCOME PAYMENT,WWEG EP EAST MIDLANDS A4E,A4E LTD,2029000341,"30,530"
Department for Work and Pensions,Employment Programmes,15-Mar-13,WP JSA 25+ SUSTAINMENT OUTCOME PAYMENT,WWEG EP WEST LONDON INGEUS UK,INGEUS UK LTD,2028839155,"30,530"
Department for Work and Pensions,Employment Programmes,22-Mar-13,WP JSA 25+ SUSTAINMENT OUTCOME PAYMENT,WWEG EP NORTH EAST INGEUS UK,INGEUS UK LTD,2028922664,"30,530"
Department for Work and Pensions,Corporate,08-Mar-13,CIVIL SERVICE OCCUPATIONAL HEALTH SERVICE,HR OHS,ATOS ORIGIN IT SERVICES UK,2028749829,"30,470"
Department for Work and Pensions,Corporate,18-Mar-13,SOC SEC RESEARCH BUDGET,CHG WORK PROGRAMME,INSTITUTE FOR EMPLOYMENT STUDIES,2028844882,"30,434"
Department for Work and Pensions,Child Maintenance and Enforcement Commission,28-Mar-13,NON-TREDDS IS IT APPS DEV MANDAY,NEW SCHEME CLIENT FACING TECHNOLOGIES,DWP,2000901,"30,426"
Department for Work and Pensions,Corporate,28-Mar-13,CONSULTANCY SERVICES  'NOT' RECOVERABLE,CHG UC PROJECT LEDGER CC,Evolve Business Consultancy Limited,2028998084,"30,396"
Department for Work and Pensions,Employment Programmes,04-Mar-13,WP JSA 25+ SUSTAINMENT OUTCOME PAYMENT,WWEG EP WEST LONDON MAXIMUS EMPLOYMENT UK,MAXIMUS EMPLOYMENT UK LTD,2028674138,"30,315"
Department for Work and Pensions,Child Maintenance and Enforcement Commission,11-Mar-13,TREDDS APPS DEV MANDAYS,STUCK CASE TASKFORCE,HP ENTERPRISE SERVICES UK LTD,1000171262,"30,312"
Department for Work and Pensions,Corporate,12-Mar-13,NON-TREDDS IS IT APPS DEV MANDAY,CIO C SS S & E IT DIRECTOR GFTS DEV,IBM UNITED KINGDOM LTD,2028761502,"30,233"
Department for Work and Pensions,Corporate,06-Mar-13,POSTAGE,F&C CD ACC POSTAGE,POST OFFICE LTD,2028707514,"30,200"
Department for Work and Pensions,Employment Programmes,11-Mar-13,WP JSA 25+ SUSTAINMENT OUTCOME PAYMENT,WWEG EP EAST LONDON CAREERS DEVELOPMENT GROUP,CAREERS DEVELOPMENT GROUP,2028757060,"30,100"
Department for Work and Pensions,Corporate,05-Mar-13,ICONS IS IT CONSULTANCY NON ADVICE,CHG PIP DELIVERY,BT GLOBAL SERVICES,2028681464,"30,038"
Department for Work and Pensions,Corporate,26-Mar-13,PROFESSIONAL ADVICE & OPINION VAT RECOVERABLE,PSG LEGAL SERVICES COMMERCIAL,SHARPE PRITCHARD,2028933424,"30,032"
Department for Work and Pensions,Corporate,07-Mar-13,BANK COMMISSION & CHARGES,F&C FIN CONT COBAP BANKING,CITIBANK GLOBAL CORPORATE BANKING,2028743168,"30,000"
Department for Work and Pensions,Employment Programmes,05-Mar-13,WP JSA 25+ JOB OUTCOME PAYMENTWP JSA 25+ JOB OUTCOME PAYMENT,WWEG EP EAST OF ENGLAND INGEUS UK,INGEUS UK LTD,2028679938,"30,000"
Department for Work and Pensions,Employment Programmes,07-Mar-13,WP JSA 25+ JOB OUTCOME PAYMENTWP JSA 25+ JOB OUTCOME PAYMENT,WWEG EP SOUTH EAST SURR SUSSX AND KENT G4S,G4S REGIONAL MANAGEMENT UK & I LTD,2028747085,"30,000"
Department for Work and Pensions,Housing Benefits,14-Mar-13,HOUSING BENEFIT ADMINISTRATION,HB ENGLAND,NORTH DORSET DISTRICT COUNCIL,2028834520,"29,979"
Department for Work and Pensions,Corporate,20-Mar-13,RECURRENT PUBLICITY,CHG ERSP COMMS,MANNING GOTTLEIB OMD,2028857242,"29,941"
Department for Work and Pensions,Employment Programmes,25-Mar-13,WP JSA 25+ SUSTAINMENT OUTCOME PAYMENT,WWEG EP SCOTLAND INGEUS UK,INGEUS UK LTD,2028928399,"29,885"
Department for Work and Pensions,Housing Benefits,14-Mar-13,HOUSING BENEFIT ADMINISTRATION,HB ENGLAND,BRENTWOOD DISTRICT COUNCIL,2028834489,"29,689"
Department for Work and Pensions,Employment Programmes,28-Mar-13,WP JSA 25+ JOB OUTCOME PAYMENTWP JSA 25+ JOB OUTCOME PAYMENT,WWEG EP EAST LONDON CAREERS DEVELOPMENT GROUP,CAREERS DEVELOPMENT GROUP,2028998328,"29,640"
Department for Work and Pensions,Employment Programmes,22-Mar-13,WP JSA 25+ JOB OUTCOME PAYMENTWP JSA 25+ JOB OUTCOME PAYMENT,WWEG EP EAST OF ENGLAND SEETEC,SEETEC BUSINESS TECHNOLOGY CENTRE LTD,2028919438,"29,640"
Department for Work and Pensions,Housing Benefits,14-Mar-13,HOUSING BENEFIT ADMINISTRATION,HB ENGLAND,EPSOM & EWELL BOROUGH COUNCIL,2028834759,"29,565"
Department for Work and Pensions,Corporate,08-Mar-13,NON PRIME PROPERTY COSTS,CHG UC BUSINESS & IT SOLUTIONS,HP ENTERPRISE SERVICES UK LTD,2028753399,"29,511"
Department for Work and Pensions,Employment Programmes,25-Mar-13,WP JSA 25+ SUSTAINMENT OUTCOME PAYMENT,WWEG EP WEST LONDON MAXIMUS EMPLOYMENT UK,MAXIMUS EMPLOYMENT UK LTD,2028924676,"29,455"
Department for Work and Pensions,Employment Programmes,22-Mar-13,WP JSA 25+ SUSTAINMENT OUTCOME PAYMENT,WWEG EP WEST YORKSHIRE INGEUS UK,INGEUS UK LTD,2028922664,"29,455"
Department for Work and Pensions,Employment Programmes,01-Mar-13,WP JSA 25+ SUSTAINMENT OUTCOME PAYMENT,WWEG EP SOUTH EAST SURR SUSSX AND KENT AVANTA ENTERPRISE,AVANTA ENTERPRISE LTD,2028669127,"29,455"
Department for Work and Pensions,Housing Benefits,14-Mar-13,HOUSING BENEFIT ADMINISTRATION,HB ENGLAND,MALDON DISTRICT COUNCIL,2028834839,"29,397"
Department for Work and Pensions,Corporate,07-Mar-13,POSTAGE,OPS BEN BD SC GLASGOW NORTHGATE,ROYAL MAIL GROUP PLC,2028744935,"29,358"
Department for Work and Pensions,SHARED SERVICES,28-Mar-13,NON-TREDDS APPS DEV FIXED PRICE CONTRACTS,SHS DM WASHINGTON SYSTEM DEVELOPMENT AND FACILITIES,CAPGEMINI UK PLC,2028999799,"29,331"
Department for Work and Pensions,Employment Programmes,28-Mar-13,WP JSA CLAIMING 22 OF 24MTHS SUSTAINMENT OUTCOME PAYMENT,WWEG EP EAST LONDON CAREERS DEVELOPMENT GROUP,CAREERS DEVELOPMENT GROUP,2028998328,"29,250"
Department for Work and Pensions,Employment Programmes,08-Mar-13,WP JSA 25+ SUSTAINMENT OUTCOME PAYMENT,WWEG EP WEST LONDON MAXIMUS EMPLOYMENT UK,MAXIMUS EMPLOYMENT UK LTD,2028750654,"29,240"
Department for Work and Pensions,Employment Programmes,28-Mar-13,SERVICE FEE,WWEG EP CORE MWA CPA NORTH WEST,JHP GROUP LTD,2029000749,"29,237"
Department for Work and Pensions,Corporate,12-Mar-13,FSF - PARTNERSHIP GRANTS - TO HELP JSA CLIENTS INTO WORK,OPS WDC WSD SC EAST AND SOUTH EAST SCOTLAND DO,CITY OF EDINBURGH COUNCIL,2028765224,"29,074"
Department for Work and Pensions,Employment Programmes,11-Mar-13,WP JSA 25+ SUSTAINMENT OUTCOME PAYMENT,WWEG EP EAST OF ENGLAND INGEUS UK,INGEUS UK LTD,2028758361,"29,025"
Department for Work and Pensions,Employment Programmes,28-Mar-13,WP JSA 25+ JOB OUTCOME PAYMENTWP JSA 25+ JOB OUTCOME PAYMENT,WWEG EP EAST OF ENGLAND SEETEC,SEETEC BUSINESS TECHNOLOGY CENTRE LTD,2029000151,"28,860"
Department for Work and Pensions,Employment Programmes,14-Mar-13,SERVICE FEE,WWEG EP CORE MWA CPA NORTH WEST,JHP GROUP LTD,2028830392,"28,813"
Department for Work and Pensions,Employment Programmes,19-Mar-13,WP JSA 25+ SUSTAINMENT OUTCOME PAYMENT,WWEG EP WEST LONDON REED IN PARTNERSHIP,REED IN PARTNERSHIP LTD,2028847682,"28,810"
Department for Work and Pensions,Employment Programmes,26-Mar-13,WP JSA 25+ SUSTAINMENT OUTCOME PAYMENT,WWEG EP WEST LONDON REED IN PARTNERSHIP,REED IN PARTNERSHIP LTD,2028933432,"28,810"
Department for Work and Pensions,Employment Programmes,26-Mar-13,WP JSA 25+ JOB OUTCOME PAYMENTWP JSA 25+ JOB OUTCOME PAYMENT,WWEG EP EAST OF ENGLAND INGEUS UK,INGEUS UK LTD,2028932443,"28,800"
Department for Work and Pensions,Employment Programmes,22-Mar-13,WP JSA 25+ JOB OUTCOME PAYMENTWP JSA 25+ JOB OUTCOME PAYMENT,WWEG EP EAST OF ENGLAND INGEUS UK,INGEUS UK LTD,2028922664,"28,800"
Department for Work and Pensions,Employment Programmes,05-Mar-13,WP JSA 25+ JOB OUTCOME PAYMENTWP JSA 25+ JOB OUTCOME PAYMENT,WWEG EP WEST LONDON INGEUS UK,INGEUS UK LTD,2028679938,"28,800"
Department for Work and Pensions,Employment Programmes,19-Mar-13,WP JSA 25+ JOB OUTCOME PAYMENTWP JSA 25+ JOB OUTCOME PAYMENT,WWEG EP EAST MIDLANDS INGEUS UK,INGEUS UK LTD,2028848978,"28,800"
Department for Work and Pensions,Employment Programmes,28-Mar-13,WP JSA 25+ JOB OUTCOME PAYMENTWP JSA 25+ JOB OUTCOME PAYMENT,WWEG EP EAST OF ENGLAND INGEUS UK,INGEUS UK LTD,2028999243,"28,800"
Department for Work and Pensions,Employment Programmes,22-Mar-13,WP JSA 18-24 JOB OUTCOME PAYMENT,WWEG EP EAST MIDLANDS INGEUS UK,INGEUS UK LTD,2028922664,"28,800"
Department for Work and Pensions,Corporate,20-Mar-13,PHOTOCOPIERS OPERATING LEASE RENTAL CHARGES,PSG IGS IMG,SWETS INFORMATION SERVICES LTD,2028885169,"28,608"
Department for Work and Pensions,Corporate,25-Mar-13,NEW ENTERPRISE ALLOWANCE MENTOR MATCHING,OPS WDC WSD CE LEICESTERSHIRE AND NORTHAMPTONSHIRE DO,PINNACLE PEOPLE,2028928064,"28,550"
Department for Work and Pensions,Employment Programmes,05-Mar-13,WP JSA 25+ JOB OUTCOME PAYMENTWP JSA 25+ JOB OUTCOME PAYMENT,WWEG EP EAST LONDON A4E,A4E LTD,2028682368,"28,500"
Department for Work and Pensions,Employment Programmes,05-Mar-13,WP JSA CLAIMING 22 OF 24MTHS SUSTAINMENT OUTCOME PAYMENT,WWEG EP SOUTH EAST SURR SUSSX AND KENT G4S,G4S REGIONAL MANAGEMENT UK & I LTD,2028679736,"28,500"
Department for Work and Pensions,Corporate,27-Mar-13,PRIME FACILITY PRICE,F&C CD NOTTINGHAM EQUINOX HOUSE DEL A,TELEREAL TRILLIUM,2028981834,"28,358"
Department for Work and Pensions,Corporate,07-Mar-13,SOFTWARE LICENCES,CIO CSD ITLR PROJECT PROJECT 5,SPECIALIST COMPUTER CENTRES PLC,2028748231,"28,273"
Department for Work and Pensions,Employment Programmes,14-Mar-13,FSF - TRAINING PAYMENTS TO PROVIDERS - JSA JOBSEEKERS,WWEG EP WALES COUNTRY,WORKING LINKS,2028833374,"28,232"
Department for Work and Pensions,Corporate,06-Mar-13,FSF - SUPPORT CONTRACT MODULES FOR JSA JOBSEEKERS,OPS WDC WSD SC WEST OF SCOTLAND DO,JHP GROUP LTD,2028720398,"28,210"
Department for Work and Pensions,Housing Benefits,14-Mar-13,HOUSING BENEFIT ADMINISTRATION,HB ENGLAND,HARBOROUGH DISTRICT COUNCIL,2028834688,"28,173"
Department for Work and Pensions,Employment Programmes,15-Mar-13,WP JSA 25+ SUSTAINMENT OUTCOME PAYMENT,WWEG EP SOUTH EAST TV HANTS AND IOW MAXIMUS EMPLOYMENT,MAXIMUS EMPLOYMENT UK LTD,2028839763,"28,165"
Department for Work and Pensions,Employment Programmes,07-Mar-13,WP JSA 25+ SUSTAINMENT OUTCOME PAYMENT,WWEG EP SOUTH EAST TV HANTS AND IOW A4E,A4E LTD,2028743313,"28,165"
Department for Work and Pensions,Employment Programmes,18-Mar-13,WP JSA 25+ SUSTAINMENT OUTCOME PAYMENT,WWEG EP EAST OF ENGLAND SEETEC,SEETEC BUSINESS TECHNOLOGY CENTRE LTD,2028845152,"27,950"
Department for Work and Pensions,Employment Programmes,11-Mar-13,ESF 2011-13 SUPPORT FOR FAMILIES WITH MULTIPLE PROBLEMS ESA/NON CLAIMANTS CUSTOMERS PROGRESS MEASURE - INITIAL 25% PAYMENT,CPA6 GTR MAN CHES WARR EXC HAL G4S CARE AND JUSTICE SERV,G4S REGIONAL MANAGEMENT UK & I LTD,2028754851,"27,947"
Department for Work and Pensions,Housing Benefits,14-Mar-13,HOUSING BENEFIT ADMINISTRATION,HB ENGLAND,WEST DEVON BOROUGH COUNCIL,2028834862,"27,748"
Department for Work and Pensions,Employment Programmes,28-Mar-13,WP JSA 25+ SUSTAINMENT OUTCOME PAYMENT,WWEG EP NORTH EAST AVANTA ENTERPRISE,AVANTA ENTERPRISE LTD,2029001559,"27,735"
Department for Work and Pensions,Corporate,26-Mar-13,CONTRACTED OUT OFFICE SERVICES,F&C OPS FIN DM ENFORCEMENT,DRYDENS LTD,2028931336,"27,627"
Department for Work and Pensions,Employment Programmes,08-Mar-13,ACCESS TO WORK - TRAVEL IN WORK,WWEG EP NORTH EAST,CAPITA SYMONDS LTD,2028752747,"27,606"
Department for Work and Pensions,Employment Programmes,22-Mar-13,WP JSA 25+ JOB OUTCOME PAYMENTWP JSA 25+ JOB OUTCOME PAYMENT,WWEG EP EAST MIDLANDS INGEUS UK,INGEUS UK LTD,2028922664,"27,600"
Department for Work and Pensions,Employment Programmes,05-Mar-13,WP JSA 18-24 JOB OUTCOME PAYMENT,WWEG EP NORTH WEST GM CHES AND WARR G4S,G4S REGIONAL MANAGEMENT UK & I LTD,2028679736,"27,600"
Department for Work and Pensions,Employment Programmes,28-Mar-13,WP JSA 18-24 JOB OUTCOME PAYMENT,WWEG EP NORTH WEST MERS HAL CUMB AND LANCS A4E,A4E LTD,2029000341,"27,600"
Department for Work and Pensions,Employment Programmes,25-Mar-13,WP JSA 25+ JOB OUTCOME PAYMENTWP JSA 25+ JOB OUTCOME PAYMENT,WWEG EP W MIDLANDS COV WARW STAFFS AND MARCHES SERCO,SERCO LTD,2028925574,"27,600"
Department for Work and Pensions,Employment Programmes,15-Mar-13,WP JSA 25+ SUSTAINMENT OUTCOME PAYMENT,WWEG EP WEST YORKSHIRE INGEUS UK,INGEUS UK LTD,2028839155,"27,520"
Department for Work and Pensions,Housing Benefits,14-Mar-13,HOUSING BENEFIT ADMINISTRATION,HB ENGLAND,DERBYSHIRE DALES DISTRICT COUNCIL,2028834578,"27,383"
Department for Work and Pensions,Corporate,12-Mar-13,NETWORK SERVICES,OPS WDC DIRECTOR AND SUPPORT OFFICE,BT GLOBAL SERVICES,2028762392,"27,378"
Department for Work and Pensions,Employment Programmes,12-Mar-13,ACCESS TO WORK - PAYMENT FOR SUPPORT WORKERS,WWEG EP WALES COUNTRY,NJ PREECE,2028760935,"27,362"
Department for Work and Pensions,Employment Programmes,19-Mar-13,WP JSA 25+ JOB OUTCOME PAYMENTWP JSA 25+ JOB OUTCOME PAYMENT,WWEG EP EAST LONDON A4E,A4E LTD,2028848945,"27,360"
Department for Work and Pensions,Housing Benefits,14-Mar-13,HOUSING BENEFIT ADMINISTRATION,HB ENGLAND,UTTLESFORD DISTRICT COUNCIL,2028834680,"27,352"
Department for Work and Pensions,Corporate,18-Mar-13,NON-TREDDS IS IT APPS DEV MANDAY,CHG PIP DELIVERY,CAPGEMINI UK PLC,2028844502,"27,310"
Department for Work and Pensions,Corporate,08-Mar-13,OTHER IS IT COSTS VAT RECOV,CIO C SS S & E IT DIRECTOR GATEWAY DEVELOPMENT,ACTICA CONSULTING LTD,2028750325,"27,306"
Department for Work and Pensions,Employment Programmes,19-Mar-13,WP JSA 25+ SUSTAINMENT OUTCOME PAYMENT,WWEG EP S WEST DEV COR DOR AND SOM WORKING LINKS,WORKING LINKS,2028850026,"27,305"
Department for Work and Pensions,Corporate,19-Mar-13,NON PRIME PROPERTY COSTS,OPS WDC WSD LN HERTFORD JOBCENTRE PLUS,HERTFORD REGIONAL COLLEGE,2028849401,"27,192"
Department for Work and Pensions,Corporate,28-Mar-13,SERVICE FEE,CHG RIGHT TO CONTROL DELP,LONDON BOROUGH OF BARNET,1005723,"27,183"
Department for Work and Pensions,Corporate,05-Mar-13,TREDDS APPS DEV MANDAYS,CIO CSD INFRASTRUCTURE & SERVICE REMEDIATION,HP ENTERPRISE SERVICES UK LTD,2028679565,"27,183"
Department for Work and Pensions,Corporate,27-Mar-13,CURRENT GRANTS TO LOCAL GOVERNMENT,CHG RIGHT TO CONTROL DELP,ESSEX COUNTY COUNCIL,1005705,"27,119"
Department for Work and Pensions,Employment Programmes,14-Mar-13,WP JSA 25+ SUSTAINMENT OUTCOME PAYMENT,WWEG EP SOUTH EAST TV HANTS AND IOW A4E,A4E LTD,2028833346,"27,090"
Department for Work and Pensions,Employment Programmes,06-Mar-13,WP JSA CLAIMING 22 OF 24MTHS SUSTAINMENT OUTCOME PAYMENT,WWEG EP WALES WORKING LINKS WALES,WORKING LINKS,2028720785,"27,000"
Department for Work and Pensions,Corporate,27-Mar-13,PRIME BUSINESS RATES,F&C CD SHEFFIELD STEEL CITY HOUSE,TELEREAL TRILLIUM,2028981832,"26,968"
Department for Work and Pensions,Corporate,08-Mar-13,CONTRACTORS & STAFF SUBSTITUTIONS,CHG UC PROJECT LEDGER CC,CAPITA RESOURCING LTD,2028753706,"26,967"
Department for Work and Pensions,Corporate,07-Mar-13,FSF - TRAINING PAYMENTS TO PROVIDERS - JSA JOBSEEKERS,OPS WDC WSD SC EAST AND SOUTH EAST SCOTLAND DO,NHS LANARKSHIRE,2028743263,"26,950"
Department for Work and Pensions,Employment Programmes,22-Mar-13,WP JSA 25+ JOB OUTCOME PAYMENTWP JSA 25+ JOB OUTCOME PAYMENT,WWEG EP EAST LONDON SEETEC,SEETEC BUSINESS TECHNOLOGY CENTRE LTD,2028919438,"26,880"
Department for Work and Pensions,Employment Programmes,26-Mar-13,WP JSA 25+ SUSTAINMENT OUTCOME PAYMENT,WWEG EP SOUTH EAST SURR SUSSX AND KENT AVANTA ENTERPRISE,AVANTA ENTERPRISE LTD,2028933667,"26,875"
Department for Work and Pensions,Employment Programmes,08-Mar-13,WP JSA 25+ SUSTAINMENT OUTCOME PAYMENT,WWEG EP EAST LONDON SEETEC,SEETEC BUSINESS TECHNOLOGY CENTRE LTD,2028748807,"26,875"
Department for Work and Pensions,Employment Programmes,04-Mar-13,WP JSA 25+ JOB OUTCOME PAYMENTWP JSA 25+ JOB OUTCOME PAYMENT,WWEG EP SCOTLAND INGEUS UK,INGEUS UK LTD,2028676031,"26,875"
Department for Work and Pensions,Corporate,21-Mar-13,FSF - SUPPORT CONTRACT MODULES FOR JSA JOBSEEKERS,OPS WDC WSD SC GLASGOW LANARKSHIRE E DUMBARTONSHIRE DO,JHP GROUP LTD,2028915607,"26,853"
Department for Work and Pensions,Corporate,27-Mar-13,PRIME BUSINESS RATES,F&C CD BIRCHWOOD,TELEREAL TRILLIUM,2028981832,"26,847"
Department for Work and Pensions,Corporate,01-Mar-13,FSF - SUPPORT CONTRACT MODULES FOR JSA JOBSEEKERS,OPS WDC WSD CE EMPLOYER AND PARTNERSHIPS STAFFS & SHROPS,JHP GROUP LTD,2028671015,"26,824"
Department for Work and Pensions,Corporate,26-Mar-13,PROFESSIONAL ADVICE & OPINION VAT RECOVERABLE,PSG LEGAL SERVICES COMMERCIAL,DLA PIPER UK LLP,2028935034,"26,812"
Department for Work and Pensions,Corporate,18-Mar-13,STAFF TRAINING VAT RECOVERABLE,HR CONTRACTUAL L AND D,CAPITA CIVIL SERVICE LEARNING,2028840355,"26,797"
Department for Work and Pensions,Employment Programmes,19-Mar-13,WP JSA 25+ SUSTAINMENT OUTCOME PAYMENT,WWEG EP EAST LONDON A4E,A4E LTD,2028848945,"26,660"
Department for Work and Pensions,Employment Programmes,19-Mar-13,WP JSA 25+ SUSTAINMENT OUTCOME PAYMENT,WWEG EP SCOTLAND INGEUS UK,INGEUS UK LTD,2028848978,"26,660"
Department for Work and Pensions,Corporate,04-Mar-13,GOVERNMENT ACTUARY'S DEPT,STR AGEING SOC DIRECTOR AND SUPPORT,GOVERNMENT ACTUARYS DEPARTMENT GAD,2003720,"26,659"
Department for Work and Pensions,Housing Benefits,14-Mar-13,HOUSING BENEFIT ADMINISTRATION,HB ENGLAND,CHRISTCHURCH BOROUGH COUNCIL,2028834521,"26,627"
Department for Work and Pensions,Corporate,06-Mar-13,PROFESSIONAL ADVICE & OPINION VAT RECOVERABLE,PSG LEGAL SERVICES COMMERCIAL,DLA PIPER UK LLP,2028687322,"26,611"
Department for Work and Pensions,Child Maintenance and Enforcement Commission,01-Mar-13,STAFF TRAINING VAT RECOVERABLE,HUMAN RESOURCES,QA LTD,1000170345,"26,547"
Department for Work and Pensions,Employment Programmes,28-Mar-13,WP JSA 18-24 JOB OUTCOME PAYMENT,WWEG EP WEST YORKSHIRE BEST LTD,INTERSERVE WORKING FUTURES,2028999379,"26,520"
Department for Work and Pensions,Jobcentre Plus,27-Mar-13,FSF - PARTNERSHIP GRANTS - TO HELP JSA CLIENTS INTO WORK,CSD LN NORTH LONDON DISTRICT OFFICE,OPEN AGE,2028954782,"26,457"
Department for Work and Pensions,Corporate,26-Mar-13,FSF - SUPPORT CONTRACT MODULES FOR JSA JOBSEEKERS,OPS WDC WSD WL SOUTH WEST WALES DISTRICT OFFICE,CAPITAL TRAINING GROUP,2028934236,"26,449"
Department for Work and Pensions,Employment Programmes,15-Mar-13,WP JSA 25+ SUSTAINMENT OUTCOME PAYMENT,WWEG EP NORTH EAST INGEUS UK,INGEUS UK LTD,2028839155,"26,445"
Department for Work and Pensions,Employment Programmes,25-Mar-13,WP JSA 18-24 JOB OUTCOME PAYMENT,WWEG EP EAST MIDLANDS INGEUS UK,INGEUS UK LTD,2028928399,"26,400"
Department for Work and Pensions,Employment Programmes,06-Mar-13,WP JSA 25+ JOB OUTCOME PAYMENTWP JSA 25+ JOB OUTCOME PAYMENT,WWEG EP W MIDLANDS COV WARW STAFFS AND MARCHES SERCO,SERCO LTD,2028717980,"26,400"
Department for Work and Pensions,Corporate,14-Mar-13,NEW ENTERPRISE ALLOWANCE MENTOR MATCHING,OPS WDC WSD WL SOUTH WEST WALES DISTRICT OFFICE,A4E LTD,2028832979,"26,389"
Department for Work and Pensions,Housing Benefits,14-Mar-13,HOUSING BENEFIT ADMINISTRATION,HB ENGLAND,SOUTH NORTHANTS COUNCIL,2028834620,"26,355"
Department for Work and Pensions,Child Maintenance and Enforcement Commission,08-Mar-13,TREDDS APPS DEV FIXED PRICE CONTRACTS,LEGACY SYSTEMS IT RUNNING COSTS - IOL,HP ENTERPRISE SERVICES UK LTD,1000171139,"26,300"
Department for Work and Pensions,Corporate,27-Mar-13,SERVICE FEE,CHG RIGHT TO CONTROL DELP,SURREY COUNTY COUNCIL,1005709,"26,295"
Department for Work and Pensions,Corporate,15-Mar-13,NEW ENTERPRISE ALLOWANCE MENTOR MATCHING,OPS WDC WSD SC EAST AND SOUTH EAST SCOTLAND DO,WEST LOTHIAN COUNCIL,2028835107,"26,286"
Department for Work and Pensions,Employment Programmes,05-Mar-13,WP JSA 18-24 JOB OUTCOME PAYMENT,WWEG EP NORTH WEST MERS HAL CUMB AND LANCS INGEUS UK,INGEUS UK LTD,2028679938,"26,266"
Department for Work and Pensions,Employment Programmes,28-Mar-13,WP JSA CLAIMING 22 OF 24MTHS SUSTAINMENT OUTCOME PAYMENT,WWEG EP SOUTH EAST SURR SUSSX AND KENT G4S,G4S REGIONAL MANAGEMENT UK & I LTD,2028995950,"26,250"
Department for Work and Pensions,Employment Programmes,04-Mar-13,WP JSA 25+ SUSTAINMENT OUTCOME PAYMENT,WWEG EP S WEST DEV COR DOR AND SOM PROSPECTS SERVICES,PROSPECTS SERVICES LTD,2028675655,"26,230"
Department for Work and Pensions,Employment Programmes,08-Mar-13,WP JSA 25+ SUSTAINMENT OUTCOME PAYMENT,WWEG EP NORTH EAST AVANTA ENTERPRISE,AVANTA ENTERPRISE LTD,2028749126,"26,230"
Department for Work and Pensions,Employment Programmes,28-Mar-13,WP JSA 25+ SUSTAINMENT OUTCOME PAYMENT,WWEG EP SOUTH EAST SURR SUSSX AND KENT AVANTA ENTERPRISE,AVANTA ENTERPRISE LTD,2029001559,"26,230"
Department for Work and Pensions,Employment Programmes,19-Mar-13,WP JSA 25+ JOB OUTCOME PAYMENTWP JSA 25+ JOB OUTCOME PAYMENT,WWEG EP SOUTH EAST SURR SUSSX AND KENT AVANTA ENTERPRISE,AVANTA ENTERPRISE LTD,2028852971,"26,220"
Department for Work and Pensions,Corporate,27-Mar-13,CFERS PAID TO HM TREASURY,BALANCE SHEET,CONSOLIDATED FUND,2003781,"26,202"
Department for Work and Pensions,Employment Programmes,01-Mar-13,WP JSA 25+ SUSTAINMENT OUTCOME PAYMENT,WWEG EP WEST YORKSHIRE INGEUS UK,INGEUS UK LTD,2028668374,"26,015"
Department for Work and Pensions,Employment Programmes,19-Mar-13,WP JSA 25+ SUSTAINMENT OUTCOME PAYMENT,WWEG EP NORTH WEST MERS HAL CUMB AND LANCS INGEUS UK,INGEUS UK LTD,2028848978,"26,015"
Department for Work and Pensions,Employment Programmes,01-Mar-13,WP JSA 25+ SUSTAINMENT OUTCOME PAYMENT,WWEG EP EAST LONDON SEETEC,SEETEC BUSINESS TECHNOLOGY CENTRE LTD,2028668561,"26,015"
Department for Work and Pensions,Corporate,12-Mar-13,OFFICE EQUIPMENT - CURRENT,OPS OPE FS BUSINESS SUPPORT,SONIC COMMUNICATIONS INT LTD,2028767133,"25,920"
Department for Work and Pensions,Employment Programmes,15-Mar-13,WP JSA 25+ JOB OUTCOME PAYMENTWP JSA 25+ JOB OUTCOME PAYMENT,WWEG EP EAST LONDON SEETEC,SEETEC BUSINESS TECHNOLOGY CENTRE LTD,2028838459,"25,920"
Department for Work and Pensions,Employment Programmes,08-Mar-13,SERVICE FEE,WWEG EP CORE MWA CPA NORTH WEST,JHP GROUP LTD,2028752440,"25,847"
Department for Work and Pensions,Employment Programmes,15-Mar-13,WP JSA 25+ SUSTAINMENT OUTCOME PAYMENT,WWEG EP WEST LONDON MAXIMUS EMPLOYMENT UK,MAXIMUS EMPLOYMENT UK LTD,2028839763,"25,800"
Department for Work and Pensions,Employment Programmes,01-Mar-13,WP JSA 25+ SUSTAINMENT OUTCOME PAYMENT,WWEG EP NORTH EAST INGEUS UK,INGEUS UK LTD,2028668374,"25,800"
Department for Work and Pensions,Employment Programmes,19-Mar-13,WP JSA 25+ JOB OUTCOME PAYMENTWP JSA 25+ JOB OUTCOME PAYMENT,WWEG EP SCOTLAND INGEUS UK,INGEUS UK LTD,2028848978,"25,800"
Department for Work and Pensions,Housing Benefits,14-Mar-13,HOUSING BENEFIT ADMINISTRATION,HB ENGLAND,WEST SOMERSET DISTRICT COUNCIL,2028834494,"25,529"
Department for Work and Pensions,Employment Programmes,18-Mar-13,ESF 2011-13 SUPPORT FOR FAMILIES WITH MULTIPLE PROBLEMS ESA/NON CLAIMANTS CUSTOMERS PROGRESS MEASURE - INITIAL 25% PAYMENT,CPA6 GTR MAN CHES WARR EXC HAL G4S CARE AND JUSTICE SERV,G4S REGIONAL MANAGEMENT UK & I LTD,2028842186,"25,517"
Department for Work and Pensions,Corporate,11-Mar-13,STAFF TRAINING VAT RECOVERABLE,HR CSEP POLICY TEAM 1,CAPITA CIVIL SERVICE LEARNING,2028754370,"25,514"
Department for Work and Pensions,Employment Programmes,06-Mar-13,WP JSA 25+ JOB OUTCOME PAYMENTWP JSA 25+ JOB OUTCOME PAYMENT,WWEG EP WEST YORKSHIRE BEST LTD,INTERSERVE WORKING FUTURES,2028689029,"25,500"
Department for Work and Pensions,Employment Programmes,11-Mar-13,ACCESS TO WORK - TRAVEL IN WORK,WWEG EP NORTH WEST,CAPITA SYMONDS LTD,2028754368,"25,402"
Department for Work and Pensions,Employment Programmes,01-Mar-13,WP JSA 25+ JOB OUTCOME PAYMENTWP JSA 25+ JOB OUTCOME PAYMENT,WWEG EP NORTH WEST MERS HAL CUMB AND LANCS A4E,A4E LTD,2028670409,"25,392"
Department for Work and Pensions,Employment Programmes,22-Mar-13,WP JSA 25+ SUSTAINMENT OUTCOME PAYMENT,WWEG EP EAST LONDON SEETEC,SEETEC BUSINESS TECHNOLOGY CENTRE LTD,2028919438,"25,370"
Department for Work and Pensions,Corporate,11-Mar-13,TREDDS APPS DEV MANDAYS,CHG APPEALS REFORM,HP ENTERPRISE SERVICES UK LTD,2028755530,"25,261"
Department for Work and Pensions,Employment Programmes,01-Mar-13,WP JSA CLAIMING 22 OF 24MTHS SUSTAINMENT OUTCOME PAYMENT,WWEG EP SOUTH EAST SURR SUSSX AND KENT AVANTA ENTERPRISE,AVANTA ENTERPRISE LTD,2028669127,"25,250"
Department for Work and Pensions,Housing Benefits,14-Mar-13,HOUSING BENEFIT ADMINISTRATION,HB ENGLAND,RYEDALE DISTRICT COUNCIL,2028834553,"25,229"
Department for Work and Pensions,Employment Programmes,28-Mar-13,WP JSA 25+ JOB OUTCOME PAYMENTWP JSA 25+ JOB OUTCOME PAYMENT,WWEG EP EAST MIDLANDS INGEUS UK,INGEUS UK LTD,2028999243,"25,200"
Department for Work and Pensions,Employment Programmes,28-Mar-13,WP JSA 18-24 JOB OUTCOME PAYMENT,WWEG EP NORTH WEST GM CHES AND WARR G4S,G4S REGIONAL MANAGEMENT UK & I LTD,2028995950,"25,200"
Department for Work and Pensions,Employment Programmes,28-Mar-13,WP JSA 18-24 JOB OUTCOME PAYMENT,WWEG EP SOUTH EAST SURR SUSSX AND KENT G4S,G4S REGIONAL MANAGEMENT UK & I LTD,2028995950,"25,200"
Department for Work and Pensions,Employment Programmes,11-Mar-13,WP JSA 25+ JOB OUTCOME PAYMENTWP JSA 25+ JOB OUTCOME PAYMENT,WWEG EP SCOTLAND WORKING LINKS,WORKING LINKS,2028758363,"25,200"
Department for Work and Pensions,Employment Programmes,05-Mar-13,WP JSA 25+ JOB OUTCOME PAYMENTWP JSA 25+ JOB OUTCOME PAYMENT,WWEG EP NORTH WEST GM CHES AND WARR G4S,G4S REGIONAL MANAGEMENT UK & I LTD,2028679736,"25,200"
Department for Work and Pensions,Employment Programmes,25-Mar-13,WP JSA 25+ JOB OUTCOME PAYMENTWP JSA 25+ JOB OUTCOME PAYMENT,WWEG EP EAST OF ENGLAND INGEUS UK,INGEUS UK LTD,2028928399,"25,200"
Department for Work and Pensions,Corporate,26-Mar-13,HOSTING GMS SERVICES,PSG INFO SERVICES,HP ENTERPRISE SERVICES UK LTD,2028934802,"25,180"
Department for Work and Pensions,Employment Programmes,05-Mar-13,WP JSA 25+ SUSTAINMENT OUTCOME PAYMENT,WWEG EP WEST LONDON REED IN PARTNERSHIP,REED IN PARTNERSHIP LTD,2028683014,"25,155"
Department for Work and Pensions,Employment Programmes,28-Mar-13,WP JSA 25+ SUSTAINMENT OUTCOME PAYMENT,WWEG EP EAST LONDON SEETEC,SEETEC BUSINESS TECHNOLOGY CENTRE LTD,2029000151,"25,155"
Department for Work and Pensions,Employment Programmes,06-Mar-13,WP JSA 25+ JOB OUTCOME PAYMENTWP JSA 25+ JOB OUTCOME PAYMENT,WWEG EP NORTH EAST AVANTA ENTERPRISE,AVANTA ENTERPRISE LTD,2028716816,"25,080"
Department for Work and Pensions,Employment Programmes,06-Mar-13,SERVICE FEE,WWEG EP CORE MWA CPA WEST MIDLANDS,ESG HOLDINGS LTD,2028721874,"24,980"
Department for Work and Pensions,Employment Programmes,26-Mar-13,WP JSA 25+ JOB OUTCOME PAYMENTWP JSA 25+ JOB OUTCOME PAYMENT,WWEG EP EAST LONDON SEETEC,SEETEC BUSINESS TECHNOLOGY CENTRE LTD,2028933129,"24,960"
Department for Work and Pensions,Employment Programmes,08-Mar-13,WP JSA 25+ SUSTAINMENT OUTCOME PAYMENT,WWEG EP WEST YORKSHIRE INGEUS UK,INGEUS UK LTD,2028753498,"24,940"
Department for Work and Pensions,Employment Programmes,28-Mar-13,WP JSA 25+ SUSTAINMENT OUTCOME PAYMENT,WWEG EP SCOTLAND WORKING LINKS,WORKING LINKS,2028999620,"24,940"
Department for Work and Pensions,Corporate,07-Mar-13,POSTAGE,OPS BEN BD SF BELLE VALE,ROYAL MAIL GROUP PLC,2028744935,"24,930"
Department for Work and Pensions,Corporate,21-Mar-13,FSF - SUPPORT CONTRACT MODULES FOR JSA JOBSEEKERS,OPS WDC WSD SC WEST OF SCOTLAND DO,JHP GROUP LTD,2028915607,"24,771"
Department for Work and Pensions,Employment Programmes,25-Mar-13,WP JSA 25+ SUSTAINMENT OUTCOME PAYMENT,WWEG EP SCOTLAND WORKING LINKS,WORKING LINKS,2028923378,"24,725"
Department for Work and Pensions,Employment Programmes,12-Mar-13,WP JSA 25+ SUSTAINMENT OUTCOME PAYMENT,WWEG EP SOUTH EAST SURR SUSSX AND KENT G4S,G4S REGIONAL MANAGEMENT UK & I LTD,2028762297,"24,725"
Department for Work and Pensions,Employment Programmes,14-Mar-13,WP JSA 25+ JOB OUTCOME PAYMENTWP JSA 25+ JOB OUTCOME PAYMENT,WWEG EP SCOTLAND INGEUS UK,INGEUS UK LTD,2028833371,"24,725"
Department for Work and Pensions,Corporate,26-Mar-13,NON-TREDDS IS IT APPS DEV MANDAY,CIO ADC HEAD OF SOLUTION DESIGN,ACCENTURE UK LTD,2028935363,"24,669"
Department for Work and Pensions,Corporate,06-Mar-13,NON-TREDDS IS IT APPS DEV MANDAY,CHG UC RESTRUCTURE RESIDUAL,IBM UNITED KINGDOM LTD,2028702827,"24,568"
Department for Work and Pensions,Employment Programmes,28-Mar-13,WP JSA 25+ SUSTAINMENT OUTCOME PAYMENT,WWEG EP SCOTLAND INGEUS UK,INGEUS UK LTD,2028999243,"24,510"
Department for Work and Pensions,Employment Programmes,19-Mar-13,WP JSA 18-24 ATTACHMENT FEE,WWEG EP NORTH WEST MERS HAL CUMB AND LANCS INGEUS UK,INGEUS UK LTD,2028848978,"24,500"
Department for Work and Pensions,Child Maintenance and Enforcement Commission,07-Mar-13,PROFESSIONAL ADVICE & OPINION VAT RECOVERABLE,EXTERNAL CONTRACTS CENTRALLY HELD INLAND REVENUE TRACING,EXPERIAN LTD,1000170881,"24,434"
Department for Work and Pensions,Employment Programmes,19-Mar-13,WP JSA 18-24 JOB SUSTAINMENT OUTCOME PAYMENT,WWEG EP NORTH EAST AVANTA ENTERPRISE,AVANTA ENTERPRISE LTD,2028852971,"24,310"
Department for Work and Pensions,Housing Benefits,14-Mar-13,HOUSING BENEFIT ADMINISTRATION,HB ENGLAND,HART DISTRICT COUNCIL,2028834803,"24,300"
Department for Work and Pensions,Employment Programmes,04-Mar-13,WP JSA 25+ SUSTAINMENT OUTCOME PAYMENT,WWEG EP SOUTH EAST TV HANTS AND IOW MAXIMUS EMPLOYMENT,MAXIMUS EMPLOYMENT UK LTD,2028674138,"24,295"
Department for Work and Pensions,Corporate,19-Mar-13,REMOTE STORAGE COSTS VAT RECOV,F&C OPS FIN DM CONTRACTS,CAPITA BUSINESS SERVICES LTD,2028848647,"24,257"
Department for Work and Pensions,Employment Programmes,21-Mar-13,WP JSA 25+ JOB OUTCOME PAYMENTWP JSA 25+ JOB OUTCOME PAYMENT,WWEG EP EAST OF ENGLAND SEETEC,SEETEC BUSINESS TECHNOLOGY CENTRE LTD,2028913781,"24,180"
Department for Work and Pensions,Corporate,07-Mar-13,STAFF TRAINING VAT RECOVERABLE,HR CONTRACTUAL L AND D,FLETCHER CONSULTANCY,2028744250,"24,080"
Department for Work and Pensions,Employment Programmes,28-Mar-13,WP JSA 25+ SUSTAINMENT OUTCOME PAYMENT,WWEG EP NORTH WEST GM CHES AND WARR G4S,G4S REGIONAL MANAGEMENT UK & I LTD,2028995950,"24,080"
Department for Work and Pensions,Corporate,20-Mar-13,RAPID RESPONSE - PROVIDER TRAINING,OPS WDC WSD NE N AND E YORKS AND HUMBER DISTRICT OFFICE,PERTEMPS PEOPLE DEVELOPMENT GROUP,2028866209,"24,075"
Department for Work and Pensions,Corporate,27-Mar-13,PRIME BUSINESS RATES,F&C CD MANCHESTER ANCHORAGE HOUSE,TELEREAL TRILLIUM,2028981832,"24,021"
Department for Work and Pensions,Housing Benefits,14-Mar-13,HOUSING BENEFIT ADMINISTRATION,HB ENGLAND,CRAVEN DISTRICT COUNCIL,2028834857,"24,014"
Department for Work and Pensions,Employment Programmes,06-Mar-13,WP JSA 18-24 JOB OUTCOME PAYMENT,WWEG EP EAST OF ENGLAND INGEUS UK,INGEUS UK LTD,2028720401,"24,000"
Department for Work and Pensions,Employment Programmes,19-Mar-13,WP JSA 25+ JOB OUTCOME PAYMENTWP JSA 25+ JOB OUTCOME PAYMENT,WWEG EP WEST LONDON INGEUS UK,INGEUS UK LTD,2028848978,"24,000"
Department for Work and Pensions,Employment Programmes,05-Mar-13,WP JSA 25+ JOB OUTCOME PAYMENTWP JSA 25+ JOB OUTCOME PAYMENT,WWEG EP WEST YORKSHIRE INGEUS UK,INGEUS UK LTD,2028679938,"24,000"
Department for Work and Pensions,Employment Programmes,06-Mar-13,WP JSA 25+ JOB OUTCOME PAYMENTWP JSA 25+ JOB OUTCOME PAYMENT,WWEG EP EAST OF ENGLAND INGEUS UK,INGEUS UK LTD,2028720401,"24,000"
Department for Work and Pensions,Employment Programmes,25-Mar-13,WP JSA 25+ JOB OUTCOME PAYMENTWP JSA 25+ JOB OUTCOME PAYMENT,WWEG EP EAST MIDLANDS INGEUS UK,INGEUS UK LTD,2028928399,"24,000"
Department for Work and Pensions,Employment Programmes,22-Mar-13,WP JSA 25+ JOB OUTCOME PAYMENTWP JSA 25+ JOB OUTCOME PAYMENT,WWEG EP NORTH WEST MERS HAL CUMB AND LANCS INGEUS UK,INGEUS UK LTD,2028922664,"23,982"
Department for Work and Pensions,Employment Programmes,08-Mar-13,SERVICE FEE,WWEG EP CORE MWA CPA YORKSHIRE AND HUMBER,INTERSERVE WORKING FUTURES,2028751956,"23,951"
Department for Work and Pensions,Employment Programmes,05-Mar-13,WP JSA 25+ JOB OUTCOME PAYMENTWP JSA 25+ JOB OUTCOME PAYMENT,WWEG EP WEST LONDON REED IN PARTNERSHIP,REED IN PARTNERSHIP LTD,2028683014,"23,940"
Department for Work and Pensions,Employment Programmes,11-Mar-13,WP JSA 25+ JOB OUTCOME PAYMENTWP JSA 25+ JOB OUTCOME PAYMENT,WWEG EP SOUTH EAST SURR SUSSX AND KENT AVANTA ENTERPRISE,AVANTA ENTERPRISE LTD,2028757307,"23,940"
Department for Work and Pensions,Employment Programmes,25-Mar-13,WP JSA 18-24 JOB OUTCOME PAYMENT,WWEG EP NORTH EAST AVANTA ENTERPRISE,AVANTA ENTERPRISE LTD,2028928588,"23,940"
Department for Work and Pensions,Employment Programmes,08-Mar-13,WP JSA 25+ SUSTAINMENT OUTCOME PAYMENT,WWEG EP NORTH EAST INGEUS UK,INGEUS UK LTD,2028753498,"23,865"
Department for Work and Pensions,Corporate,11-Mar-13,FSF - SUPPORT CONTRACT MODULES FOR JSA JOBSEEKERS,OPS WDC WSD SC EAST AND SOUTH EAST SCOTLAND DO,JHP GROUP LTD,2028756831,"23,860"
Department for Work and Pensions,Corporate,07-Mar-13,POSTAGE,OPS PEN PS CAU,ROYAL MAIL GROUP PLC,2028744935,"23,846"
Department for Work and Pensions,Corporate,07-Mar-13,POSTAGE,OPS BEN DD WALES DBC NEW CLAIMS,ROYAL MAIL GROUP PLC,2028744935,"23,816"
Department for Work and Pensions,Employment Programmes,22-Mar-13,WP JSA 18-24 JOB SUSTAINMENT OUTCOME PAYMENT,WWEG EP EAST MIDLANDS INGEUS UK,INGEUS UK LTD,2028922664,"23,800"
Department for Work and Pensions,Housing Benefits,14-Mar-13,HOUSING BENEFIT ADMINISTRATION,HB ENGLAND,SOUTH BUCKS DISTRICT COUNCIL,2028834761,"23,754"
Department for Work and Pensions,Employment Programmes,28-Mar-13,WP JSA 25+ JOB OUTCOME PAYMENTWP JSA 25+ JOB OUTCOME PAYMENT,WWEG EP SCOTLAND INGEUS UK,INGEUS UK LTD,2028999243,"23,650"
Department for Work and Pensions,Employment Programmes,12-Mar-13,WP JSA 25+ JOB OUTCOME PAYMENTWP JSA 25+ JOB OUTCOME PAYMENT,WWEG EP SCOTLAND INGEUS UK,INGEUS UK LTD,2028762288,"23,650"
Department for Work and Pensions,Corporate,13-Mar-13,STAFF TRAINING VAT RECOVERABLE,HR CONTRACTUAL L AND D,FLETCHER CONSULTANCY,2028813910,"23,600"
Department for Work and Pensions,Child Maintenance and Enforcement Commission,27-Mar-13,OVERTIME,CLIENT SERVICE AREA MANAGEMENT OFFICE,DSD GROUP ACCOUNT,1001268,"23,495"
